Body Name,Date Paid,Transaction Number,Amount,Supplier Name,Supplier Type,Expense Area,Cost Centre Description,Expense Type
Cambridgeshire County Council,28-Dec-16,22095454-14585748,-112609.22,Nottingham Rehab Supplies Ltd,Trade Supplier,3 - Commissioning - Disabilities & Carers,3 - Commissioning - Disabilities & Carers,ICES (Pool)
Cambridgeshire County Council,30-Dec-16,22197528-14594847,-44954,Sanctuary Home Care Ltd,Care Establishment,2 - Commissioning - Older people Pool,2 - Commissioning - Older people Pool,Older People - Fenland
Cambridgeshire County Council,30-Dec-16,21870098-14595018,-39672.48,Nhs Cambs & Pboro Ccg,Care Establishment,3 - Commissioning - Disabilities & Carers,3 - Commissioning - Disabilities & Carers,ICES (Pool)
Cambridgeshire County Council,06-Dec-16,22163225-14483429,-36673.8,Guidant Group,Trade Supplier,LGSS,LGSS,Legal - Admin & Overhead
Cambridgeshire County Council,28-Dec-16,22173558-14586154,-18510.83,Civica Uk Ltd,Trade Supplier,LGSS,LGSS,3rd Party Contracts
Cambridgeshire County Council,15-Dec-16,22240590-14535825,-8387.28,Banner Group Ltd,Trade Supplier,Schools,Schools,Pilgrim Pru
Cambridgeshire County Council,29-Dec-16,22263263-14590656,-6251.79,Whippet Coaches Limited,Trade Supplier,Passenger Transport,Passenger Transport,Cambridgeshire Future Transport
Cambridgeshire County Council,07-Dec-16,22138218-14484377,-5371.76,Tarmac Carillion Joint Venture,Trade Supplier,Local Infrastructure & Street Management,Local Infrastructure & Street Management,Local Projects
Cambridgeshire County Council,08-Dec-16,22124777-14506252,-4655,Brookdale Healthcare Limited,Care Establishment,2 - Operations - Learning Disability,2 - Operations - Learning Disability,LDP Huntingdonshire Locality - Care
Cambridgeshire County Council,08-Dec-16,22092061-14506257,-4655,Brookdale Healthcare Limited,Care Establishment,2 - Operations - Learning Disability,2 - Operations - Learning Disability,LDP Huntingdonshire Locality - Care
Cambridgeshire County Council,08-Dec-16,22092062-14506258,-4655,Brookdale Healthcare Limited,Care Establishment,2 - Operations - Learning Disability,2 - Operations - Learning Disability,LDP Hunts special needs
Cambridgeshire County Council,08-Dec-16,22092064-14506260,-4655,Brookdale Healthcare Limited,Care Establishment,2 - Operations - Learning Disability,2 - Operations - Learning Disability,LDP Huntingdonshire Locality - Care
Cambridgeshire County Council,08-Dec-16,22092066-14506262,-4655,Brookdale Healthcare Limited,Care Establishment,2 - Operations - Learning Disability,2 - Operations - Learning Disability,LDP Huntingdonshire Locality - Care
Cambridgeshire County Council,08-Dec-16,22092067-14506263,-4655,Brookdale Healthcare Limited,Care Establishment,2 - Operations - Learning Disability,2 - Operations - Learning Disability,LDP Huntingdonshire Locality - Care
Cambridgeshire County Council,08-Dec-16,22092068-14506264,-4655,Brookdale Healthcare Limited,Care Establishment,2 - Operations - Learning Disability,2 - Operations - Learning Disability,LDP Hunts special needs
Cambridgeshire County Council,08-Dec-16,22092071-14506267,-4655,Brookdale Healthcare Limited,Care Establishment,2 - Operations - Learning Disability,2 - Operations - Learning Disability,LDP Huntingdonshire Locality - Care
Cambridgeshire County Council,08-Dec-16,22092073-14506269,-4655,Brookdale Healthcare Limited,Care Establishment,2 - Operations - Learning Disability,2 - Operations - Learning Disability,LDP Hunts special needs
Cambridgeshire County Council,08-Dec-16,22092076-14506272,-4655,Brookdale Healthcare Limited,Care Establishment,2 - Operations - Learning Disability,2 - Operations - Learning Disability,LDP Huntingdonshire Locality - Care
Cambridgeshire County Council,08-Dec-16,22179243-14506273,-4655,Brookdale Healthcare Limited,Care Establishment,2 - Operations - Learning Disability,2 - Operations - Learning Disability,LDP Hunts special needs
Cambridgeshire County Council,08-Dec-16,22179245-14506275,-4655,Brookdale Healthcare Limited,Care Establishment,2 - Operations - Learning Disability,2 - Operations - Learning Disability,LDP Huntingdonshire Locality - Care
Cambridgeshire County Council,08-Dec-16,22179248-14506278,-4655,Brookdale Healthcare Limited,Care Establishment,2 - Operations - Learning Disability,2 - Operations - Learning Disability,LDP Huntingdonshire Locality - Care
Cambridgeshire County Council,08-Dec-16,22179249-14506279,-4655,Brookdale Healthcare Limited,Care Establishment,2 - Operations - Learning Disability,2 - Operations - Learning Disability,LDP Hunts special needs
Cambridgeshire County Council,08-Dec-16,22179252-14506282,-4655,Brookdale Healthcare Limited,Care Establishment,2 - Operations - Learning Disability,2 - Operations - Learning Disability,LDP Huntingdonshire Locality - Care
Cambridgeshire County Council,08-Dec-16,22179254-14506284,-4655,Brookdale Healthcare Limited,Care Establishment,2 - Operations - Learning Disability,2 - Operations - Learning Disability,LDP Huntingdonshire Locality - Care
Cambridgeshire County Council,08-Dec-16,22179257-14506287,-4655,Brookdale Healthcare Limited,Care Establishment,2 - Operations - Learning Disability,2 - Operations - Learning Disability,LDP Huntingdonshire Locality - Care
Cambridgeshire County Council,08-Dec-16,22179259-14506289,-4655,Brookdale Healthcare Limited,Care Establishment,2 - Operations - Learning Disability,2 - Operations - Learning Disability,LDP Hunts special needs
Cambridgeshire County Council,08-Dec-16,22179242-14506296,-4655,Brookdale Healthcare Limited,Care Establishment,2 - Operations - Learning Disability,2 - Operations - Learning Disability,LDP Huntingdonshire Locality - Care
Cambridgeshire County Council,08-Dec-16,22124755-14506234,-4655,Brookdale Healthcare Limited,Care Establishment,2 - Operations - Learning Disability,2 - Operations - Learning Disability,LDP Hunts special needs
Cambridgeshire County Council,08-Dec-16,22124756-14506235,-4655,Brookdale Healthcare Limited,Care Establishment,2 - Operations - Learning Disability,2 - Operations - Learning Disability,LDP Hunts special needs
Cambridgeshire County Council,08-Dec-16,22124760-14506237,-4655,Brookdale Healthcare Limited,Care Establishment,2 - Operations - Learning Disability,2 - Operations - Learning Disability,LDP Huntingdonshire Locality - Care
Cambridgeshire County Council,08-Dec-16,22124761-14506238,-4655,Brookdale Healthcare Limited,Care Establishment,2 - Operations - Learning Disability,2 - Operations - Learning Disability,LDP Huntingdonshire Locality - Care
Cambridgeshire County Council,08-Dec-16,22124769-14506245,-4655,Brookdale Healthcare Limited,Care Establishment,2 - Operations - Learning Disability,2 - Operations - Learning Disability,LDP Hunts special needs
Cambridgeshire County Council,08-Dec-16,22124770-14506246,-4655,Brookdale Healthcare Limited,Care Establishment,2 - Operations - Learning Disability,2 - Operations - Learning Disability,LDP Hunts special needs
Cambridgeshire County Council,08-Dec-16,22124773-14506248,-4655,Brookdale Healthcare Limited,Care Establishment,2 - Operations - Learning Disability,2 - Operations - Learning Disability,LDP Hunts special needs
Cambridgeshire County Council,08-Dec-16,22124775-14506250,-4655,Brookdale Healthcare Limited,Care Establishment,2 - Operations - Learning Disability,2 - Operations - Learning Disability,LDP Hunts special needs
Cambridgeshire County Council,16-Dec-16,22251054-14551548,-4655,Brookdale Healthcare Limited,Care Establishment,2 - Operations - Learning Disability,2 - Operations - Learning Disability,LDP Hunts special needs
Cambridgeshire County Council,16-Dec-16,22251055-14551549,-4655,Brookdale Healthcare Limited,Care Establishment,2 - Operations - Learning Disability,2 - Operations - Learning Disability,LDP Huntingdonshire Locality - Care
Cambridgeshire County Council,16-Dec-16,22251057-14551551,-4655,Brookdale Healthcare Limited,Care Establishment,2 - Operations - Learning Disability,2 - Operations - Learning Disability,LDP Hunts special needs
Cambridgeshire County Council,16-Dec-16,22251058-14551552,-4655,Brookdale Healthcare Limited,Care Establishment,2 - Operations - Learning Disability,2 - Operations - Learning Disability,LDP Hunts special needs
Cambridgeshire County Council,16-Dec-16,22251060-14551554,-4655,Brookdale Healthcare Limited,Care Establishment,2 - Operations - Learning Disability,2 - Operations - Learning Disability,LDP Hunts special needs
Cambridgeshire County Council,16-Dec-16,22251061-14551555,-4655,Brookdale Healthcare Limited,Care Establishment,2 - Operations - Learning Disability,2 - Operations - Learning Disability,LDP Huntingdonshire Locality - Care
Cambridgeshire County Council,16-Dec-16,22251062-14551556,-4655,Brookdale Healthcare Limited,Care Establishment,2 - Operations - Learning Disability,2 - Operations - Learning Disability,LDP Huntingdonshire Locality - Care
Cambridgeshire County Council,16-Dec-16,22257707-14551557,-4655,Brookdale Healthcare Limited,Care Establishment,2 - Operations - Learning Disability,2 - Operations - Learning Disability,LDP Huntingdonshire Locality - Care
Cambridgeshire County Council,16-Dec-16,22257708-14551558,-4655,Brookdale Healthcare Limited,Care Establishment,2 - Operations - Learning Disability,2 - Operations - Learning Disability,LDP Hunts special needs
Cambridgeshire County Council,29-Dec-16,22308841-14591626,-4393.04,Redacted Personal Data,Redacted Personal Data,2 - Operations - Learning Disability,2 - Operations - Learning Disability,LDP South Cambs Locality - Care
Cambridgeshire County Council,15-Dec-16,22238493-14535661,-3960,Chs Group,Care Establishment,S&C,S&C,Placements - Social Care
Cambridgeshire County Council,01-Dec-16,22122943-14450719,-3466.49,The Edmund Trust,Care Establishment,2 - Operations - Learning Disability,2 - Operations - Learning Disability,LDP South Cambs Locality - Care
Cambridgeshire County Council,01-Dec-16,22122948-14450724,-3466.49,The Edmund Trust,Care Establishment,2 - Operations - Learning Disability,2 - Operations - Learning Disability,LDP South Cambs Locality - Care
Cambridgeshire County Council,01-Dec-16,22122950-14450726,-3466.49,The Edmund Trust,Care Establishment,2 - Operations - Learning Disability,2 - Operations - Learning Disability,LDP South Cambs Locality - Care
Cambridgeshire County Council,01-Dec-16,22122959-14450735,-3466.49,The Edmund Trust,Care Establishment,2 - Operations - Learning Disability,2 - Operations - Learning Disability,LDP South Cambs Locality - Care
Cambridgeshire County Council,01-Dec-16,22122961-14450737,-3466.49,The Edmund Trust,Care Establishment,2 - Operations - Learning Disability,2 - Operations - Learning Disability,LDP South Cambs Locality - Care
Cambridgeshire County Council,01-Dec-16,22122965-14450741,-3466.49,The Edmund Trust,Care Establishment,2 - Operations - Learning Disability,2 - Operations - Learning Disability,LDP South Cambs Locality - Care
Cambridgeshire County Council,08-Dec-16,22092074-14506270,-3325,Brookdale Healthcare Limited,Care Establishment,2 - Operations - Learning Disability,2 - Operations - Learning Disability,LDP Hunts special needs
Cambridgeshire County Council,08-Dec-16,22179262-14506292,-3325,Brookdale Healthcare Limited,Care Establishment,2 - Operations - Learning Disability,2 - Operations - Learning Disability,LDP Hunts special needs
Cambridgeshire County Council,08-Dec-16,22124764-14506241,-3325,Brookdale Healthcare Limited,Care Establishment,2 - Operations - Learning Disability,2 - Operations - Learning Disability,LDP Huntingdonshire Locality - Care
Cambridgeshire County Council,16-Dec-16,22257717-14551564,-3325,Brookdale Healthcare Limited,Care Establishment,2 - Operations - Learning Disability,2 - Operations - Learning Disability,LDP Huntingdonshire Locality - Care
Cambridgeshire County Council,23-Dec-16,22145225-14582447,-3085.04,Futures For Children Ltd,Care Establishment,S&C,S&C,Placements - Social Care
Cambridgeshire County Council,01-Dec-16,22122946-14450722,-2971.28,The Edmund Trust,Care Establishment,2 - Operations - Learning Disability,2 - Operations - Learning Disability,LDP South Cambs Locality - Care
Cambridgeshire County Council,08-Dec-16,22069319-14487904,-2700.66,Affinity Trust,Care Establishment,2 - Operations - Learning Disability,2 - Operations - Learning Disability,LDP Cambs City - Special Needs
Cambridgeshire County Council,08-Dec-16,22069320-14487905,-2700.66,Affinity Trust,Care Establishment,2 - Operations - Learning Disability,2 - Operations - Learning Disability,LDP Cambs City - Special Needs
Cambridgeshire County Council,08-Dec-16,22124166-14504320,-2608.06,Huntingdon Mencap Ltd,Care Establishment,2 - Operations - Learning Disability,2 - Operations - Learning Disability,LDP Huntingdonshire Locality - Care
Cambridgeshire County Council,21-Dec-16,22264790-14563643,-2438.83,Zurich Insurance Co,Trade Supplier,Corporate Services,Corporate Services,Insurance General
Cambridgeshire County Council,08-Dec-16,22123936-14503594,-2337.29,Dimensions (Uk) Ltd,Care Establishment,2 - Operations - Learning Disability,2 - Operations - Learning Disability,LDP South Cambs - Special Needs
Cambridgeshire County Council,08-Dec-16,22123938-14503596,-2337.29,Dimensions (Uk) Ltd,Care Establishment,2 - Operations - Learning Disability,2 - Operations - Learning Disability,LDP Cambs City - Special Needs
Cambridgeshire County Council,08-Dec-16,22123941-14503599,-2337.29,Dimensions (Uk) Ltd,Care Establishment,2 - Operations - Learning Disability,2 - Operations - Learning Disability,LDP South Cambs - Special Needs
Cambridgeshire County Council,08-Dec-16,22123943-14503601,-2337.29,Dimensions (Uk) Ltd,Care Establishment,2 - Operations - Learning Disability,2 - Operations - Learning Disability,LDP Cambs City - Special Needs
Cambridgeshire County Council,08-Dec-16,22123944-14503602,-2337.29,Dimensions (Uk) Ltd,Care Establishment,2 - Operations - Learning Disability,2 - Operations - Learning Disability,LDP South Cambs - Special Needs
Cambridgeshire County Council,08-Dec-16,22089671-14503651,-2337.29,Dimensions (Uk) Ltd,Care Establishment,2 - Operations - Learning Disability,2 - Operations - Learning Disability,LDP South Cambs - Special Needs
Cambridgeshire County Council,08-Dec-16,22089672-14503652,-2337.29,Dimensions (Uk) Ltd,Care Establishment,2 - Operations - Learning Disability,2 - Operations - Learning Disability,LDP South Cambs - Special Needs
Cambridgeshire County Council,08-Dec-16,22089674-14503654,-2337.29,Dimensions (Uk) Ltd,Care Establishment,2 - Operations - Learning Disability,2 - Operations - Learning Disability,LDP South Cambs - Special Needs
Cambridgeshire County Council,08-Dec-16,22089675-14503655,-2337.29,Dimensions (Uk) Ltd,Care Establishment,2 - Operations - Learning Disability,2 - Operations - Learning Disability,LDP South Cambs - Special Needs
Cambridgeshire County Council,08-Dec-16,22089679-14503659,-2337.29,Dimensions (Uk) Ltd,Care Establishment,2 - Operations - Learning Disability,2 - Operations - Learning Disability,LDP Cambs City - Special Needs
Cambridgeshire County Council,08-Dec-16,22089682-14503662,-2337.29,Dimensions (Uk) Ltd,Care Establishment,2 - Operations - Learning Disability,2 - Operations - Learning Disability,LDP Cambs City - Special Needs
Cambridgeshire County Council,08-Dec-16,22089687-14503667,-2337.29,Dimensions (Uk) Ltd,Care Establishment,2 - Operations - Learning Disability,2 - Operations - Learning Disability,LDP South Cambs - Special Needs
Cambridgeshire County Council,08-Dec-16,22089688-14503668,-2337.29,Dimensions (Uk) Ltd,Care Establishment,2 - Operations - Learning Disability,2 - Operations - Learning Disability,LDP South Cambs - Special Needs
Cambridgeshire County Council,08-Dec-16,22068022-14503686,-2337.29,Dimensions (Uk) Ltd,Care Establishment,2 - Operations - Learning Disability,2 - Operations - Learning Disability,LDP Cambs City - Special Needs
Cambridgeshire County Council,08-Dec-16,22068023-14503687,-2337.29,Dimensions (Uk) Ltd,Care Establishment,2 - Operations - Learning Disability,2 - Operations - Learning Disability,LDP South Cambs - Special Needs
Cambridgeshire County Council,08-Dec-16,22068027-14503691,-2337.29,Dimensions (Uk) Ltd,Care Establishment,2 - Operations - Learning Disability,2 - Operations - Learning Disability,LDP South Cambs - Special Needs
Cambridgeshire County Council,08-Dec-16,22068028-14503692,-2337.29,Dimensions (Uk) Ltd,Care Establishment,2 - Operations - Learning Disability,2 - Operations - Learning Disability,LDP Cambs City - Special Needs
Cambridgeshire County Council,08-Dec-16,22068030-14503694,-2337.29,Dimensions (Uk) Ltd,Care Establishment,2 - Operations - Learning Disability,2 - Operations - Learning Disability,LDP Cambs City - Special Needs
Cambridgeshire County Council,08-Dec-16,22068031-14503695,-2337.29,Dimensions (Uk) Ltd,Care Establishment,2 - Operations - Learning Disability,2 - Operations - Learning Disability,LDP Cambs City - Special Needs
Cambridgeshire County Council,08-Dec-16,22068033-14503697,-2337.29,Dimensions (Uk) Ltd,Care Establishment,2 - Operations - Learning Disability,2 - Operations - Learning Disability,LDP Cambs City - Special Needs
Cambridgeshire County Council,08-Dec-16,22068035-14503699,-2337.29,Dimensions (Uk) Ltd,Care Establishment,2 - Operations - Learning Disability,2 - Operations - Learning Disability,LDP Cambs City - Special Needs
Cambridgeshire County Council,08-Dec-16,22182324-14503565,-2337.29,Dimensions (Uk) Ltd,Care Establishment,2 - Operations - Learning Disability,2 - Operations - Learning Disability,LDP South Cambs - Special Needs
Cambridgeshire County Council,08-Dec-16,22182330-14503571,-2337.29,Dimensions (Uk) Ltd,Care Establishment,2 - Operations - Learning Disability,2 - Operations - Learning Disability,LDP Cambs City - Special Needs
Cambridgeshire County Council,08-Dec-16,22182333-14503574,-2337.29,Dimensions (Uk) Ltd,Care Establishment,2 - Operations - Learning Disability,2 - Operations - Learning Disability,LDP Cambs City - Special Needs
Cambridgeshire County Council,08-Dec-16,22182336-14503576,-2337.29,Dimensions (Uk) Ltd,Care Establishment,2 - Operations - Learning Disability,2 - Operations - Learning Disability,LDP South Cambs - Special Needs
Cambridgeshire County Council,08-Dec-16,22182338-14503578,-2337.29,Dimensions (Uk) Ltd,Care Establishment,2 - Operations - Learning Disability,2 - Operations - Learning Disability,LDP Cambs City - Special Needs
Cambridgeshire County Council,08-Dec-16,22182340-14503580,-2337.29,Dimensions (Uk) Ltd,Care Establishment,2 - Operations - Learning Disability,2 - Operations - Learning Disability,LDP Cambs City - Special Needs
Cambridgeshire County Council,08-Dec-16,22182343-14503582,-2337.29,Dimensions (Uk) Ltd,Care Establishment,2 - Operations - Learning Disability,2 - Operations - Learning Disability,LDP South Cambs - Special Needs
Cambridgeshire County Council,08-Dec-16,22182348-14503585,-2337.29,Dimensions (Uk) Ltd,Care Establishment,2 - Operations - Learning Disability,2 - Operations - Learning Disability,LDP South Cambs - Special Needs
Cambridgeshire County Council,08-Dec-16,22123950-14503590,-2337.29,Dimensions (Uk) Ltd,Care Establishment,2 - Operations - Learning Disability,2 - Operations - Learning Disability,LDP Cambs City - Special Needs
Cambridgeshire County Council,08-Dec-16,22123933-14503591,-2337.29,Dimensions (Uk) Ltd,Care Establishment,2 - Operations - Learning Disability,2 - Operations - Learning Disability,LDP South Cambs - Special Needs
Cambridgeshire County Council,08-Dec-16,22123934-14503592,-2337.29,Dimensions (Uk) Ltd,Care Establishment,2 - Operations - Learning Disability,2 - Operations - Learning Disability,LDP South Cambs - Special Needs
Cambridgeshire County Council,12-Dec-16,22163239-14517492,-2145.53,Guidant Group,Trade Supplier,2 - Commissioning - Older people Pool,2 - Commissioning - Older people Pool,Reablement - East & Fens
Cambridgeshire County Council,30-Dec-16,22260639-14594690,-2112.32,Chs Group,Care Establishment,S&C,S&C,Placements - Social Care
Cambridgeshire County Council,13-Dec-16,22100199-14524597,-1997.36,Rheola Healthcare,Care Establishment,5 - Commissioning - Mental Health & Supporting People,5 - Commissioning - Mental Health & Supporting People,OP Blocks - Care Placements
Cambridgeshire County Council,08-Dec-16,22089848-14501387,-1800,Granta Housing- 71 /73 Fen Road,Care Establishment,2 - Operations - Learning Disability,2 - Operations - Learning Disability,LDP Cambs City - Special Needs
Cambridgeshire County Council,08-Dec-16,22089850-14501389,-1800,Granta Housing- 71 /73 Fen Road,Care Establishment,2 - Operations - Learning Disability,2 - Operations - Learning Disability,LDP South Cambs - Special Needs
Cambridgeshire County Council,08-Dec-16,22089851-14501390,-1800,Granta Housing- 71 /73 Fen Road,Care Establishment,2 - Operations - Learning Disability,2 - Operations - Learning Disability,LDP Cambs City - Special Needs
Cambridgeshire County Council,08-Dec-16,22194854-14501279,-1800,Granta Housing- 71 /73 Fen Road,Care Establishment,2 - Operations - Learning Disability,2 - Operations - Learning Disability,LDP Cambs City - Special Needs
Cambridgeshire County Council,08-Dec-16,22123353-14501282,-1800,Granta Housing- 71 /73 Fen Road,Care Establishment,2 - Operations - Learning Disability,2 - Operations - Learning Disability,LDP South Cambs - Special Needs
Cambridgeshire County Council,08-Dec-16,22123359-14501288,-1800,Granta Housing- 71 /73 Fen Road,Care Establishment,2 - Operations - Learning Disability,2 - Operations - Learning Disability,LDP South Cambs - Special Needs
Cambridgeshire County Council,08-Dec-16,22123362-14501291,-1800,Granta Housing- 71 /73 Fen Road,Care Establishment,2 - Operations - Learning Disability,2 - Operations - Learning Disability,LDP Cambs City - Special Needs
Cambridgeshire County Council,08-Dec-16,22123363-14501292,-1800,Granta Housing- 71 /73 Fen Road,Care Establishment,2 - Operations - Learning Disability,2 - Operations - Learning Disability,LDP Cambs City - Special Needs
Cambridgeshire County Council,08-Dec-16,22123364-14501293,-1800,Granta Housing- 71 /73 Fen Road,Care Establishment,2 - Operations - Learning Disability,2 - Operations - Learning Disability,LDP Cambs City - Special Needs
Cambridgeshire County Council,08-Dec-16,22123368-14501297,-1800,Granta Housing- 71 /73 Fen Road,Care Establishment,2 - Operations - Learning Disability,2 - Operations - Learning Disability,LDP South Cambs - Special Needs
Cambridgeshire County Council,08-Dec-16,22123369-14501298,-1800,Granta Housing- 71 /73 Fen Road,Care Establishment,2 - Operations - Learning Disability,2 - Operations - Learning Disability,LDP Cambs City - Special Needs
Cambridgeshire County Council,08-Dec-16,22123370-14501299,-1800,Granta Housing- 71 /73 Fen Road,Care Establishment,2 - Operations - Learning Disability,2 - Operations - Learning Disability,LDP South Cambs - Special Needs
Cambridgeshire County Council,08-Dec-16,22123371-14501300,-1800,Granta Housing- 71 /73 Fen Road,Care Establishment,2 - Operations - Learning Disability,2 - Operations - Learning Disability,LDP Cambs City - Special Needs
Cambridgeshire County Council,08-Dec-16,22123372-14501301,-1800,Granta Housing- 71 /73 Fen Road,Care Establishment,2 - Operations - Learning Disability,2 - Operations - Learning Disability,LDP South Cambs - Special Needs
Cambridgeshire County Council,08-Dec-16,22123373-14501302,-1800,Granta Housing- 71 /73 Fen Road,Care Establishment,2 - Operations - Learning Disability,2 - Operations - Learning Disability,LDP Cambs City - Special Needs
Cambridgeshire County Council,08-Dec-16,22123376-14501305,-1800,Granta Housing- 71 /73 Fen Road,Care Establishment,2 - Operations - Learning Disability,2 - Operations - Learning Disability,LDP South Cambs - Special Needs
Cambridgeshire County Council,08-Dec-16,22123377-14501306,-1800,Granta Housing- 71 /73 Fen Road,Care Establishment,2 - Operations - Learning Disability,2 - Operations - Learning Disability,LDP South Cambs - Special Needs
Cambridgeshire County Council,08-Dec-16,22123383-14501312,-1800,Granta Housing- 71 /73 Fen Road,Care Establishment,2 - Operations - Learning Disability,2 - Operations - Learning Disability,LDP Cambs City - Special Needs
Cambridgeshire County Council,08-Dec-16,22123385-14501314,-1800,Granta Housing- 71 /73 Fen Road,Care Establishment,2 - Operations - Learning Disability,2 - Operations - Learning Disability,LDP Cambs City - Special Needs
Cambridgeshire County Council,08-Dec-16,22123386-14501315,-1800,Granta Housing- 71 /73 Fen Road,Care Establishment,2 - Operations - Learning Disability,2 - Operations - Learning Disability,LDP Cambs City - Special Needs
Cambridgeshire County Council,08-Dec-16,22123387-14501316,-1800,Granta Housing- 71 /73 Fen Road,Care Establishment,2 - Operations - Learning Disability,2 - Operations - Learning Disability,LDP South Cambs - Special Needs
Cambridgeshire County Council,08-Dec-16,22123388-14501317,-1800,Granta Housing- 71 /73 Fen Road,Care Establishment,2 - Operations - Learning Disability,2 - Operations - Learning Disability,LDP South Cambs - Special Needs
Cambridgeshire County Council,08-Dec-16,22187011-14501318,-1800,Granta Housing- 71 /73 Fen Road,Care Establishment,2 - Operations - Learning Disability,2 - Operations - Learning Disability,LDP South Cambs - Special Needs
Cambridgeshire County Council,08-Dec-16,22187012-14501319,-1800,Granta Housing- 71 /73 Fen Road,Care Establishment,2 - Operations - Learning Disability,2 - Operations - Learning Disability,LDP Cambs City - Special Needs
Cambridgeshire County Council,08-Dec-16,22187014-14501321,-1800,Granta Housing- 71 /73 Fen Road,Care Establishment,2 - Operations - Learning Disability,2 - Operations - Learning Disability,LDP Cambs City - Special Needs
Cambridgeshire County Council,08-Dec-16,22187015-14501322,-1800,Granta Housing- 71 /73 Fen Road,Care Establishment,2 - Operations - Learning Disability,2 - Operations - Learning Disability,LDP Cambs City - Special Needs
Cambridgeshire County Council,08-Dec-16,22187017-14501324,-1800,Granta Housing- 71 /73 Fen Road,Care Establishment,2 - Operations - Learning Disability,2 - Operations - Learning Disability,LDP South Cambs - Special Needs
Cambridgeshire County Council,08-Dec-16,22187020-14501327,-1800,Granta Housing- 71 /73 Fen Road,Care Establishment,2 - Operations - Learning Disability,2 - Operations - Learning Disability,LDP Cambs City - Special Needs
Cambridgeshire County Council,08-Dec-16,22187022-14501329,-1800,Granta Housing- 71 /73 Fen Road,Care Establishment,2 - Operations - Learning Disability,2 - Operations - Learning Disability,LDP South Cambs - Special Needs
Cambridgeshire County Council,08-Dec-16,22187023-14501330,-1800,Granta Housing- 71 /73 Fen Road,Care Establishment,2 - Operations - Learning Disability,2 - Operations - Learning Disability,LDP South Cambs - Special Needs
Cambridgeshire County Council,08-Dec-16,22187025-14501332,-1800,Granta Housing- 71 /73 Fen Road,Care Establishment,2 - Operations - Learning Disability,2 - Operations - Learning Disability,LDP Cambs City - Special Needs
Cambridgeshire County Council,08-Dec-16,22187027-14501334,-1800,Granta Housing- 71 /73 Fen Road,Care Establishment,2 - Operations - Learning Disability,2 - Operations - Learning Disability,LDP Cambs City - Special Needs
Cambridgeshire County Council,08-Dec-16,22187036-14501343,-1800,Granta Housing- 71 /73 Fen Road,Care Establishment,2 - Operations - Learning Disability,2 - Operations - Learning Disability,LDP Cambs City - Special Needs
Cambridgeshire County Council,08-Dec-16,22187037-14501344,-1800,Granta Housing- 71 /73 Fen Road,Care Establishment,2 - Operations - Learning Disability,2 - Operations - Learning Disability,LDP South Cambs - Special Needs
Cambridgeshire County Council,08-Dec-16,22187039-14501346,-1800,Granta Housing- 71 /73 Fen Road,Care Establishment,2 - Operations - Learning Disability,2 - Operations - Learning Disability,LDP Cambs City - Special Needs
Cambridgeshire County Council,08-Dec-16,22187041-14501348,-1800,Granta Housing- 71 /73 Fen Road,Care Establishment,2 - Operations - Learning Disability,2 - Operations - Learning Disability,LDP Cambs City - Special Needs
Cambridgeshire County Council,08-Dec-16,22187044-14501351,-1800,Granta Housing- 71 /73 Fen Road,Care Establishment,2 - Operations - Learning Disability,2 - Operations - Learning Disability,LDP Cambs City - Special Needs
Cambridgeshire County Council,08-Dec-16,22187045-14501352,-1800,Granta Housing- 71 /73 Fen Road,Care Establishment,2 - Operations - Learning Disability,2 - Operations - Learning Disability,LDP Cambs City - Special Needs
Cambridgeshire County Council,08-Dec-16,22187046-14501353,-1800,Granta Housing- 71 /73 Fen Road,Care Establishment,2 - Operations - Learning Disability,2 - Operations - Learning Disability,LDP Cambs City - Special Needs
Cambridgeshire County Council,08-Dec-16,22089856-14501357,-1800,Granta Housing- 71 /73 Fen Road,Care Establishment,2 - Operations - Learning Disability,2 - Operations - Learning Disability,LDP South Cambs - Special Needs
Cambridgeshire County Council,08-Dec-16,22089857-14501358,-1800,Granta Housing- 71 /73 Fen Road,Care Establishment,2 - Operations - Learning Disability,2 - Operations - Learning Disability,LDP South Cambs - Special Needs
Cambridgeshire County Council,08-Dec-16,22089858-14501359,-1800,Granta Housing- 71 /73 Fen Road,Care Establishment,2 - Operations - Learning Disability,2 - Operations - Learning Disability,LDP Cambs City - Special Needs
Cambridgeshire County Council,08-Dec-16,22089859-14501360,-1800,Granta Housing- 71 /73 Fen Road,Care Establishment,2 - Operations - Learning Disability,2 - Operations - Learning Disability,LDP South Cambs - Special Needs
Cambridgeshire County Council,08-Dec-16,22089860-14501361,-1800,Granta Housing- 71 /73 Fen Road,Care Establishment,2 - Operations - Learning Disability,2 - Operations - Learning Disability,LDP Cambs City - Special Needs
Cambridgeshire County Council,08-Dec-16,22089861-14501362,-1800,Granta Housing- 71 /73 Fen Road,Care Establishment,2 - Operations - Learning Disability,2 - Operations - Learning Disability,LDP Cambs City - Special Needs
Cambridgeshire County Council,08-Dec-16,22089862-14501363,-1800,Granta Housing- 71 /73 Fen Road,Care Establishment,2 - Operations - Learning Disability,2 - Operations - Learning Disability,LDP Cambs City - Special Needs
Cambridgeshire County Council,08-Dec-16,22089826-14501365,-1800,Granta Housing- 71 /73 Fen Road,Care Establishment,2 - Operations - Learning Disability,2 - Operations - Learning Disability,LDP Cambs City - Special Needs
Cambridgeshire County Council,08-Dec-16,22089830-14501369,-1800,Granta Housing- 71 /73 Fen Road,Care Establishment,2 - Operations - Learning Disability,2 - Operations - Learning Disability,LDP South Cambs - Special Needs
Cambridgeshire County Council,08-Dec-16,22089839-14501378,-1800,Granta Housing- 71 /73 Fen Road,Care Establishment,2 - Operations - Learning Disability,2 - Operations - Learning Disability,LDP South Cambs - Special Needs
Cambridgeshire County Council,08-Dec-16,22089841-14501380,-1800,Granta Housing- 71 /73 Fen Road,Care Establishment,2 - Operations - Learning Disability,2 - Operations - Learning Disability,LDP Cambs City - Special Needs
Cambridgeshire County Council,08-Dec-16,22089843-14501382,-1800,Granta Housing- 71 /73 Fen Road,Care Establishment,2 - Operations - Learning Disability,2 - Operations - Learning Disability,LDP South Cambs - Special Needs
Cambridgeshire County Council,08-Dec-16,22089844-14501383,-1800,Granta Housing- 71 /73 Fen Road,Care Establishment,2 - Operations - Learning Disability,2 - Operations - Learning Disability,LDP South Cambs - Special Needs
Cambridgeshire County Council,08-Dec-16,22089845-14501384,-1800,Granta Housing- 71 /73 Fen Road,Care Establishment,2 - Operations - Learning Disability,2 - Operations - Learning Disability,LDP Cambs City - Special Needs
Cambridgeshire County Council,08-Dec-16,22089846-14501385,-1800,Granta Housing- 71 /73 Fen Road,Care Establishment,2 - Operations - Learning Disability,2 - Operations - Learning Disability,LDP Cambs City - Special Needs
Cambridgeshire County Council,05-Dec-16,21865944-14471465,-1794.24,Archway Care Ltd (Milton Keynes),Care Establishment,S&C,S&C,Placements - Social Care
Cambridgeshire County Council,30-Dec-16,22140220-14595035,-1656,24 X 7 Ltd,Trade Supplier,S&C,S&C,H to S Transport - Primary
Cambridgeshire County Council,16-Dec-16,22253440-14546617,-1639.43,Affinity Trust,Care Establishment,2 - Operations - Learning Disability,2 - Operations - Learning Disability,LDP Hunts special needs
Cambridgeshire County Council,16-Dec-16,22253444-14546621,-1639.43,Affinity Trust,Care Establishment,2 - Operations - Learning Disability,2 - Operations - Learning Disability,LDP Hunts special needs
Cambridgeshire County Council,16-Dec-16,22253446-14546623,-1639.43,Affinity Trust,Care Establishment,2 - Operations - Learning Disability,2 - Operations - Learning Disability,LDP Hunts special needs
Cambridgeshire County Council,16-Dec-16,22253447-14546624,-1639.43,Affinity Trust,Care Establishment,2 - Operations - Learning Disability,2 - Operations - Learning Disability,LDP Hunts special needs
Cambridgeshire County Council,08-Dec-16,22071394-14487899,-1597.06,Affinity Trust,Care Establishment,2 - Operations - Learning Disability,2 - Operations - Learning Disability,LDP Fenland Locality - Care
Cambridgeshire County Council,30-Dec-16,22316751-14594578,-1588.71,J & G Groundworks & Surfacing,Partnership,Winter Maintenance,Winter Maintenance,Rights of Way and Access
Cambridgeshire County Council,16-Dec-16,22169245-14552386,-1470.08,Guidant Group,Trade Supplier,CSC,CSC,Head of Children In Need
Cambridgeshire County Council,16-Dec-16,22250956-14549665,-1416.58,Sense National Deaf & Blind,Care Establishment,3 - Operations - Countywide Services,3 - Operations - Countywide Services,Countywide PD Service - Care
Cambridgeshire County Council,16-Dec-16,22250958-14549667,-1416.58,Sense National Deaf & Blind,Care Establishment,3 - Operations - Countywide Services,3 - Operations - Countywide Services,Countywide PD Service - Care
Cambridgeshire County Council,16-Dec-16,22250966-14549675,-1416.58,Sense National Deaf & Blind,Care Establishment,3 - Operations - Countywide Services,3 - Operations - Countywide Services,Countywide PD Service - Care
Cambridgeshire County Council,16-Dec-16,22250967-14549676,-1416.58,Sense National Deaf & Blind,Care Establishment,3 - Operations - Countywide Services,3 - Operations - Countywide Services,Countywide PD Service - Care
Cambridgeshire County Council,16-Dec-16,22250968-14549677,-1416.58,Sense National Deaf & Blind,Care Establishment,3 - Operations - Countywide Services,3 - Operations - Countywide Services,Countywide PD Service - Care
Cambridgeshire County Council,16-Dec-16,22250953-14549662,-1214.21,Sense National Deaf & Blind,Care Establishment,3 - Operations - Countywide Services,3 - Operations - Countywide Services,Countywide PD Service - Care
Cambridgeshire County Council,01-Dec-16,22125027-14452248,-1198.04,Caretech Community Services,Care Establishment,2 - Operations - Learning Disability,2 - Operations - Learning Disability,LDP South Cambs - Special Needs
Cambridgeshire County Council,01-Dec-16,22125028-14452249,-1198.04,Caretech Community Services,Care Establishment,2 - Operations - Learning Disability,2 - Operations - Learning Disability,LDP South Cambs Locality - Care
Cambridgeshire County Council,01-Dec-16,22124965-14452254,-1198.04,Caretech Community Services,Care Establishment,2 - Operations - Learning Disability,2 - Operations - Learning Disability,LDP South Cambs - Special Needs
Cambridgeshire County Council,01-Dec-16,22124967-14452256,-1198.04,Caretech Community Services,Care Establishment,2 - Operations - Learning Disability,2 - Operations - Learning Disability,LDP South Cambs - Special Needs
Cambridgeshire County Council,01-Dec-16,22124970-14452259,-1198.04,Caretech Community Services,Care Establishment,2 - Operations - Learning Disability,2 - Operations - Learning Disability,LDP South Cambs Locality - Care
Cambridgeshire County Council,01-Dec-16,22124973-14452262,-1198.04,Caretech Community Services,Care Establishment,2 - Operations - Learning Disability,2 - Operations - Learning Disability,LDP South Cambs Locality - Care
Cambridgeshire County Council,01-Dec-16,22124974-14452263,-1198.04,Caretech Community Services,Care Establishment,2 - Operations - Learning Disability,2 - Operations - Learning Disability,LDP South Cambs - Special Needs
Cambridgeshire County Council,01-Dec-16,22124975-14452264,-1198.04,Caretech Community Services,Care Establishment,2 - Operations - Learning Disability,2 - Operations - Learning Disability,LDP South Cambs Locality - Care
Cambridgeshire County Council,01-Dec-16,22124977-14452266,-1198.04,Caretech Community Services,Care Establishment,2 - Operations - Learning Disability,2 - Operations - Learning Disability,LDP South Cambs - Special Needs
Cambridgeshire County Council,01-Dec-16,22124980-14452269,-1198.04,Caretech Community Services,Care Establishment,2 - Operations - Learning Disability,2 - Operations - Learning Disability,LDP South Cambs Locality - Care
Cambridgeshire County Council,01-Dec-16,22124983-14452272,-1198.04,Caretech Community Services,Care Establishment,2 - Operations - Learning Disability,2 - Operations - Learning Disability,LDP South Cambs - Special Needs
Cambridgeshire County Council,01-Dec-16,22124986-14452275,-1198.04,Caretech Community Services,Care Establishment,2 - Operations - Learning Disability,2 - Operations - Learning Disability,LDP South Cambs - Special Needs
Cambridgeshire County Council,01-Dec-16,22124987-14452276,-1198.04,Caretech Community Services,Care Establishment,2 - Operations - Learning Disability,2 - Operations - Learning Disability,LDP South Cambs - Special Needs
Cambridgeshire County Council,01-Dec-16,22124992-14452281,-1198.04,Caretech Community Services,Care Establishment,2 - Operations - Learning Disability,2 - Operations - Learning Disability,LDP South Cambs Locality - Care
Cambridgeshire County Council,01-Dec-16,22124993-14452282,-1198.04,Caretech Community Services,Care Establishment,2 - Operations - Learning Disability,2 - Operations - Learning Disability,LDP South Cambs - Special Needs
Cambridgeshire County Council,01-Dec-16,22124994-14452283,-1198.04,Caretech Community Services,Care Establishment,2 - Operations - Learning Disability,2 - Operations - Learning Disability,LDP South Cambs - Special Needs
Cambridgeshire County Council,01-Dec-16,22124997-14452286,-1198.04,Caretech Community Services,Care Establishment,2 - Operations - Learning Disability,2 - Operations - Learning Disability,LDP South Cambs Locality - Care
Cambridgeshire County Council,01-Dec-16,22125000-14452289,-1198.04,Caretech Community Services,Care Establishment,2 - Operations - Learning Disability,2 - Operations - Learning Disability,LDP South Cambs Locality - Care
Cambridgeshire County Council,01-Dec-16,22125006-14452295,-1198.04,Caretech Community Services,Care Establishment,2 - Operations - Learning Disability,2 - Operations - Learning Disability,LDP South Cambs - Special Needs
Cambridgeshire County Council,01-Dec-16,22125007-14452296,-1198.04,Caretech Community Services,Care Establishment,2 - Operations - Learning Disability,2 - Operations - Learning Disability,LDP South Cambs - Special Needs
Cambridgeshire County Council,01-Dec-16,22125009-14452230,-1198.04,Caretech Community Services,Care Establishment,2 - Operations - Learning Disability,2 - Operations - Learning Disability,LDP South Cambs - Special Needs
Cambridgeshire County Council,01-Dec-16,22125011-14452232,-1198.04,Caretech Community Services,Care Establishment,2 - Operations - Learning Disability,2 - Operations - Learning Disability,LDP South Cambs Locality - Care
Cambridgeshire County Council,01-Dec-16,22125013-14452234,-1198.04,Caretech Community Services,Care Establishment,2 - Operations - Learning Disability,2 - Operations - Learning Disability,LDP South Cambs Locality - Care
Cambridgeshire County Council,01-Dec-16,22125017-14452238,-1198.04,Caretech Community Services,Care Establishment,2 - Operations - Learning Disability,2 - Operations - Learning Disability,LDP South Cambs - Special Needs
Cambridgeshire County Council,01-Dec-16,22125018-14452239,-1198.04,Caretech Community Services,Care Establishment,2 - Operations - Learning Disability,2 - Operations - Learning Disability,LDP South Cambs - Special Needs
Cambridgeshire County Council,01-Dec-16,22125019-14452240,-1198.04,Caretech Community Services,Care Establishment,2 - Operations - Learning Disability,2 - Operations - Learning Disability,LDP South Cambs - Special Needs
Cambridgeshire County Council,01-Dec-16,22125021-14452242,-1198.04,Caretech Community Services,Care Establishment,2 - Operations - Learning Disability,2 - Operations - Learning Disability,LDP South Cambs - Special Needs
Cambridgeshire County Council,08-Dec-16,22184348-14494990,-1198.04,Caretech Community Services,Care Establishment,2 - Operations - Learning Disability,2 - Operations - Learning Disability,LDP South Cambs - Special Needs
Cambridgeshire County Council,08-Dec-16,22184350-14494992,-1198.04,Caretech Community Services,Care Establishment,2 - Operations - Learning Disability,2 - Operations - Learning Disability,LDP South Cambs Locality - Care
Cambridgeshire County Council,08-Dec-16,22184351-14494993,-1198.04,Caretech Community Services,Care Establishment,2 - Operations - Learning Disability,2 - Operations - Learning Disability,LDP South Cambs Locality - Care
Cambridgeshire County Council,08-Dec-16,22184352-14494994,-1198.04,Caretech Community Services,Care Establishment,2 - Operations - Learning Disability,2 - Operations - Learning Disability,LDP South Cambs Locality - Care
Cambridgeshire County Council,08-Dec-16,22184355-14494997,-1198.04,Caretech Community Services,Care Establishment,2 - Operations - Learning Disability,2 - Operations - Learning Disability,LDP South Cambs Locality - Care
Cambridgeshire County Council,08-Dec-16,22184358-14495000,-1198.04,Caretech Community Services,Care Establishment,2 - Operations - Learning Disability,2 - Operations - Learning Disability,LDP South Cambs Locality - Care
Cambridgeshire County Council,08-Dec-16,22184361-14495003,-1198.04,Caretech Community Services,Care Establishment,2 - Operations - Learning Disability,2 - Operations - Learning Disability,LDP South Cambs - Special Needs
Cambridgeshire County Council,08-Dec-16,22184362-14495004,-1198.04,Caretech Community Services,Care Establishment,2 - Operations - Learning Disability,2 - Operations - Learning Disability,LDP South Cambs Locality - Care
Cambridgeshire County Council,08-Dec-16,22184363-14495005,-1198.04,Caretech Community Services,Care Establishment,2 - Operations - Learning Disability,2 - Operations - Learning Disability,LDP South Cambs Locality - Care
Cambridgeshire County Council,08-Dec-16,22184365-14495007,-1198.04,Caretech Community Services,Care Establishment,2 - Operations - Learning Disability,2 - Operations - Learning Disability,LDP South Cambs Locality - Care
Cambridgeshire County Council,08-Dec-16,22184367-14495009,-1198.04,Caretech Community Services,Care Establishment,2 - Operations - Learning Disability,2 - Operations - Learning Disability,LDP South Cambs Locality - Care
Cambridgeshire County Council,08-Dec-16,22184369-14495011,-1198.04,Caretech Community Services,Care Establishment,2 - Operations - Learning Disability,2 - Operations - Learning Disability,LDP South Cambs - Special Needs
Cambridgeshire County Council,08-Dec-16,22184370-14495012,-1198.04,Caretech Community Services,Care Establishment,2 - Operations - Learning Disability,2 - Operations - Learning Disability,LDP South Cambs - Special Needs
Cambridgeshire County Council,08-Dec-16,22184371-14495013,-1198.04,Caretech Community Services,Care Establishment,2 - Operations - Learning Disability,2 - Operations - Learning Disability,LDP South Cambs Locality - Care
Cambridgeshire County Council,08-Dec-16,22184372-14495014,-1198.04,Caretech Community Services,Care Establishment,2 - Operations - Learning Disability,2 - Operations - Learning Disability,LDP South Cambs - Special Needs
Cambridgeshire County Council,08-Dec-16,22184375-14495017,-1198.04,Caretech Community Services,Care Establishment,2 - Operations - Learning Disability,2 - Operations - Learning Disability,LDP South Cambs - Special Needs
Cambridgeshire County Council,08-Dec-16,22184378-14495020,-1198.04,Caretech Community Services,Care Establishment,2 - Operations - Learning Disability,2 - Operations - Learning Disability,LDP South Cambs Locality - Care
Cambridgeshire County Council,08-Dec-16,22184381-14495023,-1198.04,Caretech Community Services,Care Establishment,2 - Operations - Learning Disability,2 - Operations - Learning Disability,LDP South Cambs Locality - Care
Cambridgeshire County Council,08-Dec-16,22184383-14495025,-1198.04,Caretech Community Services,Care Establishment,2 - Operations - Learning Disability,2 - Operations - Learning Disability,LDP South Cambs Locality - Care
Cambridgeshire County Council,08-Dec-16,22184384-14495026,-1198.04,Caretech Community Services,Care Establishment,2 - Operations - Learning Disability,2 - Operations - Learning Disability,LDP South Cambs - Special Needs
Cambridgeshire County Council,08-Dec-16,22184387-14495029,-1198.04,Caretech Community Services,Care Establishment,2 - Operations - Learning Disability,2 - Operations - Learning Disability,LDP South Cambs - Special Needs
Cambridgeshire County Council,08-Dec-16,22184394-14495036,-1198.04,Caretech Community Services,Care Establishment,2 - Operations - Learning Disability,2 - Operations - Learning Disability,LDP South Cambs - Special Needs
Cambridgeshire County Council,08-Dec-16,22184395-14495037,-1198.04,Caretech Community Services,Care Establishment,2 - Operations - Learning Disability,2 - Operations - Learning Disability,LDP South Cambs - Special Needs
Cambridgeshire County Council,08-Dec-16,22184400-14495042,-1198.04,Caretech Community Services,Care Establishment,2 - Operations - Learning Disability,2 - Operations - Learning Disability,LDP South Cambs Locality - Care
Cambridgeshire County Council,08-Dec-16,22184401-14495043,-1198.04,Caretech Community Services,Care Establishment,2 - Operations - Learning Disability,2 - Operations - Learning Disability,LDP South Cambs Locality - Care
Cambridgeshire County Council,08-Dec-16,22184402-14495044,-1198.04,Caretech Community Services,Care Establishment,2 - Operations - Learning Disability,2 - Operations - Learning Disability,LDP South Cambs Locality - Care
Cambridgeshire County Council,08-Dec-16,22184405-14495047,-1198.04,Caretech Community Services,Care Establishment,2 - Operations - Learning Disability,2 - Operations - Learning Disability,LDP South Cambs Locality - Care
Cambridgeshire County Council,22-Dec-16,22257841-14575744,-1198.04,Caretech Community Services,Care Establishment,2 - Operations - Learning Disability,2 - Operations - Learning Disability,LDP South Cambs Locality - Care
Cambridgeshire County Council,22-Dec-16,22257844-14575747,-1198.04,Caretech Community Services,Care Establishment,2 - Operations - Learning Disability,2 - Operations - Learning Disability,LDP South Cambs Locality - Care
Cambridgeshire County Council,22-Dec-16,22257846-14575749,-1198.04,Caretech Community Services,Care Establishment,2 - Operations - Learning Disability,2 - Operations - Learning Disability,LDP South Cambs Locality - Care
Cambridgeshire County Council,22-Dec-16,22257847-14575750,-1198.04,Caretech Community Services,Care Establishment,2 - Operations - Learning Disability,2 - Operations - Learning Disability,LDP South Cambs Locality - Care
Cambridgeshire County Council,22-Dec-16,22257849-14575752,-1198.04,Caretech Community Services,Care Establishment,2 - Operations - Learning Disability,2 - Operations - Learning Disability,LDP South Cambs Locality - Care
Cambridgeshire County Council,22-Dec-16,22257850-14575753,-1198.04,Caretech Community Services,Care Establishment,2 - Operations - Learning Disability,2 - Operations - Learning Disability,LDP South Cambs - Special Needs
Cambridgeshire County Council,22-Dec-16,22257853-14575756,-1198.04,Caretech Community Services,Care Establishment,2 - Operations - Learning Disability,2 - Operations - Learning Disability,LDP South Cambs - Special Needs
Cambridgeshire County Council,22-Dec-16,22257854-14575757,-1198.04,Caretech Community Services,Care Establishment,2 - Operations - Learning Disability,2 - Operations - Learning Disability,LDP South Cambs Locality - Care
Cambridgeshire County Council,22-Dec-16,22257855-14575758,-1198.04,Caretech Community Services,Care Establishment,2 - Operations - Learning Disability,2 - Operations - Learning Disability,LDP South Cambs Locality - Care
Cambridgeshire County Council,22-Dec-16,22257856-14575759,-1198.04,Caretech Community Services,Care Establishment,2 - Operations - Learning Disability,2 - Operations - Learning Disability,LDP South Cambs - Special Needs
Cambridgeshire County Council,22-Dec-16,22257857-14575760,-1198.04,Caretech Community Services,Care Establishment,2 - Operations - Learning Disability,2 - Operations - Learning Disability,LDP South Cambs Locality - Care
Cambridgeshire County Council,22-Dec-16,22257858-14575761,-1198.04,Caretech Community Services,Care Establishment,2 - Operations - Learning Disability,2 - Operations - Learning Disability,LDP South Cambs - Special Needs
Cambridgeshire County Council,22-Dec-16,22257860-14575763,-1198.04,Caretech Community Services,Care Establishment,2 - Operations - Learning Disability,2 - Operations - Learning Disability,LDP South Cambs - Special Needs
Cambridgeshire County Council,22-Dec-16,22257861-14575764,-1198.04,Caretech Community Services,Care Establishment,2 - Operations - Learning Disability,2 - Operations - Learning Disability,LDP South Cambs Locality - Care
Cambridgeshire County Council,22-Dec-16,22257862-14575765,-1198.04,Caretech Community Services,Care Establishment,2 - Operations - Learning Disability,2 - Operations - Learning Disability,LDP South Cambs - Special Needs
Cambridgeshire County Council,22-Dec-16,22277854-14575780,-1198.04,Caretech Community Services,Care Establishment,2 - Operations - Learning Disability,2 - Operations - Learning Disability,LDP South Cambs Locality - Care
Cambridgeshire County Council,22-Dec-16,22277855-14575781,-1198.04,Caretech Community Services,Care Establishment,2 - Operations - Learning Disability,2 - Operations - Learning Disability,LDP South Cambs - Special Needs
Cambridgeshire County Council,22-Dec-16,22277856-14575782,-1198.04,Caretech Community Services,Care Establishment,2 - Operations - Learning Disability,2 - Operations - Learning Disability,LDP South Cambs Locality - Care
Cambridgeshire County Council,22-Dec-16,22277861-14575787,-1198.04,Caretech Community Services,Care Establishment,2 - Operations - Learning Disability,2 - Operations - Learning Disability,LDP South Cambs Locality - Care
Cambridgeshire County Council,22-Dec-16,22277863-14575789,-1198.04,Caretech Community Services,Care Establishment,2 - Operations - Learning Disability,2 - Operations - Learning Disability,LDP South Cambs - Special Needs
Cambridgeshire County Council,22-Dec-16,22277864-14575790,-1198.04,Caretech Community Services,Care Establishment,2 - Operations - Learning Disability,2 - Operations - Learning Disability,LDP South Cambs Locality - Care
Cambridgeshire County Council,22-Dec-16,22277868-14575794,-1198.04,Caretech Community Services,Care Establishment,2 - Operations - Learning Disability,2 - Operations - Learning Disability,LDP South Cambs Locality - Care
Cambridgeshire County Council,22-Dec-16,22277869-14575795,-1198.04,Caretech Community Services,Care Establishment,2 - Operations - Learning Disability,2 - Operations - Learning Disability,LDP South Cambs Locality - Care
Cambridgeshire County Council,22-Dec-16,22277870-14575796,-1198.04,Caretech Community Services,Care Establishment,2 - Operations - Learning Disability,2 - Operations - Learning Disability,LDP South Cambs Locality - Care
Cambridgeshire County Council,22-Dec-16,22277872-14575798,-1198.04,Caretech Community Services,Care Establishment,2 - Operations - Learning Disability,2 - Operations - Learning Disability,LDP South Cambs - Special Needs
Cambridgeshire County Council,22-Dec-16,22276858-14575800,-1198.04,Caretech Community Services,Care Establishment,2 - Operations - Learning Disability,2 - Operations - Learning Disability,LDP South Cambs - Special Needs
Cambridgeshire County Council,22-Dec-16,22276860-14575802,-1198.04,Caretech Community Services,Care Establishment,2 - Operations - Learning Disability,2 - Operations - Learning Disability,LDP South Cambs - Special Needs
Cambridgeshire County Council,22-Dec-16,22276861-14575803,-1198.04,Caretech Community Services,Care Establishment,2 - Operations - Learning Disability,2 - Operations - Learning Disability,LDP South Cambs - Special Needs
Cambridgeshire County Council,22-Dec-16,22275843-14575832,-1198.04,Caretech Community Services,Care Establishment,2 - Operations - Learning Disability,2 - Operations - Learning Disability,LDP South Cambs - Special Needs
Cambridgeshire County Council,22-Dec-16,22275846-14575835,-1198.04,Caretech Community Services,Care Establishment,2 - Operations - Learning Disability,2 - Operations - Learning Disability,LDP South Cambs Locality - Care
Cambridgeshire County Council,22-Dec-16,22275848-14575837,-1198.04,Caretech Community Services,Care Establishment,2 - Operations - Learning Disability,2 - Operations - Learning Disability,LDP South Cambs - Special Needs
Cambridgeshire County Council,22-Dec-16,22275851-14575840,-1198.04,Caretech Community Services,Care Establishment,2 - Operations - Learning Disability,2 - Operations - Learning Disability,LDP South Cambs - Special Needs
Cambridgeshire County Council,22-Dec-16,22275852-14575841,-1198.04,Caretech Community Services,Care Establishment,2 - Operations - Learning Disability,2 - Operations - Learning Disability,LDP South Cambs - Special Needs
Cambridgeshire County Council,22-Dec-16,22275853-14575842,-1198.04,Caretech Community Services,Care Establishment,2 - Operations - Learning Disability,2 - Operations - Learning Disability,LDP South Cambs Locality - Care
Cambridgeshire County Council,22-Dec-16,22275858-14575847,-1198.04,Caretech Community Services,Care Establishment,2 - Operations - Learning Disability,2 - Operations - Learning Disability,LDP South Cambs Locality - Care
Cambridgeshire County Council,22-Dec-16,22275859-14575848,-1198.04,Caretech Community Services,Care Establishment,2 - Operations - Learning Disability,2 - Operations - Learning Disability,LDP South Cambs - Special Needs
Cambridgeshire County Council,22-Dec-16,22275861-14575850,-1198.04,Caretech Community Services,Care Establishment,2 - Operations - Learning Disability,2 - Operations - Learning Disability,LDP South Cambs - Special Needs
Cambridgeshire County Council,22-Dec-16,22275862-14575851,-1198.04,Caretech Community Services,Care Establishment,2 - Operations - Learning Disability,2 - Operations - Learning Disability,LDP South Cambs - Special Needs
Cambridgeshire County Council,22-Dec-16,22275863-14575852,-1198.04,Caretech Community Services,Care Establishment,2 - Operations - Learning Disability,2 - Operations - Learning Disability,LDP South Cambs Locality - Care
Cambridgeshire County Council,22-Dec-16,22275865-14575854,-1198.04,Caretech Community Services,Care Establishment,2 - Operations - Learning Disability,2 - Operations - Learning Disability,LDP South Cambs - Special Needs
Cambridgeshire County Council,22-Dec-16,22275867-14575856,-1198.04,Caretech Community Services,Care Establishment,2 - Operations - Learning Disability,2 - Operations - Learning Disability,LDP South Cambs - Special Needs
Cambridgeshire County Council,22-Dec-16,22275869-14575858,-1198.04,Caretech Community Services,Care Establishment,2 - Operations - Learning Disability,2 - Operations - Learning Disability,LDP South Cambs - Special Needs
Cambridgeshire County Council,22-Dec-16,22257866-14575861,-1198.04,Caretech Community Services,Care Establishment,2 - Operations - Learning Disability,2 - Operations - Learning Disability,LDP South Cambs - Special Needs
Cambridgeshire County Council,22-Dec-16,22257867-14575862,-1198.04,Caretech Community Services,Care Establishment,2 - Operations - Learning Disability,2 - Operations - Learning Disability,LDP South Cambs Locality - Care
Cambridgeshire County Council,22-Dec-16,22257868-14575863,-1198.04,Caretech Community Services,Care Establishment,2 - Operations - Learning Disability,2 - Operations - Learning Disability,LDP South Cambs - Special Needs
Cambridgeshire County Council,22-Dec-16,22257870-14575865,-1198.04,Caretech Community Services,Care Establishment,2 - Operations - Learning Disability,2 - Operations - Learning Disability,LDP South Cambs - Special Needs
Cambridgeshire County Council,22-Dec-16,22257871-14575866,-1198.04,Caretech Community Services,Care Establishment,2 - Operations - Learning Disability,2 - Operations - Learning Disability,LDP South Cambs Locality - Care
Cambridgeshire County Council,22-Dec-16,22257880-14575875,-1198.04,Caretech Community Services,Care Establishment,2 - Operations - Learning Disability,2 - Operations - Learning Disability,LDP South Cambs - Special Needs
Cambridgeshire County Council,22-Dec-16,22257882-14575877,-1198.04,Caretech Community Services,Care Establishment,2 - Operations - Learning Disability,2 - Operations - Learning Disability,LDP South Cambs Locality - Care
Cambridgeshire County Council,22-Dec-16,22257884-14575879,-1198.04,Caretech Community Services,Care Establishment,2 - Operations - Learning Disability,2 - Operations - Learning Disability,LDP South Cambs - Special Needs
Cambridgeshire County Council,22-Dec-16,22257886-14575881,-1198.04,Caretech Community Services,Care Establishment,2 - Operations - Learning Disability,2 - Operations - Learning Disability,LDP South Cambs Locality - Care
Cambridgeshire County Council,22-Dec-16,22257888-14575883,-1198.04,Caretech Community Services,Care Establishment,2 - Operations - Learning Disability,2 - Operations - Learning Disability,LDP South Cambs - Special Needs
Cambridgeshire County Council,22-Dec-16,22257889-14575884,-1198.04,Caretech Community Services,Care Establishment,2 - Operations - Learning Disability,2 - Operations - Learning Disability,LDP South Cambs - Special Needs
Cambridgeshire County Council,22-Dec-16,22257890-14575885,-1198.04,Caretech Community Services,Care Establishment,2 - Operations - Learning Disability,2 - Operations - Learning Disability,LDP South Cambs - Special Needs
Cambridgeshire County Council,29-Dec-16,22310849-14590692,-1198.04,Caretech Community Services,Care Establishment,2 - Operations - Learning Disability,2 - Operations - Learning Disability,LDP South Cambs - Special Needs
Cambridgeshire County Council,29-Dec-16,22310853-14590696,-1198.04,Caretech Community Services,Care Establishment,2 - Operations - Learning Disability,2 - Operations - Learning Disability,LDP South Cambs Locality - Care
Cambridgeshire County Council,29-Dec-16,22310854-14590697,-1198.04,Caretech Community Services,Care Establishment,2 - Operations - Learning Disability,2 - Operations - Learning Disability,LDP South Cambs Locality - Care
Cambridgeshire County Council,29-Dec-16,22310855-14590698,-1198.04,Caretech Community Services,Care Establishment,2 - Operations - Learning Disability,2 - Operations - Learning Disability,LDP South Cambs Locality - Care
Cambridgeshire County Council,29-Dec-16,22310857-14590700,-1198.04,Caretech Community Services,Care Establishment,2 - Operations - Learning Disability,2 - Operations - Learning Disability,LDP South Cambs - Special Needs
Cambridgeshire County Council,29-Dec-16,22310858-14590701,-1198.04,Caretech Community Services,Care Establishment,2 - Operations - Learning Disability,2 - Operations - Learning Disability,LDP South Cambs Locality - Care
Cambridgeshire County Council,29-Dec-16,22310859-14590702,-1198.04,Caretech Community Services,Care Establishment,2 - Operations - Learning Disability,2 - Operations - Learning Disability,LDP South Cambs - Special Needs
Cambridgeshire County Council,29-Dec-16,22310860-14590703,-1198.04,Caretech Community Services,Care Establishment,2 - Operations - Learning Disability,2 - Operations - Learning Disability,LDP South Cambs Locality - Care
Cambridgeshire County Council,29-Dec-16,22310861-14590704,-1198.04,Caretech Community Services,Care Establishment,2 - Operations - Learning Disability,2 - Operations - Learning Disability,LDP South Cambs Locality - Care
Cambridgeshire County Council,29-Dec-16,22310863-14590706,-1198.04,Caretech Community Services,Care Establishment,2 - Operations - Learning Disability,2 - Operations - Learning Disability,LDP South Cambs - Special Needs
Cambridgeshire County Council,29-Dec-16,22310865-14590708,-1198.04,Caretech Community Services,Care Establishment,2 - Operations - Learning Disability,2 - Operations - Learning Disability,LDP South Cambs Locality - Care
Cambridgeshire County Council,29-Dec-16,22310866-14590709,-1198.04,Caretech Community Services,Care Establishment,2 - Operations - Learning Disability,2 - Operations - Learning Disability,LDP South Cambs - Special Needs
Cambridgeshire County Council,29-Dec-16,22310869-14590712,-1198.04,Caretech Community Services,Care Establishment,2 - Operations - Learning Disability,2 - Operations - Learning Disability,LDP South Cambs Locality - Care
Cambridgeshire County Council,29-Dec-16,22310871-14590714,-1198.04,Caretech Community Services,Care Establishment,2 - Operations - Learning Disability,2 - Operations - Learning Disability,LDP South Cambs Locality - Care
Cambridgeshire County Council,29-Dec-16,22310873-14590716,-1198.04,Caretech Community Services,Care Establishment,2 - Operations - Learning Disability,2 - Operations - Learning Disability,LDP South Cambs Locality - Care
Cambridgeshire County Council,29-Dec-16,22310876-14590719,-1198.04,Caretech Community Services,Care Establishment,2 - Operations - Learning Disability,2 - Operations - Learning Disability,LDP South Cambs - Special Needs
Cambridgeshire County Council,29-Dec-16,22309161-14590789,-1198.04,Caretech Community Services,Care Establishment,2 - Operations - Learning Disability,2 - Operations - Learning Disability,LDP South Cambs Locality - Care
Cambridgeshire County Council,29-Dec-16,22309162-14590790,-1198.04,Caretech Community Services,Care Establishment,2 - Operations - Learning Disability,2 - Operations - Learning Disability,LDP South Cambs Locality - Care
Cambridgeshire County Council,29-Dec-16,22309170-14590798,-1198.04,Caretech Community Services,Care Establishment,2 - Operations - Learning Disability,2 - Operations - Learning Disability,LDP South Cambs - Special Needs
Cambridgeshire County Council,29-Dec-16,22309171-14590799,-1198.04,Caretech Community Services,Care Establishment,2 - Operations - Learning Disability,2 - Operations - Learning Disability,LDP South Cambs - Special Needs
Cambridgeshire County Council,29-Dec-16,22309173-14590801,-1198.04,Caretech Community Services,Care Establishment,2 - Operations - Learning Disability,2 - Operations - Learning Disability,LDP South Cambs - Special Needs
Cambridgeshire County Council,29-Dec-16,22309176-14590804,-1198.04,Caretech Community Services,Care Establishment,2 - Operations - Learning Disability,2 - Operations - Learning Disability,LDP South Cambs Locality - Care
Cambridgeshire County Council,29-Dec-16,22309178-14590806,-1198.04,Caretech Community Services,Care Establishment,2 - Operations - Learning Disability,2 - Operations - Learning Disability,LDP South Cambs Locality - Care
Cambridgeshire County Council,29-Dec-16,22309179-14590807,-1198.04,Caretech Community Services,Care Establishment,2 - Operations - Learning Disability,2 - Operations - Learning Disability,LDP South Cambs Locality - Care
Cambridgeshire County Council,29-Dec-16,22309188-14590816,-1198.04,Caretech Community Services,Care Establishment,2 - Operations - Learning Disability,2 - Operations - Learning Disability,LDP South Cambs Locality - Care
Cambridgeshire County Council,29-Dec-16,22309189-14590817,-1198.04,Caretech Community Services,Care Establishment,2 - Operations - Learning Disability,2 - Operations - Learning Disability,LDP South Cambs Locality - Care
Cambridgeshire County Council,29-Dec-16,22309190-14590818,-1198.04,Caretech Community Services,Care Establishment,2 - Operations - Learning Disability,2 - Operations - Learning Disability,LDP South Cambs - Special Needs
Cambridgeshire County Council,28-Dec-16,22045779-14585833,-1195.91,Hadleigh Marketing Services Ltd,Trade Supplier,LGSS Managed,LGSS Managed,LGSS Property Trading Recharges
Cambridgeshire County Council,22-Dec-16,21808320-14573897,-1137.98,Chubb Fire & Security Ltd,Company,LGSS Managed,LGSS Managed,Roger Ascham Library
Cambridgeshire County Council,28-Dec-16,22240346-14586181,-1123.2,National Teaching & Advisory Service For Looked After Children (Nt & As),Other Public Bodies,E&P,E&P,SEND Specialist Services - Access & Inclusion
Cambridgeshire County Council,28-Dec-16,22241295-14586182,-1123.2,National Teaching & Advisory Service For Looked After Children (Nt & As),Other Public Bodies,E&P,E&P,SEND Specialist Services - Access & Inclusion
Cambridgeshire County Council,08-Dec-16,22021768-14503979,-1036,Redacted Personal Data,Redacted Personal Data,3 - Operations - Countywide Services,3 - Operations - Countywide Services,Countywide PD Service - Care
Cambridgeshire County Council,08-Dec-16,22021769-14503980,-1036,Redacted Personal Data,Redacted Personal Data,3 - Operations - Countywide Services,3 - Operations - Countywide Services,Countywide PD Service - Care
Cambridgeshire County Council,08-Dec-16,22021770-14503981,-1036,Redacted Personal Data,Redacted Personal Data,3 - Operations - Countywide Services,3 - Operations - Countywide Services,Countywide PD Service - Care
Cambridgeshire County Council,08-Dec-16,22021772-14503983,-1036,Redacted Personal Data,Redacted Personal Data,3 - Operations - Countywide Services,3 - Operations - Countywide Services,Countywide PD Service - Care
Cambridgeshire County Council,08-Dec-16,22021773-14503984,-1036,Redacted Personal Data,Redacted Personal Data,3 - Operations - Countywide Services,3 - Operations - Countywide Services,Countywide PD Service - Care
Cambridgeshire County Council,08-Dec-16,22021774-14503985,-1036,Redacted Personal Data,Redacted Personal Data,3 - Operations - Countywide Services,3 - Operations - Countywide Services,Countywide PD Service - Care
Cambridgeshire County Council,08-Dec-16,22021775-14503986,-1036,Redacted Personal Data,Redacted Personal Data,3 - Operations - Countywide Services,3 - Operations - Countywide Services,Countywide PD Service - Care
Cambridgeshire County Council,08-Dec-16,22021781-14503992,-1036,Redacted Personal Data,Redacted Personal Data,3 - Operations - Countywide Services,3 - Operations - Countywide Services,Countywide PD Service - Care
Cambridgeshire County Council,01-Dec-16,22125022-14452243,-1026.89,Caretech Community Services,Care Establishment,2 - Operations - Learning Disability,2 - Operations - Learning Disability,LDP South Cambs Locality - Care
Cambridgeshire County Council,08-Dec-16,22184386-14495028,-1026.89,Caretech Community Services,Care Establishment,2 - Operations - Learning Disability,2 - Operations - Learning Disability,LDP South Cambs Locality - Care
Cambridgeshire County Council,22-Dec-16,22277860-14575786,-1026.89,Caretech Community Services,Care Establishment,2 - Operations - Learning Disability,2 - Operations - Learning Disability,LDP South Cambs - Special Needs
Cambridgeshire County Council,22-Dec-16,22257878-14575873,-1026.89,Caretech Community Services,Care Establishment,2 - Operations - Learning Disability,2 - Operations - Learning Disability,LDP South Cambs Locality - Care
Cambridgeshire County Council,29-Dec-16,22310872-14590715,-1026.89,Caretech Community Services,Care Establishment,2 - Operations - Learning Disability,2 - Operations - Learning Disability,LDP South Cambs - Special Needs
Cambridgeshire County Council,16-Dec-16,22255917-14551997,-989.13,The Edmund Trust,Care Establishment,2 - Operations - Learning Disability,2 - Operations - Learning Disability,LDP South Cambs Locality - Care
Cambridgeshire County Council,16-Dec-16,22255919-14551999,-989.13,The Edmund Trust,Care Establishment,2 - Operations - Learning Disability,2 - Operations - Learning Disability,LDP South Cambs Locality - Care
Cambridgeshire County Council,16-Dec-16,22255921-14552001,-989.13,The Edmund Trust,Care Establishment,2 - Operations - Learning Disability,2 - Operations - Learning Disability,LDP South Cambs Locality - Care
Cambridgeshire County Council,16-Dec-16,22255923-14552003,-989.13,The Edmund Trust,Care Establishment,2 - Operations - Learning Disability,2 - Operations - Learning Disability,LDP South Cambs Locality - Care
Cambridgeshire County Council,16-Dec-16,22255924-14552004,-989.13,The Edmund Trust,Care Establishment,2 - Operations - Learning Disability,2 - Operations - Learning Disability,LDP South Cambs Locality - Care
Cambridgeshire County Council,16-Dec-16,22255927-14552007,-989.13,The Edmund Trust,Care Establishment,2 - Operations - Learning Disability,2 - Operations - Learning Disability,LDP South Cambs Locality - Care
Cambridgeshire County Council,16-Dec-16,22255928-14552008,-989.13,The Edmund Trust,Care Establishment,2 - Operations - Learning Disability,2 - Operations - Learning Disability,LDP South Cambs Locality - Care
Cambridgeshire County Council,16-Dec-16,22255930-14552010,-989.13,The Edmund Trust,Care Establishment,2 - Operations - Learning Disability,2 - Operations - Learning Disability,LDP South Cambs Locality - Care
Cambridgeshire County Council,16-Dec-16,22255931-14552011,-989.13,The Edmund Trust,Care Establishment,2 - Operations - Learning Disability,2 - Operations - Learning Disability,LDP South Cambs Locality - Care
Cambridgeshire County Council,16-Dec-16,22255933-14552013,-989.13,The Edmund Trust,Care Establishment,2 - Operations - Learning Disability,2 - Operations - Learning Disability,LDP South Cambs Locality - Care
Cambridgeshire County Council,15-Dec-16,22240197-14535809,-961.63,T C Harrison Group Ltd,Trade Supplier,LGSS Managed,LGSS Managed,LGSS Property Trading Recharges
Cambridgeshire County Council,22-Dec-16,22273471-14574623,-933.68,Making Space#1,Care Establishment,2 - Commissioning - Older people Pool,2 - Commissioning - Older people Pool,Older People Mental Health E Cambs
Cambridgeshire County Council,22-Dec-16,22273472-14574624,-933.68,Making Space#1,Care Establishment,2 - Commissioning - Older people Pool,2 - Commissioning - Older people Pool,Older People Mental Health E Cambs
Cambridgeshire County Council,22-Dec-16,22273439-14574629,-933.68,Making Space#1,Care Establishment,2 - Commissioning - Older people Pool,2 - Commissioning - Older people Pool,Older People Mental Health E Cambs
Cambridgeshire County Council,22-Dec-16,22273440-14574630,-933.68,Making Space#1,Care Establishment,2 - Commissioning - Older people Pool,2 - Commissioning - Older people Pool,Older People Mental Health E Cambs
Cambridgeshire County Council,22-Dec-16,22273447-14574636,-933.68,Making Space#1,Care Establishment,2 - Commissioning - Older people Pool,2 - Commissioning - Older people Pool,Older People Mental Health E Cambs
Cambridgeshire County Council,22-Dec-16,22273448-14574637,-933.68,Making Space#1,Care Establishment,2 - Commissioning - Older people Pool,2 - Commissioning - Older people Pool,Older People Mental Health E Cambs
Cambridgeshire County Council,22-Dec-16,22273454-14574642,-933.68,Making Space#1,Care Establishment,2 - Commissioning - Older people Pool,2 - Commissioning - Older people Pool,Older People Mental Health E Cambs
Cambridgeshire County Council,22-Dec-16,22273457-14574645,-933.68,Making Space#1,Care Establishment,2 - Commissioning - Older people Pool,2 - Commissioning - Older people Pool,Older People Mental Health E Cambs
Cambridgeshire County Council,22-Dec-16,22273459-14574647,-933.68,Making Space#1,Care Establishment,2 - Commissioning - Older people Pool,2 - Commissioning - Older people Pool,Older People Mental Health E Cambs
Cambridgeshire County Council,22-Dec-16,22273461-14574649,-933.68,Making Space#1,Care Establishment,2 - Commissioning - Older people Pool,2 - Commissioning - Older people Pool,Older People Mental Health E Cambs
Cambridgeshire County Council,22-Dec-16,22273464-14574651,-933.68,Making Space#1,Care Establishment,2 - Commissioning - Older people Pool,2 - Commissioning - Older people Pool,Older People Mental Health E Cambs
Cambridgeshire County Council,22-Dec-16,22273465-14574652,-933.68,Making Space#1,Care Establishment,2 - Commissioning - Older people Pool,2 - Commissioning - Older people Pool,Older People Mental Health E Cambs
Cambridgeshire County Council,22-Dec-16,22273466-14574653,-933.68,Making Space#1,Care Establishment,2 - Commissioning - Older people Pool,2 - Commissioning - Older people Pool,Older People Mental Health E Cambs
Cambridgeshire County Council,22-Dec-16,22273469-14574656,-933.68,Making Space#1,Care Establishment,2 - Commissioning - Older people Pool,2 - Commissioning - Older people Pool,Older People Mental Health E Cambs
Cambridgeshire County Council,22-Dec-16,22275468-14574607,-933.68,Making Space#1,Care Establishment,2 - Commissioning - Older people Pool,2 - Commissioning - Older people Pool,Older People Mental Health E Cambs
Cambridgeshire County Council,22-Dec-16,22275474-14574613,-933.68,Making Space#1,Care Establishment,2 - Commissioning - Older people Pool,2 - Commissioning - Older people Pool,Older People Mental Health E Cambs
Cambridgeshire County Council,22-Dec-16,22275475-14574614,-933.68,Making Space#1,Care Establishment,2 - Commissioning - Older people Pool,2 - Commissioning - Older people Pool,Older People Mental Health E Cambs
Cambridgeshire County Council,22-Dec-16,22275476-14574615,-933.68,Making Space#1,Care Establishment,2 - Commissioning - Older people Pool,2 - Commissioning - Older people Pool,Older People Mental Health E Cambs
Cambridgeshire County Council,22-Dec-16,22116042-14574471,-926.11,Making Space#1,Care Establishment,3 - Operations - Countywide Services,3 - Operations - Countywide Services,Countywide PD Service - Care
Cambridgeshire County Council,22-Dec-16,22116044-14574473,-926.11,Making Space#1,Care Establishment,3 - Operations - Countywide Services,3 - Operations - Countywide Services,Countywide PD Service - Care
Cambridgeshire County Council,22-Dec-16,22116045-14574474,-926.11,Making Space#1,Care Establishment,3 - Operations - Countywide Services,3 - Operations - Countywide Services,Countywide PD Service - Care
Cambridgeshire County Council,22-Dec-16,22116046-14574475,-926.11,Making Space#1,Care Establishment,3 - Operations - Countywide Services,3 - Operations - Countywide Services,Countywide PD Service - Care
Cambridgeshire County Council,22-Dec-16,22116048-14574477,-926.11,Making Space#1,Care Establishment,3 - Operations - Countywide Services,3 - Operations - Countywide Services,Countywide PD Service - Care
Cambridgeshire County Council,22-Dec-16,22116049-14574478,-926.11,Making Space#1,Care Establishment,3 - Operations - Countywide Services,3 - Operations - Countywide Services,Countywide PD Service - Care
Cambridgeshire County Council,22-Dec-16,22116051-14574480,-926.11,Making Space#1,Care Establishment,3 - Operations - Countywide Services,3 - Operations - Countywide Services,Countywide PD Service - Care
Cambridgeshire County Council,22-Dec-16,22116054-14574483,-926.11,Making Space#1,Care Establishment,3 - Operations - Countywide Services,3 - Operations - Countywide Services,Countywide PD Service - Care
Cambridgeshire County Council,22-Dec-16,22116056-14574485,-926.11,Making Space#1,Care Establishment,3 - Operations - Countywide Services,3 - Operations - Countywide Services,Countywide PD Service - Care
Cambridgeshire County Council,22-Dec-16,22116057-14574486,-926.11,Making Space#1,Care Establishment,3 - Operations - Countywide Services,3 - Operations - Countywide Services,Countywide PD Service - Care
Cambridgeshire County Council,22-Dec-16,22116063-14574492,-926.11,Making Space#1,Care Establishment,3 - Operations - Countywide Services,3 - Operations - Countywide Services,Countywide PD Service - Care
Cambridgeshire County Council,22-Dec-16,22116066-14574495,-926.11,Making Space#1,Care Establishment,3 - Operations - Countywide Services,3 - Operations - Countywide Services,Countywide PD Service - Care
Cambridgeshire County Council,22-Dec-16,22116069-14574498,-926.11,Making Space#1,Care Establishment,3 - Operations - Countywide Services,3 - Operations - Countywide Services,Countywide PD Service - Care
Cambridgeshire County Council,22-Dec-16,22116072-14574501,-926.11,Making Space#1,Care Establishment,3 - Operations - Countywide Services,3 - Operations - Countywide Services,Countywide PD Service - Care
Cambridgeshire County Council,22-Dec-16,22116073-14574502,-926.11,Making Space#1,Care Establishment,3 - Operations - Countywide Services,3 - Operations - Countywide Services,Countywide PD Service - Care
Cambridgeshire County Council,22-Dec-16,22116075-14574504,-926.11,Making Space#1,Care Establishment,3 - Operations - Countywide Services,3 - Operations - Countywide Services,Countywide PD Service - Care
Cambridgeshire County Council,22-Dec-16,22116079-14574508,-926.11,Making Space#1,Care Establishment,3 - Operations - Countywide Services,3 - Operations - Countywide Services,Countywide PD Service - Care
Cambridgeshire County Council,22-Dec-16,22116081-14574510,-926.11,Making Space#1,Care Establishment,3 - Operations - Countywide Services,3 - Operations - Countywide Services,Countywide PD Service - Care
Cambridgeshire County Council,22-Dec-16,22116082-14574511,-926.11,Making Space#1,Care Establishment,3 - Operations - Countywide Services,3 - Operations - Countywide Services,Countywide PD Service - Care
Cambridgeshire County Council,22-Dec-16,22116084-14574513,-926.11,Making Space#1,Care Establishment,3 - Operations - Countywide Services,3 - Operations - Countywide Services,Countywide PD Service - Care
Cambridgeshire County Council,22-Dec-16,22116087-14574516,-926.11,Making Space#1,Care Establishment,3 - Operations - Countywide Services,3 - Operations - Countywide Services,Countywide PD Service - Care
Cambridgeshire County Council,22-Dec-16,22116088-14574517,-926.11,Making Space#1,Care Establishment,3 - Operations - Countywide Services,3 - Operations - Countywide Services,Countywide PD Service - Care
Cambridgeshire County Council,22-Dec-16,22116089-14574518,-926.11,Making Space#1,Care Establishment,3 - Operations - Countywide Services,3 - Operations - Countywide Services,Countywide PD Service - Care
Cambridgeshire County Council,22-Dec-16,22116091-14574520,-926.11,Making Space#1,Care Establishment,3 - Operations - Countywide Services,3 - Operations - Countywide Services,Countywide PD Service - Care
Cambridgeshire County Council,22-Dec-16,22116092-14574521,-926.11,Making Space#1,Care Establishment,3 - Operations - Countywide Services,3 - Operations - Countywide Services,Countywide PD Service - Care
Cambridgeshire County Council,22-Dec-16,22116093-14574522,-926.11,Making Space#1,Care Establishment,3 - Operations - Countywide Services,3 - Operations - Countywide Services,Countywide PD Service - Care
Cambridgeshire County Council,22-Dec-16,22116094-14574523,-926.11,Making Space#1,Care Establishment,3 - Operations - Countywide Services,3 - Operations - Countywide Services,Countywide PD Service - Care
Cambridgeshire County Council,22-Dec-16,22277304-14574529,-926.11,Making Space#1,Care Establishment,3 - Operations - Countywide Services,3 - Operations - Countywide Services,Countywide PD Service - Care
Cambridgeshire County Council,22-Dec-16,22277305-14574530,-926.11,Making Space#1,Care Establishment,3 - Operations - Countywide Services,3 - Operations - Countywide Services,Countywide PD Service - Care
Cambridgeshire County Council,22-Dec-16,22277306-14574531,-926.11,Making Space#1,Care Establishment,3 - Operations - Countywide Services,3 - Operations - Countywide Services,Countywide PD Service - Care
Cambridgeshire County Council,22-Dec-16,22277239-14574534,-926.11,Making Space#1,Care Establishment,3 - Operations - Countywide Services,3 - Operations - Countywide Services,Countywide PD Service - Care
Cambridgeshire County Council,22-Dec-16,22277242-14574537,-926.11,Making Space#1,Care Establishment,3 - Operations - Countywide Services,3 - Operations - Countywide Services,Countywide PD Service - Care
Cambridgeshire County Council,22-Dec-16,22277245-14574540,-926.11,Making Space#1,Care Establishment,3 - Operations - Countywide Services,3 - Operations - Countywide Services,Countywide PD Service - Care
Cambridgeshire County Council,22-Dec-16,22277246-14574541,-926.11,Making Space#1,Care Establishment,3 - Operations - Countywide Services,3 - Operations - Countywide Services,Countywide PD Service - Care
Cambridgeshire County Council,22-Dec-16,22277247-14574542,-926.11,Making Space#1,Care Establishment,3 - Operations - Countywide Services,3 - Operations - Countywide Services,Countywide PD Service - Care
Cambridgeshire County Council,22-Dec-16,22277249-14574544,-926.11,Making Space#1,Care Establishment,3 - Operations - Countywide Services,3 - Operations - Countywide Services,Countywide PD Service - Care
Cambridgeshire County Council,22-Dec-16,22277253-14574548,-926.11,Making Space#1,Care Establishment,3 - Operations - Countywide Services,3 - Operations - Countywide Services,Countywide PD Service - Care
Cambridgeshire County Council,22-Dec-16,22277254-14574549,-926.11,Making Space#1,Care Establishment,3 - Operations - Countywide Services,3 - Operations - Countywide Services,Countywide PD Service - Care
Cambridgeshire County Council,22-Dec-16,22277257-14574552,-926.11,Making Space#1,Care Establishment,3 - Operations - Countywide Services,3 - Operations - Countywide Services,Countywide PD Service - Care
Cambridgeshire County Council,22-Dec-16,22277258-14574553,-926.11,Making Space#1,Care Establishment,3 - Operations - Countywide Services,3 - Operations - Countywide Services,Countywide PD Service - Care
Cambridgeshire County Council,22-Dec-16,22277262-14574557,-926.11,Making Space#1,Care Establishment,3 - Operations - Countywide Services,3 - Operations - Countywide Services,Countywide PD Service - Care
Cambridgeshire County Council,22-Dec-16,22277263-14574558,-926.11,Making Space#1,Care Establishment,3 - Operations - Countywide Services,3 - Operations - Countywide Services,Countywide PD Service - Care
Cambridgeshire County Council,22-Dec-16,22277264-14574559,-926.11,Making Space#1,Care Establishment,3 - Operations - Countywide Services,3 - Operations - Countywide Services,Countywide PD Service - Care
Cambridgeshire County Council,22-Dec-16,22277269-14574564,-926.11,Making Space#1,Care Establishment,3 - Operations - Countywide Services,3 - Operations - Countywide Services,Countywide PD Service - Care
Cambridgeshire County Council,22-Dec-16,22277270-14574565,-926.11,Making Space#1,Care Establishment,3 - Operations - Countywide Services,3 - Operations - Countywide Services,Countywide PD Service - Care
Cambridgeshire County Council,22-Dec-16,22277272-14574567,-926.11,Making Space#1,Care Establishment,3 - Operations - Countywide Services,3 - Operations - Countywide Services,Countywide PD Service - Care
Cambridgeshire County Council,22-Dec-16,22277273-14574568,-926.11,Making Space#1,Care Establishment,3 - Operations - Countywide Services,3 - Operations - Countywide Services,Countywide PD Service - Care
Cambridgeshire County Council,22-Dec-16,22277274-14574569,-926.11,Making Space#1,Care Establishment,3 - Operations - Countywide Services,3 - Operations - Countywide Services,Countywide PD Service - Care
Cambridgeshire County Council,22-Dec-16,22277278-14574573,-926.11,Making Space#1,Care Establishment,3 - Operations - Countywide Services,3 - Operations - Countywide Services,Countywide PD Service - Care
Cambridgeshire County Council,22-Dec-16,22277280-14574575,-926.11,Making Space#1,Care Establishment,3 - Operations - Countywide Services,3 - Operations - Countywide Services,Countywide PD Service - Care
Cambridgeshire County Council,22-Dec-16,22277281-14574576,-926.11,Making Space#1,Care Establishment,3 - Operations - Countywide Services,3 - Operations - Countywide Services,Countywide PD Service - Care
Cambridgeshire County Council,22-Dec-16,22277282-14574577,-926.11,Making Space#1,Care Establishment,3 - Operations - Countywide Services,3 - Operations - Countywide Services,Countywide PD Service - Care
Cambridgeshire County Council,22-Dec-16,22277283-14574578,-926.11,Making Space#1,Care Establishment,3 - Operations - Countywide Services,3 - Operations - Countywide Services,Countywide PD Service - Care
Cambridgeshire County Council,22-Dec-16,22277285-14574580,-926.11,Making Space#1,Care Establishment,3 - Operations - Countywide Services,3 - Operations - Countywide Services,Countywide PD Service - Care
Cambridgeshire County Council,22-Dec-16,22277286-14574581,-926.11,Making Space#1,Care Establishment,3 - Operations - Countywide Services,3 - Operations - Countywide Services,Countywide PD Service - Care
Cambridgeshire County Council,22-Dec-16,22277292-14574587,-926.11,Making Space#1,Care Establishment,3 - Operations - Countywide Services,3 - Operations - Countywide Services,Countywide PD Service - Care
Cambridgeshire County Council,22-Dec-16,22277294-14574589,-926.11,Making Space#1,Care Establishment,3 - Operations - Countywide Services,3 - Operations - Countywide Services,Countywide PD Service - Care
Cambridgeshire County Council,22-Dec-16,22277296-14574591,-926.11,Making Space#1,Care Establishment,3 - Operations - Countywide Services,3 - Operations - Countywide Services,Countywide PD Service - Care
Cambridgeshire County Council,22-Dec-16,22277297-14574592,-926.11,Making Space#1,Care Establishment,3 - Operations - Countywide Services,3 - Operations - Countywide Services,Countywide PD Service - Care
Cambridgeshire County Council,22-Dec-16,22254833-14574328,-926.11,Making Space#1,Care Establishment,3 - Operations - Countywide Services,3 - Operations - Countywide Services,Countywide PD Service - Care
Cambridgeshire County Council,22-Dec-16,22254835-14574330,-926.11,Making Space#1,Care Establishment,3 - Operations - Countywide Services,3 - Operations - Countywide Services,Countywide PD Service - Care
Cambridgeshire County Council,22-Dec-16,22254837-14574332,-926.11,Making Space#1,Care Establishment,3 - Operations - Countywide Services,3 - Operations - Countywide Services,Countywide PD Service - Care
Cambridgeshire County Council,22-Dec-16,22254841-14574336,-926.11,Making Space#1,Care Establishment,3 - Operations - Countywide Services,3 - Operations - Countywide Services,Countywide PD Service - Care
Cambridgeshire County Council,22-Dec-16,22254842-14574337,-926.11,Making Space#1,Care Establishment,3 - Operations - Countywide Services,3 - Operations - Countywide Services,Countywide PD Service - Care
Cambridgeshire County Council,22-Dec-16,22254845-14574340,-926.11,Making Space#1,Care Establishment,3 - Operations - Countywide Services,3 - Operations - Countywide Services,Countywide PD Service - Care
Cambridgeshire County Council,22-Dec-16,22254847-14574342,-926.11,Making Space#1,Care Establishment,3 - Operations - Countywide Services,3 - Operations - Countywide Services,Countywide PD Service - Care
Cambridgeshire County Council,22-Dec-16,22254848-14574343,-926.11,Making Space#1,Care Establishment,3 - Operations - Countywide Services,3 - Operations - Countywide Services,Countywide PD Service - Care
Cambridgeshire County Council,22-Dec-16,22254851-14574346,-926.11,Making Space#1,Care Establishment,3 - Operations - Countywide Services,3 - Operations - Countywide Services,Countywide PD Service - Care
Cambridgeshire County Council,22-Dec-16,22254854-14574349,-926.11,Making Space#1,Care Establishment,3 - Operations - Countywide Services,3 - Operations - Countywide Services,Countywide PD Service - Care
Cambridgeshire County Council,22-Dec-16,22254855-14574350,-926.11,Making Space#1,Care Establishment,3 - Operations - Countywide Services,3 - Operations - Countywide Services,Countywide PD Service - Care
Cambridgeshire County Council,22-Dec-16,22254858-14574353,-926.11,Making Space#1,Care Establishment,3 - Operations - Countywide Services,3 - Operations - Countywide Services,Countywide PD Service - Care
Cambridgeshire County Council,22-Dec-16,22254859-14574354,-926.11,Making Space#1,Care Establishment,3 - Operations - Countywide Services,3 - Operations - Countywide Services,Countywide PD Service - Care
Cambridgeshire County Council,22-Dec-16,22254861-14574356,-926.11,Making Space#1,Care Establishment,3 - Operations - Countywide Services,3 - Operations - Countywide Services,Countywide PD Service - Care
Cambridgeshire County Council,22-Dec-16,22254862-14574357,-926.11,Making Space#1,Care Establishment,3 - Operations - Countywide Services,3 - Operations - Countywide Services,Countywide PD Service - Care
Cambridgeshire County Council,22-Dec-16,22255480-14574361,-926.11,Making Space#1,Care Establishment,3 - Operations - Countywide Services,3 - Operations - Countywide Services,Countywide PD Service - Care
Cambridgeshire County Council,22-Dec-16,22255481-14574362,-926.11,Making Space#1,Care Establishment,3 - Operations - Countywide Services,3 - Operations - Countywide Services,Countywide PD Service - Care
Cambridgeshire County Council,22-Dec-16,22255482-14574363,-926.11,Making Space#1,Care Establishment,3 - Operations - Countywide Services,3 - Operations - Countywide Services,Countywide PD Service - Care
Cambridgeshire County Council,22-Dec-16,22255483-14574364,-926.11,Making Space#1,Care Establishment,3 - Operations - Countywide Services,3 - Operations - Countywide Services,Countywide PD Service - Care
Cambridgeshire County Council,22-Dec-16,22255484-14574365,-926.11,Making Space#1,Care Establishment,3 - Operations - Countywide Services,3 - Operations - Countywide Services,Countywide PD Service - Care
Cambridgeshire County Council,22-Dec-16,22255487-14574368,-926.11,Making Space#1,Care Establishment,3 - Operations - Countywide Services,3 - Operations - Countywide Services,Countywide PD Service - Care
Cambridgeshire County Council,22-Dec-16,22255489-14574370,-926.11,Making Space#1,Care Establishment,3 - Operations - Countywide Services,3 - Operations - Countywide Services,Countywide PD Service - Care
Cambridgeshire County Council,22-Dec-16,22255492-14574373,-926.11,Making Space#1,Care Establishment,3 - Operations - Countywide Services,3 - Operations - Countywide Services,Countywide PD Service - Care
Cambridgeshire County Council,22-Dec-16,22255496-14574377,-926.11,Making Space#1,Care Establishment,3 - Operations - Countywide Services,3 - Operations - Countywide Services,Countywide PD Service - Care
Cambridgeshire County Council,22-Dec-16,22255498-14574379,-926.11,Making Space#1,Care Establishment,3 - Operations - Countywide Services,3 - Operations - Countywide Services,Countywide PD Service - Care
Cambridgeshire County Council,22-Dec-16,22255499-14574380,-926.11,Making Space#1,Care Establishment,3 - Operations - Countywide Services,3 - Operations - Countywide Services,Countywide PD Service - Care
Cambridgeshire County Council,22-Dec-16,22255502-14574383,-926.11,Making Space#1,Care Establishment,3 - Operations - Countywide Services,3 - Operations - Countywide Services,Countywide PD Service - Care
Cambridgeshire County Council,22-Dec-16,22255503-14574384,-926.11,Making Space#1,Care Establishment,3 - Operations - Countywide Services,3 - Operations - Countywide Services,Countywide PD Service - Care
Cambridgeshire County Council,22-Dec-16,22255504-14574385,-926.11,Making Space#1,Care Establishment,3 - Operations - Countywide Services,3 - Operations - Countywide Services,Countywide PD Service - Care
Cambridgeshire County Council,22-Dec-16,22255505-14574386,-926.11,Making Space#1,Care Establishment,3 - Operations - Countywide Services,3 - Operations - Countywide Services,Countywide PD Service - Care
Cambridgeshire County Council,22-Dec-16,22255506-14574387,-926.11,Making Space#1,Care Establishment,3 - Operations - Countywide Services,3 - Operations - Countywide Services,Countywide PD Service - Care
Cambridgeshire County Council,22-Dec-16,22255510-14574391,-926.11,Making Space#1,Care Establishment,3 - Operations - Countywide Services,3 - Operations - Countywide Services,Countywide PD Service - Care
Cambridgeshire County Council,22-Dec-16,22192203-14574397,-926.11,Making Space#1,Care Establishment,3 - Operations - Countywide Services,3 - Operations - Countywide Services,Countywide PD Service - Care
Cambridgeshire County Council,22-Dec-16,22192205-14574399,-926.11,Making Space#1,Care Establishment,3 - Operations - Countywide Services,3 - Operations - Countywide Services,Countywide PD Service - Care
Cambridgeshire County Council,22-Dec-16,22192207-14574401,-926.11,Making Space#1,Care Establishment,3 - Operations - Countywide Services,3 - Operations - Countywide Services,Countywide PD Service - Care
Cambridgeshire County Council,22-Dec-16,22192208-14574402,-926.11,Making Space#1,Care Establishment,3 - Operations - Countywide Services,3 - Operations - Countywide Services,Countywide PD Service - Care
Cambridgeshire County Council,22-Dec-16,22192212-14574406,-926.11,Making Space#1,Care Establishment,3 - Operations - Countywide Services,3 - Operations - Countywide Services,Countywide PD Service - Care
Cambridgeshire County Council,22-Dec-16,22192213-14574407,-926.11,Making Space#1,Care Establishment,3 - Operations - Countywide Services,3 - Operations - Countywide Services,Countywide PD Service - Care
Cambridgeshire County Council,22-Dec-16,22192214-14574408,-926.11,Making Space#1,Care Establishment,3 - Operations - Countywide Services,3 - Operations - Countywide Services,Countywide PD Service - Care
Cambridgeshire County Council,22-Dec-16,22192215-14574409,-926.11,Making Space#1,Care Establishment,3 - Operations - Countywide Services,3 - Operations - Countywide Services,Countywide PD Service - Care
Cambridgeshire County Council,22-Dec-16,22192217-14574411,-926.11,Making Space#1,Care Establishment,3 - Operations - Countywide Services,3 - Operations - Countywide Services,Countywide PD Service - Care
Cambridgeshire County Council,22-Dec-16,22192153-14574413,-926.11,Making Space#1,Care Establishment,3 - Operations - Countywide Services,3 - Operations - Countywide Services,Countywide PD Service - Care
Cambridgeshire County Council,22-Dec-16,22192155-14574415,-926.11,Making Space#1,Care Establishment,3 - Operations - Countywide Services,3 - Operations - Countywide Services,Countywide PD Service - Care
Cambridgeshire County Council,22-Dec-16,22192158-14574418,-926.11,Making Space#1,Care Establishment,3 - Operations - Countywide Services,3 - Operations - Countywide Services,Countywide PD Service - Care
Cambridgeshire County Council,22-Dec-16,22192163-14574423,-926.11,Making Space#1,Care Establishment,3 - Operations - Countywide Services,3 - Operations - Countywide Services,Countywide PD Service - Care
Cambridgeshire County Council,22-Dec-16,22192165-14574425,-926.11,Making Space#1,Care Establishment,3 - Operations - Countywide Services,3 - Operations - Countywide Services,Countywide PD Service - Care
Cambridgeshire County Council,22-Dec-16,22192169-14574429,-926.11,Making Space#1,Care Establishment,3 - Operations - Countywide Services,3 - Operations - Countywide Services,Countywide PD Service - Care
Cambridgeshire County Council,22-Dec-16,22192170-14574430,-926.11,Making Space#1,Care Establishment,3 - Operations - Countywide Services,3 - Operations - Countywide Services,Countywide PD Service - Care
Cambridgeshire County Council,22-Dec-16,22192171-14574431,-926.11,Making Space#1,Care Establishment,3 - Operations - Countywide Services,3 - Operations - Countywide Services,Countywide PD Service - Care
Cambridgeshire County Council,22-Dec-16,22192173-14574433,-926.11,Making Space#1,Care Establishment,3 - Operations - Countywide Services,3 - Operations - Countywide Services,Countywide PD Service - Care
Cambridgeshire County Council,22-Dec-16,22192174-14574434,-926.11,Making Space#1,Care Establishment,3 - Operations - Countywide Services,3 - Operations - Countywide Services,Countywide PD Service - Care
Cambridgeshire County Council,22-Dec-16,22192175-14574435,-926.11,Making Space#1,Care Establishment,3 - Operations - Countywide Services,3 - Operations - Countywide Services,Countywide PD Service - Care
Cambridgeshire County Council,22-Dec-16,22192176-14574436,-926.11,Making Space#1,Care Establishment,3 - Operations - Countywide Services,3 - Operations - Countywide Services,Countywide PD Service - Care
Cambridgeshire County Council,22-Dec-16,22192177-14574437,-926.11,Making Space#1,Care Establishment,3 - Operations - Countywide Services,3 - Operations - Countywide Services,Countywide PD Service - Care
Cambridgeshire County Council,22-Dec-16,22192179-14574439,-926.11,Making Space#1,Care Establishment,3 - Operations - Countywide Services,3 - Operations - Countywide Services,Countywide PD Service - Care
Cambridgeshire County Council,22-Dec-16,22192180-14574440,-926.11,Making Space#1,Care Establishment,3 - Operations - Countywide Services,3 - Operations - Countywide Services,Countywide PD Service - Care
Cambridgeshire County Council,22-Dec-16,22192184-14574444,-926.11,Making Space#1,Care Establishment,3 - Operations - Countywide Services,3 - Operations - Countywide Services,Countywide PD Service - Care
Cambridgeshire County Council,22-Dec-16,22192186-14574446,-926.11,Making Space#1,Care Establishment,3 - Operations - Countywide Services,3 - Operations - Countywide Services,Countywide PD Service - Care
Cambridgeshire County Council,22-Dec-16,22192187-14574447,-926.11,Making Space#1,Care Establishment,3 - Operations - Countywide Services,3 - Operations - Countywide Services,Countywide PD Service - Care
Cambridgeshire County Council,22-Dec-16,22192188-14574448,-926.11,Making Space#1,Care Establishment,3 - Operations - Countywide Services,3 - Operations - Countywide Services,Countywide PD Service - Care
Cambridgeshire County Council,22-Dec-16,22192193-14574453,-926.11,Making Space#1,Care Establishment,3 - Operations - Countywide Services,3 - Operations - Countywide Services,Countywide PD Service - Care
Cambridgeshire County Council,22-Dec-16,22192194-14574454,-926.11,Making Space#1,Care Establishment,3 - Operations - Countywide Services,3 - Operations - Countywide Services,Countywide PD Service - Care
Cambridgeshire County Council,22-Dec-16,22192195-14574455,-926.11,Making Space#1,Care Establishment,3 - Operations - Countywide Services,3 - Operations - Countywide Services,Countywide PD Service - Care
Cambridgeshire County Council,22-Dec-16,22192198-14574458,-926.11,Making Space#1,Care Establishment,3 - Operations - Countywide Services,3 - Operations - Countywide Services,Countywide PD Service - Care
Cambridgeshire County Council,22-Dec-16,22116031-14574460,-926.11,Making Space#1,Care Establishment,3 - Operations - Countywide Services,3 - Operations - Countywide Services,Countywide PD Service - Care
Cambridgeshire County Council,22-Dec-16,22116032-14574461,-926.11,Making Space#1,Care Establishment,3 - Operations - Countywide Services,3 - Operations - Countywide Services,Countywide PD Service - Care
Cambridgeshire County Council,22-Dec-16,22116033-14574462,-926.11,Making Space#1,Care Establishment,3 - Operations - Countywide Services,3 - Operations - Countywide Services,Countywide PD Service - Care
Cambridgeshire County Council,22-Dec-16,22116034-14574463,-926.11,Making Space#1,Care Establishment,3 - Operations - Countywide Services,3 - Operations - Countywide Services,Countywide PD Service - Care
Cambridgeshire County Council,22-Dec-16,22116036-14574465,-926.11,Making Space#1,Care Establishment,3 - Operations - Countywide Services,3 - Operations - Countywide Services,Countywide PD Service - Care
Cambridgeshire County Council,08-Dec-16,22071391-14487896,-912.61,Affinity Trust,Care Establishment,2 - Operations - Learning Disability,2 - Operations - Learning Disability,LDP Fenland Locality - Care
Cambridgeshire County Council,08-Dec-16,22021766-14503997,-888,Redacted Personal Data,Redacted Personal Data,3 - Operations - Countywide Services,3 - Operations - Countywide Services,Countywide PD Service - Care
Cambridgeshire County Council,01-Dec-16,22122516-14452040,-800,The Elms Nursing Home,Care Establishment,2 - Commissioning - Older people Pool,2 - Commissioning - Older people Pool,Older People - Fenland
Cambridgeshire County Council,01-Dec-16,22122510-14452041,-800,The Elms Nursing Home,Care Establishment,2 - Commissioning - Older people Pool,2 - Commissioning - Older people Pool,Older People - Fenland
Cambridgeshire County Council,08-Dec-16,22186309-14501865,-800,The Cambridge Nursing Centre,Care Establishment,2 - Commissioning - Older people Pool,2 - Commissioning - Older people Pool,Older People - City & South
Cambridgeshire County Council,08-Dec-16,22186310-14501866,-800,The Cambridge Nursing Centre,Care Establishment,2 - Commissioning - Older people Pool,2 - Commissioning - Older people Pool,Older People - City & South
Cambridgeshire County Council,08-Dec-16,22186311-14501867,-800,The Cambridge Nursing Centre,Care Establishment,2 - Commissioning - Older people Pool,2 - Commissioning - Older people Pool,Older People - City & South
Cambridgeshire County Council,08-Dec-16,22186312-14501868,-800,The Cambridge Nursing Centre,Care Establishment,2 - Commissioning - Older people Pool,2 - Commissioning - Older people Pool,Older People - City & South
Cambridgeshire County Council,08-Dec-16,22186313-14501869,-800,The Cambridge Nursing Centre,Care Establishment,2 - Commissioning - Older people Pool,2 - Commissioning - Older people Pool,Older People - City & South
Cambridgeshire County Council,08-Dec-16,22186314-14501870,-800,The Cambridge Nursing Centre,Care Establishment,2 - Commissioning - Older people Pool,2 - Commissioning - Older people Pool,Older People - City & South
Cambridgeshire County Council,08-Dec-16,22186315-14501871,-800,The Cambridge Nursing Centre,Care Establishment,2 - Commissioning - Older people Pool,2 - Commissioning - Older people Pool,Older People - City & South
Cambridgeshire County Council,08-Dec-16,22186316-14501872,-800,The Cambridge Nursing Centre,Care Establishment,2 - Commissioning - Older people Pool,2 - Commissioning - Older people Pool,Older People - City & South
Cambridgeshire County Council,08-Dec-16,22186317-14501873,-800,The Cambridge Nursing Centre,Care Establishment,2 - Commissioning - Older people Pool,2 - Commissioning - Older people Pool,Older People - City & South
Cambridgeshire County Council,08-Dec-16,22186318-14501874,-800,The Cambridge Nursing Centre,Care Establishment,2 - Commissioning - Older people Pool,2 - Commissioning - Older people Pool,Older People - City & South
Cambridgeshire County Council,08-Dec-16,22186319-14501875,-800,The Cambridge Nursing Centre,Care Establishment,2 - Commissioning - Older people Pool,2 - Commissioning - Older people Pool,Older People - City & South
Cambridgeshire County Council,08-Dec-16,22186320-14501876,-800,The Cambridge Nursing Centre,Care Establishment,2 - Commissioning - Older people Pool,2 - Commissioning - Older people Pool,Older People - City & South
Cambridgeshire County Council,08-Dec-16,22186321-14501877,-800,The Cambridge Nursing Centre,Care Establishment,2 - Commissioning - Older people Pool,2 - Commissioning - Older people Pool,Older People - City & South
Cambridgeshire County Council,08-Dec-16,22186322-14501878,-800,The Cambridge Nursing Centre,Care Establishment,2 - Commissioning - Older people Pool,2 - Commissioning - Older people Pool,Older People - City & South
Cambridgeshire County Council,08-Dec-16,22186323-14501879,-800,The Cambridge Nursing Centre,Care Establishment,2 - Commissioning - Older people Pool,2 - Commissioning - Older people Pool,Older People - City & South
Cambridgeshire County Council,08-Dec-16,22186324-14501880,-800,The Cambridge Nursing Centre,Care Establishment,2 - Commissioning - Older people Pool,2 - Commissioning - Older people Pool,Older People - City & South
Cambridgeshire County Council,08-Dec-16,22186326-14501882,-800,The Cambridge Nursing Centre,Care Establishment,2 - Commissioning - Older people Pool,2 - Commissioning - Older people Pool,Older People - City & South
Cambridgeshire County Council,08-Dec-16,22186327-14501883,-800,The Cambridge Nursing Centre,Care Establishment,2 - Commissioning - Older people Pool,2 - Commissioning - Older people Pool,Older People - City & South
Cambridgeshire County Council,08-Dec-16,22186328-14501884,-800,The Cambridge Nursing Centre,Care Establishment,2 - Commissioning - Older people Pool,2 - Commissioning - Older people Pool,Older People - City & South
Cambridgeshire County Council,08-Dec-16,22186329-14501885,-800,The Cambridge Nursing Centre,Care Establishment,2 - Commissioning - Older people Pool,2 - Commissioning - Older people Pool,Older People - City & South
Cambridgeshire County Council,08-Dec-16,22186330-14501886,-800,The Cambridge Nursing Centre,Care Establishment,2 - Commissioning - Older people Pool,2 - Commissioning - Older people Pool,Older People - City & South
Cambridgeshire County Council,08-Dec-16,22186331-14501887,-800,The Cambridge Nursing Centre,Care Establishment,2 - Commissioning - Older people Pool,2 - Commissioning - Older people Pool,Older People - City & South
Cambridgeshire County Council,08-Dec-16,22186332-14501888,-800,The Cambridge Nursing Centre,Care Establishment,2 - Commissioning - Older people Pool,2 - Commissioning - Older people Pool,Older People - City & South
Cambridgeshire County Council,08-Dec-16,22186333-14501889,-800,The Cambridge Nursing Centre,Care Establishment,2 - Commissioning - Older people Pool,2 - Commissioning - Older people Pool,Older People - City & South
Cambridgeshire County Council,08-Dec-16,22186334-14501890,-800,The Cambridge Nursing Centre,Care Establishment,2 - Commissioning - Older people Pool,2 - Commissioning - Older people Pool,Older People - City & South
Cambridgeshire County Council,08-Dec-16,22186335-14501891,-800,The Cambridge Nursing Centre,Care Establishment,2 - Commissioning - Older people Pool,2 - Commissioning - Older people Pool,Older People - City & South
Cambridgeshire County Council,08-Dec-16,22186336-14501892,-800,The Cambridge Nursing Centre,Care Establishment,2 - Commissioning - Older people Pool,2 - Commissioning - Older people Pool,Older People - City & South
Cambridgeshire County Council,08-Dec-16,22186337-14501893,-800,The Cambridge Nursing Centre,Care Establishment,2 - Commissioning - Older people Pool,2 - Commissioning - Older people Pool,Older People - City & South
Cambridgeshire County Council,08-Dec-16,22186338-14501894,-800,The Cambridge Nursing Centre,Care Establishment,2 - Commissioning - Older people Pool,2 - Commissioning - Older people Pool,Older People - City & South
Cambridgeshire County Council,08-Dec-16,22186339-14501895,-800,The Cambridge Nursing Centre,Care Establishment,2 - Commissioning - Older people Pool,2 - Commissioning - Older people Pool,Older People - City & South
Cambridgeshire County Council,08-Dec-16,22186340-14501896,-800,The Cambridge Nursing Centre,Care Establishment,2 - Commissioning - Older people Pool,2 - Commissioning - Older people Pool,Older People - City & South
Cambridgeshire County Council,08-Dec-16,22186341-14501897,-800,The Cambridge Nursing Centre,Care Establishment,2 - Commissioning - Older people Pool,2 - Commissioning - Older people Pool,Older People - City & South
Cambridgeshire County Council,08-Dec-16,22181819-14501789,-800,The Cambridge Nursing Centre,Care Establishment,2 - Commissioning - Older people Pool,2 - Commissioning - Older people Pool,Older People Mental Health E Cambs
Cambridgeshire County Council,08-Dec-16,22186525-14501815,-800,The Cambridge Nursing Centre,Care Establishment,2 - Commissioning - Older people Pool,2 - Commissioning - Older people Pool,Older People Mental Health E Cambs
Cambridgeshire County Council,08-Dec-16,22186526-14501816,-800,The Cambridge Nursing Centre,Care Establishment,2 - Commissioning - Older people Pool,2 - Commissioning - Older people Pool,Older People Mental Health E Cambs
Cambridgeshire County Council,08-Dec-16,22186527-14501817,-800,The Cambridge Nursing Centre,Care Establishment,2 - Commissioning - Older people Pool,2 - Commissioning - Older people Pool,Older People Mental Health E Cambs
Cambridgeshire County Council,08-Dec-16,22186528-14501818,-800,The Cambridge Nursing Centre,Care Establishment,2 - Commissioning - Older people Pool,2 - Commissioning - Older people Pool,Older People Mental Health E Cambs
Cambridgeshire County Council,08-Dec-16,22186529-14501819,-800,The Cambridge Nursing Centre,Care Establishment,2 - Commissioning - Older people Pool,2 - Commissioning - Older people Pool,Older People Mental Health E Cambs
Cambridgeshire County Council,08-Dec-16,22186530-14501820,-800,The Cambridge Nursing Centre,Care Establishment,2 - Commissioning - Older people Pool,2 - Commissioning - Older people Pool,Older People Mental Health E Cambs
Cambridgeshire County Council,08-Dec-16,22186531-14501821,-800,The Cambridge Nursing Centre,Care Establishment,2 - Commissioning - Older people Pool,2 - Commissioning - Older people Pool,Older People Mental Health E Cambs
Cambridgeshire County Council,08-Dec-16,22186532-14501822,-800,The Cambridge Nursing Centre,Care Establishment,2 - Commissioning - Older people Pool,2 - Commissioning - Older people Pool,Older People Mental Health E Cambs
Cambridgeshire County Council,08-Dec-16,22186533-14501823,-800,The Cambridge Nursing Centre,Care Establishment,2 - Commissioning - Older people Pool,2 - Commissioning - Older people Pool,Older People Mental Health E Cambs
Cambridgeshire County Council,08-Dec-16,22186534-14501824,-800,The Cambridge Nursing Centre,Care Establishment,2 - Commissioning - Older people Pool,2 - Commissioning - Older people Pool,Older People Mental Health E Cambs
Cambridgeshire County Council,08-Dec-16,22186535-14501825,-800,The Cambridge Nursing Centre,Care Establishment,2 - Commissioning - Older people Pool,2 - Commissioning - Older people Pool,Older People Mental Health E Cambs
Cambridgeshire County Council,08-Dec-16,22186536-14501826,-800,The Cambridge Nursing Centre,Care Establishment,2 - Commissioning - Older people Pool,2 - Commissioning - Older people Pool,Older People Mental Health E Cambs
Cambridgeshire County Council,08-Dec-16,22186537-14501827,-800,The Cambridge Nursing Centre,Care Establishment,2 - Commissioning - Older people Pool,2 - Commissioning - Older people Pool,Older People Mental Health E Cambs
Cambridgeshire County Council,08-Dec-16,22186538-14501828,-800,The Cambridge Nursing Centre,Care Establishment,2 - Commissioning - Older people Pool,2 - Commissioning - Older people Pool,Older People Mental Health E Cambs
Cambridgeshire County Council,08-Dec-16,22186539-14501829,-800,The Cambridge Nursing Centre,Care Establishment,2 - Commissioning - Older people Pool,2 - Commissioning - Older people Pool,Older People Mental Health E Cambs
Cambridgeshire County Council,08-Dec-16,22186541-14501831,-800,The Cambridge Nursing Centre,Care Establishment,2 - Commissioning - Older people Pool,2 - Commissioning - Older people Pool,Older People Mental Health E Cambs
Cambridgeshire County Council,08-Dec-16,22186542-14501832,-800,The Cambridge Nursing Centre,Care Establishment,2 - Commissioning - Older people Pool,2 - Commissioning - Older people Pool,Older People Mental Health E Cambs
Cambridgeshire County Council,08-Dec-16,22186543-14501833,-800,The Cambridge Nursing Centre,Care Establishment,2 - Commissioning - Older people Pool,2 - Commissioning - Older people Pool,Older People Mental Health E Cambs
Cambridgeshire County Council,08-Dec-16,22186544-14501834,-800,The Cambridge Nursing Centre,Care Establishment,2 - Commissioning - Older people Pool,2 - Commissioning - Older people Pool,Older People Mental Health E Cambs
Cambridgeshire County Council,08-Dec-16,22186545-14501835,-800,The Cambridge Nursing Centre,Care Establishment,2 - Commissioning - Older people Pool,2 - Commissioning - Older people Pool,Older People Mental Health E Cambs
Cambridgeshire County Council,08-Dec-16,22186546-14501836,-800,The Cambridge Nursing Centre,Care Establishment,2 - Commissioning - Older people Pool,2 - Commissioning - Older people Pool,Older People Mental Health E Cambs
Cambridgeshire County Council,08-Dec-16,22186547-14501837,-800,The Cambridge Nursing Centre,Care Establishment,2 - Commissioning - Older people Pool,2 - Commissioning - Older people Pool,Older People Mental Health E Cambs
Cambridgeshire County Council,08-Dec-16,22186548-14501838,-800,The Cambridge Nursing Centre,Care Establishment,2 - Commissioning - Older people Pool,2 - Commissioning - Older people Pool,Older People Mental Health E Cambs
Cambridgeshire County Council,08-Dec-16,22186549-14501839,-800,The Cambridge Nursing Centre,Care Establishment,2 - Commissioning - Older people Pool,2 - Commissioning - Older people Pool,Older People Mental Health E Cambs
Cambridgeshire County Council,08-Dec-16,22186550-14501840,-800,The Cambridge Nursing Centre,Care Establishment,2 - Commissioning - Older people Pool,2 - Commissioning - Older people Pool,Older People Mental Health E Cambs
Cambridgeshire County Council,23-Dec-16,22281227-14581822,-798,Randstad Education Limited,Education,E&P,E&P,SEMH Support Programme
Cambridgeshire County Council,28-Dec-16,22281226-14586894,-798,Randstad Education Limited,Education,E&P,E&P,SEMH Support Programme
Cambridgeshire County Council,30-Dec-16,22281244-14594926,-798,Randstad Education Limited,Education,E&P,E&P,SEMH Support Programme
Cambridgeshire County Council,22-Dec-16,22116059-14574488,-793.81,Making Space#1,Care Establishment,3 - Operations - Countywide Services,3 - Operations - Countywide Services,Countywide PD Service - Care
Cambridgeshire County Council,22-Dec-16,22277261-14574556,-793.81,Making Space#1,Care Establishment,3 - Operations - Countywide Services,3 - Operations - Countywide Services,Countywide PD Service - Care
Cambridgeshire County Council,22-Dec-16,22254843-14574338,-793.81,Making Space#1,Care Establishment,3 - Operations - Countywide Services,3 - Operations - Countywide Services,Countywide PD Service - Care
Cambridgeshire County Council,22-Dec-16,22192192-14574452,-793.81,Making Space#1,Care Establishment,3 - Operations - Countywide Services,3 - Operations - Countywide Services,Countywide PD Service - Care
Cambridgeshire County Council,21-Dec-16,22260636-14563557,-792.12,Chs Group,Care Establishment,S&C,S&C,Placements - Social Care
Cambridgeshire County Council,08-Dec-16,22072304-14502234,-777.25,Etheldred House,Care Establishment,2 - Commissioning - Older people Pool,2 - Commissioning - Older people Pool,East Cambs - O P Team
Cambridgeshire County Council,08-Dec-16,22072305-14502235,-777.25,Etheldred House,Care Establishment,2 - Commissioning - Older people Pool,2 - Commissioning - Older people Pool,East Cambs - O P Team
Cambridgeshire County Council,08-Dec-16,22072306-14502236,-777.25,Etheldred House,Care Establishment,2 - Commissioning - Older people Pool,2 - Commissioning - Older people Pool,East Cambs - O P Team
Cambridgeshire County Council,08-Dec-16,22072307-14502237,-777.25,Etheldred House,Care Establishment,2 - Commissioning - Older people Pool,2 - Commissioning - Older people Pool,East Cambs - O P Team
Cambridgeshire County Council,08-Dec-16,22072308-14502238,-777.25,Etheldred House,Care Establishment,2 - Commissioning - Older people Pool,2 - Commissioning - Older people Pool,East Cambs - O P Team
Cambridgeshire County Council,08-Dec-16,22072309-14502239,-777.25,Etheldred House,Care Establishment,2 - Commissioning - Older people Pool,2 - Commissioning - Older people Pool,East Cambs - O P Team
Cambridgeshire County Council,08-Dec-16,22072310-14502240,-777.25,Etheldred House,Care Establishment,2 - Commissioning - Older people Pool,2 - Commissioning - Older people Pool,East Cambs - O P Team
Cambridgeshire County Council,08-Dec-16,22072311-14502241,-777.25,Etheldred House,Care Establishment,2 - Commissioning - Older people Pool,2 - Commissioning - Older people Pool,East Cambs - O P Team
Cambridgeshire County Council,08-Dec-16,22072313-14502243,-777.25,Etheldred House,Care Establishment,2 - Commissioning - Older people Pool,2 - Commissioning - Older people Pool,East Cambs - O P Team
Cambridgeshire County Council,08-Dec-16,22072314-14502244,-777.25,Etheldred House,Care Establishment,2 - Commissioning - Older people Pool,2 - Commissioning - Older people Pool,East Cambs - O P Team
Cambridgeshire County Council,08-Dec-16,22072315-14502245,-777.25,Etheldred House,Care Establishment,2 - Commissioning - Older people Pool,2 - Commissioning - Older people Pool,East Cambs - O P Team
Cambridgeshire County Council,08-Dec-16,22072316-14502246,-777.25,Etheldred House,Care Establishment,2 - Commissioning - Older people Pool,2 - Commissioning - Older people Pool,East Cambs - O P Team
Cambridgeshire County Council,08-Dec-16,22072317-14502247,-777.25,Etheldred House,Care Establishment,2 - Commissioning - Older people Pool,2 - Commissioning - Older people Pool,East Cambs - O P Team
Cambridgeshire County Council,08-Dec-16,22071633-14502252,-777.25,Etheldred House,Care Establishment,2 - Commissioning - Older people Pool,2 - Commissioning - Older people Pool,East Cambs - O P Team
Cambridgeshire County Council,08-Dec-16,22094309-14496314,-767.58,Fryers Walk Vct Ltd,Care Establishment,2 - Commissioning - Older people Pool,2 - Commissioning - Older people Pool,Older People - Fenland
Cambridgeshire County Council,08-Dec-16,22094311-14496315,-767.58,Fryers Walk Vct Ltd,Care Establishment,2 - Commissioning - Older people Pool,2 - Commissioning - Older people Pool,Older People - Fenland
Cambridgeshire County Council,08-Dec-16,22094312-14496316,-767.58,Fryers Walk Vct Ltd,Care Establishment,2 - Commissioning - Older people Pool,2 - Commissioning - Older people Pool,Older People - Fenland
Cambridgeshire County Council,08-Dec-16,22094318-14496321,-767.58,Fryers Walk Vct Ltd,Care Establishment,2 - Commissioning - Older people Pool,2 - Commissioning - Older people Pool,Older People - Fenland
Cambridgeshire County Council,08-Dec-16,22094319-14496322,-767.58,Fryers Walk Vct Ltd,Care Establishment,2 - Commissioning - Older people Pool,2 - Commissioning - Older people Pool,Older People - Fenland
Cambridgeshire County Council,08-Dec-16,22094321-14496324,-767.58,Fryers Walk Vct Ltd,Care Establishment,2 - Commissioning - Older people Pool,2 - Commissioning - Older people Pool,Older People - Fenland
Cambridgeshire County Council,08-Dec-16,22094322-14496325,-767.58,Fryers Walk Vct Ltd,Care Establishment,2 - Commissioning - Older people Pool,2 - Commissioning - Older people Pool,Older People - Fenland
Cambridgeshire County Council,08-Dec-16,22094326-14496327,-767.58,Fryers Walk Vct Ltd,Care Establishment,2 - Commissioning - Older people Pool,2 - Commissioning - Older people Pool,Older People - Fenland
Cambridgeshire County Council,08-Dec-16,22094327-14496328,-767.58,Fryers Walk Vct Ltd,Care Establishment,2 - Commissioning - Older people Pool,2 - Commissioning - Older people Pool,Older People - Fenland
Cambridgeshire County Council,08-Dec-16,22094328-14496329,-767.58,Fryers Walk Vct Ltd,Care Establishment,2 - Commissioning - Older people Pool,2 - Commissioning - Older people Pool,Older People - Fenland
Cambridgeshire County Council,08-Dec-16,22094330-14496330,-767.58,Fryers Walk Vct Ltd,Care Establishment,2 - Commissioning - Older people Pool,2 - Commissioning - Older people Pool,Older People - Fenland
Cambridgeshire County Council,08-Dec-16,22094331-14496331,-767.58,Fryers Walk Vct Ltd,Care Establishment,2 - Commissioning - Older people Pool,2 - Commissioning - Older people Pool,Older People - Fenland
Cambridgeshire County Council,08-Dec-16,22094345-14496338,-767.58,Fryers Walk Vct Ltd,Care Establishment,2 - Commissioning - Older people Pool,2 - Commissioning - Older people Pool,Older People - Fenland
Cambridgeshire County Council,08-Dec-16,21558021-14505067,-750,The Cambridge Nursing Home,Care Establishment,2 - Commissioning - Older people Pool,2 - Commissioning - Older people Pool,East Cambs - O P Team
Cambridgeshire County Council,08-Dec-16,21558024-14505069,-750,The Cambridge Nursing Home,Care Establishment,2 - Commissioning - Older people Pool,2 - Commissioning - Older people Pool,East Cambs - O P Team
Cambridgeshire County Council,08-Dec-16,21558026-14505070,-750,The Cambridge Nursing Home,Care Establishment,2 - Commissioning - Older people Pool,2 - Commissioning - Older people Pool,East Cambs - O P Team
Cambridgeshire County Council,08-Dec-16,21558027-14505071,-750,The Cambridge Nursing Home,Care Establishment,2 - Commissioning - Older people Pool,2 - Commissioning - Older people Pool,East Cambs - O P Team
Cambridgeshire County Council,08-Dec-16,21558028-14505072,-750,The Cambridge Nursing Home,Care Establishment,2 - Commissioning - Older people Pool,2 - Commissioning - Older people Pool,East Cambs - O P Team
Cambridgeshire County Council,08-Dec-16,22193372-14491858,-750,Oaklands Care Home,Care Establishment,2 - Commissioning - Older people Pool,2 - Commissioning - Older people Pool,Older People Mental Health City & South
Cambridgeshire County Council,08-Dec-16,22193377-14491863,-750,Oaklands Care Home,Care Establishment,2 - Commissioning - Older people Pool,2 - Commissioning - Older people Pool,Older People Mental Health City & South
Cambridgeshire County Council,08-Dec-16,22192375-14489192,-750,Cottenham Court Nursing Home,Care Establishment,2 - Commissioning - Older people Pool,2 - Commissioning - Older people Pool,East Cambs - O P Team
Cambridgeshire County Council,08-Dec-16,22192376-14489193,-750,Cottenham Court Nursing Home,Care Establishment,2 - Commissioning - Older people Pool,2 - Commissioning - Older people Pool,East Cambs - O P Team
Cambridgeshire County Council,08-Dec-16,22192377-14489194,-750,Cottenham Court Nursing Home,Care Establishment,2 - Commissioning - Older people Pool,2 - Commissioning - Older people Pool,East Cambs - O P Team
Cambridgeshire County Council,08-Dec-16,22192378-14489195,-750,Cottenham Court Nursing Home,Care Establishment,2 - Commissioning - Older people Pool,2 - Commissioning - Older people Pool,East Cambs - O P Team
Cambridgeshire County Council,08-Dec-16,22192379-14489196,-750,Cottenham Court Nursing Home,Care Establishment,2 - Commissioning - Older people Pool,2 - Commissioning - Older people Pool,East Cambs - O P Team
Cambridgeshire County Council,08-Dec-16,22192380-14489197,-750,Cottenham Court Nursing Home,Care Establishment,2 - Commissioning - Older people Pool,2 - Commissioning - Older people Pool,East Cambs - O P Team
Cambridgeshire County Council,08-Dec-16,22192381-14489198,-750,Cottenham Court Nursing Home,Care Establishment,2 - Commissioning - Older people Pool,2 - Commissioning - Older people Pool,East Cambs - O P Team
Cambridgeshire County Council,08-Dec-16,22192382-14489199,-750,Cottenham Court Nursing Home,Care Establishment,2 - Commissioning - Older people Pool,2 - Commissioning - Older people Pool,East Cambs - O P Team
Cambridgeshire County Council,08-Dec-16,22192383-14489200,-750,Cottenham Court Nursing Home,Care Establishment,2 - Commissioning - Older people Pool,2 - Commissioning - Older people Pool,East Cambs - O P Team
Cambridgeshire County Council,08-Dec-16,22192384-14489201,-750,Cottenham Court Nursing Home,Care Establishment,2 - Commissioning - Older people Pool,2 - Commissioning - Older people Pool,East Cambs - O P Team
Cambridgeshire County Council,08-Dec-16,22192385-14489202,-750,Cottenham Court Nursing Home,Care Establishment,2 - Commissioning - Older people Pool,2 - Commissioning - Older people Pool,East Cambs - O P Team
Cambridgeshire County Council,08-Dec-16,22192386-14489203,-750,Cottenham Court Nursing Home,Care Establishment,2 - Commissioning - Older people Pool,2 - Commissioning - Older people Pool,East Cambs - O P Team
Cambridgeshire County Council,08-Dec-16,22192387-14489204,-750,Cottenham Court Nursing Home,Care Establishment,2 - Commissioning - Older people Pool,2 - Commissioning - Older people Pool,East Cambs - O P Team
Cambridgeshire County Council,08-Dec-16,22191348-14489219,-750,Cottenham Court Nursing Home,Care Establishment,2 - Commissioning - Older people Pool,2 - Commissioning - Older people Pool,East Cambs - O P Team
Cambridgeshire County Council,08-Dec-16,22191350-14489221,-750,Cottenham Court Nursing Home,Care Establishment,2 - Commissioning - Older people Pool,2 - Commissioning - Older people Pool,East Cambs - O P Team
Cambridgeshire County Council,08-Dec-16,22191351-14489222,-750,Cottenham Court Nursing Home,Care Establishment,2 - Commissioning - Older people Pool,2 - Commissioning - Older people Pool,East Cambs - O P Team
Cambridgeshire County Council,08-Dec-16,22191352-14489223,-750,Cottenham Court Nursing Home,Care Establishment,2 - Commissioning - Older people Pool,2 - Commissioning - Older people Pool,East Cambs - O P Team
Cambridgeshire County Council,08-Dec-16,22191353-14489224,-750,Cottenham Court Nursing Home,Care Establishment,2 - Commissioning - Older people Pool,2 - Commissioning - Older people Pool,East Cambs - O P Team
Cambridgeshire County Council,08-Dec-16,22191354-14489225,-750,Cottenham Court Nursing Home,Care Establishment,2 - Commissioning - Older people Pool,2 - Commissioning - Older people Pool,East Cambs - O P Team
Cambridgeshire County Council,08-Dec-16,22191355-14489226,-750,Cottenham Court Nursing Home,Care Establishment,2 - Commissioning - Older people Pool,2 - Commissioning - Older people Pool,East Cambs - O P Team
Cambridgeshire County Council,08-Dec-16,22191356-14489227,-750,Cottenham Court Nursing Home,Care Establishment,2 - Commissioning - Older people Pool,2 - Commissioning - Older people Pool,East Cambs - O P Team
Cambridgeshire County Council,08-Dec-16,22191357-14489228,-750,Cottenham Court Nursing Home,Care Establishment,2 - Commissioning - Older people Pool,2 - Commissioning - Older people Pool,East Cambs - O P Team
Cambridgeshire County Council,08-Dec-16,22191358-14489229,-750,Cottenham Court Nursing Home,Care Establishment,2 - Commissioning - Older people Pool,2 - Commissioning - Older people Pool,East Cambs - O P Team
Cambridgeshire County Council,08-Dec-16,22191359-14489230,-750,Cottenham Court Nursing Home,Care Establishment,2 - Commissioning - Older people Pool,2 - Commissioning - Older people Pool,East Cambs - O P Team
Cambridgeshire County Council,08-Dec-16,22191360-14489231,-750,Cottenham Court Nursing Home,Care Establishment,2 - Commissioning - Older people Pool,2 - Commissioning - Older people Pool,East Cambs - O P Team
Cambridgeshire County Council,08-Dec-16,22122922-14500260,-750,Rheola Healthcare,Care Establishment,2 - Commissioning - Older people Pool,2 - Commissioning - Older people Pool,Hunts O P  Team
Cambridgeshire County Council,08-Dec-16,22122923-14500261,-750,Rheola Healthcare,Care Establishment,2 - Commissioning - Older people Pool,2 - Commissioning - Older people Pool,Hunts O P  Team
Cambridgeshire County Council,08-Dec-16,22122924-14500262,-750,Rheola Healthcare,Care Establishment,2 - Commissioning - Older people Pool,2 - Commissioning - Older people Pool,Hunts O P  Team
Cambridgeshire County Council,08-Dec-16,22122925-14500263,-750,Rheola Healthcare,Care Establishment,2 - Commissioning - Older people Pool,2 - Commissioning - Older people Pool,Hunts O P  Team
Cambridgeshire County Council,08-Dec-16,22122927-14500265,-750,Rheola Healthcare,Care Establishment,2 - Commissioning - Older people Pool,2 - Commissioning - Older people Pool,Hunts O P  Team
Cambridgeshire County Council,08-Dec-16,22122928-14500266,-750,Rheola Healthcare,Care Establishment,2 - Commissioning - Older people Pool,2 - Commissioning - Older people Pool,Hunts O P  Team
Cambridgeshire County Council,08-Dec-16,22122932-14500270,-750,Rheola Healthcare,Care Establishment,2 - Commissioning - Older people Pool,2 - Commissioning - Older people Pool,Hunts O P  Team
Cambridgeshire County Council,08-Dec-16,22122448-14500275,-750,Rheola Healthcare,Care Establishment,2 - Commissioning - Older people Pool,2 - Commissioning - Older people Pool,Hunts O P  Team
Cambridgeshire County Council,08-Dec-16,22122451-14500277,-750,Rheola Healthcare,Care Establishment,2 - Commissioning - Older people Pool,2 - Commissioning - Older people Pool,Hunts O P  Team
Cambridgeshire County Council,08-Dec-16,22122454-14500279,-750,Rheola Healthcare,Care Establishment,2 - Commissioning - Older people Pool,2 - Commissioning - Older people Pool,Hunts O P  Team
Cambridgeshire County Council,08-Dec-16,22122456-14500281,-750,Rheola Healthcare,Care Establishment,2 - Commissioning - Older people Pool,2 - Commissioning - Older people Pool,Hunts O P  Team
Cambridgeshire County Council,08-Dec-16,22122460-14500285,-750,Rheola Healthcare,Care Establishment,2 - Commissioning - Older people Pool,2 - Commissioning - Older people Pool,Hunts O P  Team
Cambridgeshire County Council,08-Dec-16,22122461-14500286,-750,Rheola Healthcare,Care Establishment,2 - Commissioning - Older people Pool,2 - Commissioning - Older people Pool,Hunts O P  Team
Cambridgeshire County Council,08-Dec-16,22122464-14500289,-750,Rheola Healthcare,Care Establishment,2 - Commissioning - Older people Pool,2 - Commissioning - Older people Pool,Hunts O P  Team
Cambridgeshire County Council,08-Dec-16,22182136-14509255,-750,Better Healthcare Services Ltd,Care Establishment,3 - Operations - Countywide Services,3 - Operations - Countywide Services,Countywide PD Service - Care
Cambridgeshire County Council,08-Dec-16,22182138-14509257,-750,Better Healthcare Services Ltd,Care Establishment,3 - Operations - Countywide Services,3 - Operations - Countywide Services,Countywide PD Service - Care
Cambridgeshire County Council,08-Dec-16,22182139-14509258,-750,Better Healthcare Services Ltd,Care Establishment,3 - Operations - Countywide Services,3 - Operations - Countywide Services,Countywide PD Service - Care
Cambridgeshire County Council,08-Dec-16,22182140-14509259,-750,Better Healthcare Services Ltd,Care Establishment,3 - Operations - Countywide Services,3 - Operations - Countywide Services,Countywide PD Service - Care
Cambridgeshire County Council,08-Dec-16,22182143-14509262,-750,Better Healthcare Services Ltd,Care Establishment,3 - Operations - Countywide Services,3 - Operations - Countywide Services,Countywide PD Service - Care
Cambridgeshire County Council,08-Dec-16,22182146-14509265,-750,Better Healthcare Services Ltd,Care Establishment,3 - Operations - Countywide Services,3 - Operations - Countywide Services,Countywide PD Service - Care
Cambridgeshire County Council,08-Dec-16,22182147-14509266,-750,Better Healthcare Services Ltd,Care Establishment,3 - Operations - Countywide Services,3 - Operations - Countywide Services,Countywide PD Service - Care
Cambridgeshire County Council,08-Dec-16,22186515-14509313,-750,Better Healthcare Services Ltd,Care Establishment,3 - Operations - Countywide Services,3 - Operations - Countywide Services,Countywide PD Service - Care
Cambridgeshire County Council,08-Dec-16,22186517-14509315,-750,Better Healthcare Services Ltd,Care Establishment,3 - Operations - Countywide Services,3 - Operations - Countywide Services,Countywide PD Service - Care
Cambridgeshire County Council,08-Dec-16,22186520-14509318,-750,Better Healthcare Services Ltd,Care Establishment,3 - Operations - Countywide Services,3 - Operations - Countywide Services,Countywide PD Service - Care
Cambridgeshire County Council,08-Dec-16,22186522-14509320,-750,Better Healthcare Services Ltd,Care Establishment,3 - Operations - Countywide Services,3 - Operations - Countywide Services,Countywide PD Service - Care
Cambridgeshire County Council,08-Dec-16,22186591-14509324,-750,Better Healthcare Services Ltd,Care Establishment,3 - Operations - Countywide Services,3 - Operations - Countywide Services,Countywide PD Service - Care
Cambridgeshire County Council,08-Dec-16,22186596-14509329,-750,Better Healthcare Services Ltd,Care Establishment,3 - Operations - Countywide Services,3 - Operations - Countywide Services,Countywide PD Service - Care
Cambridgeshire County Council,08-Dec-16,22186597-14509330,-750,Better Healthcare Services Ltd,Care Establishment,3 - Operations - Countywide Services,3 - Operations - Countywide Services,Countywide PD Service - Care
Cambridgeshire County Council,08-Dec-16,22186598-14509331,-750,Better Healthcare Services Ltd,Care Establishment,3 - Operations - Countywide Services,3 - Operations - Countywide Services,Countywide PD Service - Care
Cambridgeshire County Council,08-Dec-16,22186599-14509332,-750,Better Healthcare Services Ltd,Care Establishment,3 - Operations - Countywide Services,3 - Operations - Countywide Services,Countywide PD Service - Care
Cambridgeshire County Council,08-Dec-16,22186601-14509334,-750,Better Healthcare Services Ltd,Care Establishment,3 - Operations - Countywide Services,3 - Operations - Countywide Services,Countywide PD Service - Care
Cambridgeshire County Council,08-Dec-16,22186602-14509335,-750,Better Healthcare Services Ltd,Care Establishment,3 - Operations - Countywide Services,3 - Operations - Countywide Services,Countywide PD Service - Care
Cambridgeshire County Council,08-Dec-16,22186604-14509337,-750,Better Healthcare Services Ltd,Care Establishment,3 - Operations - Countywide Services,3 - Operations - Countywide Services,Countywide PD Service - Care
Cambridgeshire County Council,08-Dec-16,22186612-14509345,-750,Better Healthcare Services Ltd,Care Establishment,3 - Operations - Countywide Services,3 - Operations - Countywide Services,Countywide PD Service - Care
Cambridgeshire County Council,08-Dec-16,22186613-14509346,-750,Better Healthcare Services Ltd,Care Establishment,3 - Operations - Countywide Services,3 - Operations - Countywide Services,Countywide PD Service - Care
Cambridgeshire County Council,08-Dec-16,22186615-14509348,-750,Better Healthcare Services Ltd,Care Establishment,3 - Operations - Countywide Services,3 - Operations - Countywide Services,Countywide PD Service - Care
Cambridgeshire County Council,08-Dec-16,22186616-14509349,-750,Better Healthcare Services Ltd,Care Establishment,3 - Operations - Countywide Services,3 - Operations - Countywide Services,Countywide PD Service - Care
Cambridgeshire County Council,08-Dec-16,22186620-14509353,-750,Better Healthcare Services Ltd,Care Establishment,3 - Operations - Countywide Services,3 - Operations - Countywide Services,Countywide PD Service - Care
Cambridgeshire County Council,08-Dec-16,22186621-14509354,-750,Better Healthcare Services Ltd,Care Establishment,3 - Operations - Countywide Services,3 - Operations - Countywide Services,Countywide PD Service - Care
Cambridgeshire County Council,08-Dec-16,22186622-14509355,-750,Better Healthcare Services Ltd,Care Establishment,3 - Operations - Countywide Services,3 - Operations - Countywide Services,Countywide PD Service - Care
Cambridgeshire County Council,08-Dec-16,22186625-14509358,-750,Better Healthcare Services Ltd,Care Establishment,3 - Operations - Countywide Services,3 - Operations - Countywide Services,Countywide PD Service - Care
Cambridgeshire County Council,08-Dec-16,22186626-14509359,-750,Better Healthcare Services Ltd,Care Establishment,3 - Operations - Countywide Services,3 - Operations - Countywide Services,Countywide PD Service - Care
Cambridgeshire County Council,08-Dec-16,22182130-14509249,-750,Better Healthcare Services Ltd,Care Establishment,3 - Operations - Countywide Services,3 - Operations - Countywide Services,Countywide PD Service - Care
Cambridgeshire County Council,08-Dec-16,22182132-14509251,-750,Better Healthcare Services Ltd,Care Establishment,3 - Operations - Countywide Services,3 - Operations - Countywide Services,Countywide PD Service - Care
Cambridgeshire County Council,08-Dec-16,22069949-14508339,-747.6,Midas Care Ltd,Care Establishment,2 - Commissioning - Older people Pool,2 - Commissioning - Older people Pool,Older People Mental Health Hunts
Cambridgeshire County Council,08-Dec-16,22069950-14508340,-747.6,Midas Care Ltd,Care Establishment,2 - Commissioning - Older people Pool,2 - Commissioning - Older people Pool,Older People Mental Health Hunts
Cambridgeshire County Council,08-Dec-16,22069958-14508342,-747.6,Midas Care Ltd,Care Establishment,2 - Commissioning - Older people Pool,2 - Commissioning - Older people Pool,Older People Mental Health Hunts
Cambridgeshire County Council,08-Dec-16,22071210-14496460,-747.48,Maycroft Care Home Ltd,Care Establishment,2 - Commissioning - Older people Pool,2 - Commissioning - Older people Pool,Older People - City & South
Cambridgeshire County Council,08-Dec-16,22071211-14496461,-747.48,Maycroft Care Home Ltd,Care Establishment,2 - Commissioning - Older people Pool,2 - Commissioning - Older people Pool,Older People - City & South
Cambridgeshire County Council,08-Dec-16,22071213-14496463,-747.48,Maycroft Care Home Ltd,Care Establishment,2 - Commissioning - Older people Pool,2 - Commissioning - Older people Pool,Older People - City & South
Cambridgeshire County Council,08-Dec-16,22071214-14496464,-747.48,Maycroft Care Home Ltd,Care Establishment,2 - Commissioning - Older people Pool,2 - Commissioning - Older people Pool,Older People - City & South
Cambridgeshire County Council,08-Dec-16,22071215-14496465,-747.48,Maycroft Care Home Ltd,Care Establishment,2 - Commissioning - Older people Pool,2 - Commissioning - Older people Pool,Older People - City & South
Cambridgeshire County Council,22-Dec-16,22273566-14575103,-743.75,Cambridge Manor Care Home (Tlc),Care Establishment,2 - Commissioning - Older people Pool,2 - Commissioning - Older people Pool,Older People - City & South
Cambridgeshire County Council,22-Dec-16,22273567-14575104,-743.75,Cambridge Manor Care Home (Tlc),Care Establishment,2 - Commissioning - Older people Pool,2 - Commissioning - Older people Pool,Older People - City & South
Cambridgeshire County Council,22-Dec-16,22273573-14575110,-743.75,Cambridge Manor Care Home (Tlc),Care Establishment,2 - Commissioning - Older people Pool,2 - Commissioning - Older people Pool,Older People - City & South
Cambridgeshire County Council,22-Dec-16,22273574-14575111,-743.75,Cambridge Manor Care Home (Tlc),Care Establishment,2 - Commissioning - Older people Pool,2 - Commissioning - Older people Pool,Older People - City & South
Cambridgeshire County Council,22-Dec-16,22273580-14575117,-743.75,Cambridge Manor Care Home (Tlc),Care Establishment,2 - Commissioning - Older people Pool,2 - Commissioning - Older people Pool,Older People - City & South
Cambridgeshire County Council,22-Dec-16,22273582-14575119,-743.75,Cambridge Manor Care Home (Tlc),Care Establishment,2 - Commissioning - Older people Pool,2 - Commissioning - Older people Pool,Older People - City & South
Cambridgeshire County Council,22-Dec-16,22278747-14575017,-743.75,Cambridge Manor Care Home (Tlc),Care Establishment,2 - Commissioning - Older people Pool,2 - Commissioning - Older people Pool,Older People - City & South
Cambridgeshire County Council,22-Dec-16,22278752-14575022,-743.75,Cambridge Manor Care Home (Tlc),Care Establishment,2 - Commissioning - Older people Pool,2 - Commissioning - Older people Pool,Older People - City & South
Cambridgeshire County Council,22-Dec-16,22278753-14575023,-743.75,Cambridge Manor Care Home (Tlc),Care Establishment,2 - Commissioning - Older people Pool,2 - Commissioning - Older people Pool,Older People - City & South
Cambridgeshire County Council,22-Dec-16,22278755-14575025,-743.75,Cambridge Manor Care Home (Tlc),Care Establishment,2 - Commissioning - Older people Pool,2 - Commissioning - Older people Pool,Older People - City & South
Cambridgeshire County Council,22-Dec-16,22278757-14575027,-743.75,Cambridge Manor Care Home (Tlc),Care Establishment,2 - Commissioning - Older people Pool,2 - Commissioning - Older people Pool,Older People - City & South
Cambridgeshire County Council,22-Dec-16,22278758-14575028,-743.75,Cambridge Manor Care Home (Tlc),Care Establishment,2 - Commissioning - Older people Pool,2 - Commissioning - Older people Pool,Older People - City & South
Cambridgeshire County Council,22-Dec-16,22278760-14575030,-743.75,Cambridge Manor Care Home (Tlc),Care Establishment,2 - Commissioning - Older people Pool,2 - Commissioning - Older people Pool,Older People - City & South
Cambridgeshire County Council,22-Dec-16,22278764-14575034,-743.75,Cambridge Manor Care Home (Tlc),Care Establishment,2 - Commissioning - Older people Pool,2 - Commissioning - Older people Pool,Older People - City & South
Cambridgeshire County Council,22-Dec-16,22278766-14575036,-743.75,Cambridge Manor Care Home (Tlc),Care Establishment,2 - Commissioning - Older people Pool,2 - Commissioning - Older people Pool,Older People - City & South
Cambridgeshire County Council,22-Dec-16,22278770-14575040,-743.75,Cambridge Manor Care Home (Tlc),Care Establishment,2 - Commissioning - Older people Pool,2 - Commissioning - Older people Pool,Older People - City & South
Cambridgeshire County Council,22-Dec-16,22278772-14575042,-743.75,Cambridge Manor Care Home (Tlc),Care Establishment,2 - Commissioning - Older people Pool,2 - Commissioning - Older people Pool,Older People - City & South
Cambridgeshire County Council,22-Dec-16,22278773-14575043,-743.75,Cambridge Manor Care Home (Tlc),Care Establishment,2 - Commissioning - Older people Pool,2 - Commissioning - Older people Pool,Older People - City & South
Cambridgeshire County Council,22-Dec-16,22278774-14575044,-743.75,Cambridge Manor Care Home (Tlc),Care Establishment,2 - Commissioning - Older people Pool,2 - Commissioning - Older people Pool,Older People - City & South
Cambridgeshire County Council,22-Dec-16,22276486-14575048,-743.75,Cambridge Manor Care Home (Tlc),Care Establishment,2 - Commissioning - Older people Pool,2 - Commissioning - Older people Pool,Older People - City & South
Cambridgeshire County Council,22-Dec-16,22276492-14575054,-743.75,Cambridge Manor Care Home (Tlc),Care Establishment,2 - Commissioning - Older people Pool,2 - Commissioning - Older people Pool,Older People - City & South
Cambridgeshire County Council,22-Dec-16,22276495-14575057,-743.75,Cambridge Manor Care Home (Tlc),Care Establishment,2 - Commissioning - Older people Pool,2 - Commissioning - Older people Pool,Older People - City & South
Cambridgeshire County Council,22-Dec-16,22276496-14575058,-743.75,Cambridge Manor Care Home (Tlc),Care Establishment,2 - Commissioning - Older people Pool,2 - Commissioning - Older people Pool,Older People - City & South
Cambridgeshire County Council,22-Dec-16,22276500-14575062,-743.75,Cambridge Manor Care Home (Tlc),Care Establishment,2 - Commissioning - Older people Pool,2 - Commissioning - Older people Pool,Older People - City & South
Cambridgeshire County Council,22-Dec-16,22273538-14575075,-743.75,Cambridge Manor Care Home (Tlc),Care Establishment,2 - Commissioning - Older people Pool,2 - Commissioning - Older people Pool,Older People - City & South
Cambridgeshire County Council,22-Dec-16,22273539-14575076,-743.75,Cambridge Manor Care Home (Tlc),Care Establishment,2 - Commissioning - Older people Pool,2 - Commissioning - Older people Pool,Older People - City & South
Cambridgeshire County Council,22-Dec-16,22273544-14575081,-743.75,Cambridge Manor Care Home (Tlc),Care Establishment,2 - Commissioning - Older people Pool,2 - Commissioning - Older people Pool,Older People - City & South
Cambridgeshire County Council,22-Dec-16,22273545-14575082,-743.75,Cambridge Manor Care Home (Tlc),Care Establishment,2 - Commissioning - Older people Pool,2 - Commissioning - Older people Pool,Older People - City & South
Cambridgeshire County Council,22-Dec-16,22273558-14575095,-743.75,Cambridge Manor Care Home (Tlc),Care Establishment,2 - Commissioning - Older people Pool,2 - Commissioning - Older people Pool,Older People - City & South
Cambridgeshire County Council,22-Dec-16,22273562-14575099,-743.75,Cambridge Manor Care Home (Tlc),Care Establishment,2 - Commissioning - Older people Pool,2 - Commissioning - Older people Pool,Older People - City & South
Cambridgeshire County Council,22-Dec-16,22273572-14575109,-728,Cambridge Manor Care Home (Tlc),Care Establishment,2 - Commissioning - Older people Pool,2 - Commissioning - Older people Pool,Older People - City & South
Cambridgeshire County Council,22-Dec-16,22273577-14575114,-728,Cambridge Manor Care Home (Tlc),Care Establishment,2 - Commissioning - Older people Pool,2 - Commissioning - Older people Pool,Older People - City & South
Cambridgeshire County Council,22-Dec-16,22278736-14575006,-728,Cambridge Manor Care Home (Tlc),Care Establishment,2 - Commissioning - Older people Pool,2 - Commissioning - Older people Pool,Older People - City & South
Cambridgeshire County Council,22-Dec-16,22278743-14575013,-728,Cambridge Manor Care Home (Tlc),Care Establishment,2 - Commissioning - Older people Pool,2 - Commissioning - Older people Pool,Older People - City & South
Cambridgeshire County Council,22-Dec-16,22278748-14575018,-728,Cambridge Manor Care Home (Tlc),Care Establishment,2 - Commissioning - Older people Pool,2 - Commissioning - Older people Pool,Older People - City & South
Cambridgeshire County Council,22-Dec-16,22278761-14575031,-728,Cambridge Manor Care Home (Tlc),Care Establishment,2 - Commissioning - Older people Pool,2 - Commissioning - Older people Pool,Older People - City & South
Cambridgeshire County Council,22-Dec-16,22278762-14575032,-728,Cambridge Manor Care Home (Tlc),Care Establishment,2 - Commissioning - Older people Pool,2 - Commissioning - Older people Pool,Older People - City & South
Cambridgeshire County Council,22-Dec-16,22278763-14575033,-728,Cambridge Manor Care Home (Tlc),Care Establishment,2 - Commissioning - Older people Pool,2 - Commissioning - Older people Pool,Older People - City & South
Cambridgeshire County Council,22-Dec-16,22278775-14575045,-728,Cambridge Manor Care Home (Tlc),Care Establishment,2 - Commissioning - Older people Pool,2 - Commissioning - Older people Pool,Older People - City & South
Cambridgeshire County Council,22-Dec-16,22276489-14575051,-728,Cambridge Manor Care Home (Tlc),Care Establishment,2 - Commissioning - Older people Pool,2 - Commissioning - Older people Pool,Older People - City & South
Cambridgeshire County Council,22-Dec-16,22276498-14575060,-728,Cambridge Manor Care Home (Tlc),Care Establishment,2 - Commissioning - Older people Pool,2 - Commissioning - Older people Pool,Older People - City & South
Cambridgeshire County Council,22-Dec-16,22276501-14575063,-728,Cambridge Manor Care Home (Tlc),Care Establishment,2 - Commissioning - Older people Pool,2 - Commissioning - Older people Pool,Older People - City & South
Cambridgeshire County Council,22-Dec-16,22276502-14575064,-728,Cambridge Manor Care Home (Tlc),Care Establishment,2 - Commissioning - Older people Pool,2 - Commissioning - Older people Pool,Older People - City & South
Cambridgeshire County Council,22-Dec-16,22276503-14575065,-728,Cambridge Manor Care Home (Tlc),Care Establishment,2 - Commissioning - Older people Pool,2 - Commissioning - Older people Pool,Older People - City & South
Cambridgeshire County Council,22-Dec-16,22273535-14575072,-728,Cambridge Manor Care Home (Tlc),Care Establishment,2 - Commissioning - Older people Pool,2 - Commissioning - Older people Pool,Older People - City & South
Cambridgeshire County Council,22-Dec-16,22273542-14575079,-728,Cambridge Manor Care Home (Tlc),Care Establishment,2 - Commissioning - Older people Pool,2 - Commissioning - Older people Pool,Older People - City & South
Cambridgeshire County Council,22-Dec-16,22273548-14575085,-728,Cambridge Manor Care Home (Tlc),Care Establishment,2 - Commissioning - Older people Pool,2 - Commissioning - Older people Pool,Older People - City & South
Cambridgeshire County Council,22-Dec-16,22273553-14575090,-728,Cambridge Manor Care Home (Tlc),Care Establishment,2 - Commissioning - Older people Pool,2 - Commissioning - Older people Pool,Older People - City & South
Cambridgeshire County Council,22-Dec-16,22273554-14575091,-728,Cambridge Manor Care Home (Tlc),Care Establishment,2 - Commissioning - Older people Pool,2 - Commissioning - Older people Pool,Older People - City & South
Cambridgeshire County Council,22-Dec-16,22273555-14575092,-728,Cambridge Manor Care Home (Tlc),Care Establishment,2 - Commissioning - Older people Pool,2 - Commissioning - Older people Pool,Older People - City & South
Cambridgeshire County Council,22-Dec-16,22273556-14575093,-728,Cambridge Manor Care Home (Tlc),Care Establishment,2 - Commissioning - Older people Pool,2 - Commissioning - Older people Pool,Older People - City & South
Cambridgeshire County Council,28-Dec-16,22232792-14585580,-719.81,Compass Fostering,Care Establishment,S&C,S&C,Placements - Social Care
Cambridgeshire County Council,07-Dec-16,22129220-14484675,-715,Nasa Cars,Trade Supplier,S&C,S&C,Home to School Transport - Special
Cambridgeshire County Council,08-Dec-16,22187249-14489170,-700,Cottenham Court Nursing Home,Care Establishment,2 - Commissioning - Older people Pool,2 - Commissioning - Older people Pool,Older People - City & South
Cambridgeshire County Council,08-Dec-16,22187250-14489171,-700,Cottenham Court Nursing Home,Care Establishment,2 - Commissioning - Older people Pool,2 - Commissioning - Older people Pool,Older People - City & South
Cambridgeshire County Council,08-Dec-16,22187253-14489174,-700,Cottenham Court Nursing Home,Care Establishment,2 - Commissioning - Older people Pool,2 - Commissioning - Older people Pool,Older People - City & South
Cambridgeshire County Council,08-Dec-16,22187256-14489176,-700,Cottenham Court Nursing Home,Care Establishment,2 - Commissioning - Older people Pool,2 - Commissioning - Older people Pool,Older People - City & South
Cambridgeshire County Council,08-Dec-16,22187260-14489179,-700,Cottenham Court Nursing Home,Care Establishment,2 - Commissioning - Older people Pool,2 - Commissioning - Older people Pool,Older People - City & South
Cambridgeshire County Council,08-Dec-16,22187263-14489181,-700,Cottenham Court Nursing Home,Care Establishment,2 - Commissioning - Older people Pool,2 - Commissioning - Older people Pool,Older People - City & South
Cambridgeshire County Council,08-Dec-16,22187264-14489182,-700,Cottenham Court Nursing Home,Care Establishment,2 - Commissioning - Older people Pool,2 - Commissioning - Older people Pool,Older People - City & South
Cambridgeshire County Council,08-Dec-16,22187266-14489184,-700,Cottenham Court Nursing Home,Care Establishment,2 - Commissioning - Older people Pool,2 - Commissioning - Older people Pool,Older People - City & South
Cambridgeshire County Council,08-Dec-16,22187268-14489186,-700,Cottenham Court Nursing Home,Care Establishment,2 - Commissioning - Older people Pool,2 - Commissioning - Older people Pool,Older People - City & South
Cambridgeshire County Council,08-Dec-16,22187221-14489146,-700,Cottenham Court Nursing Home,Care Establishment,2 - Commissioning - Older people Pool,2 - Commissioning - Older people Pool,Older People - City & South
Cambridgeshire County Council,08-Dec-16,22187222-14489147,-700,Cottenham Court Nursing Home,Care Establishment,2 - Commissioning - Older people Pool,2 - Commissioning - Older people Pool,Older People - City & South
Cambridgeshire County Council,08-Dec-16,22187223-14489148,-700,Cottenham Court Nursing Home,Care Establishment,2 - Commissioning - Older people Pool,2 - Commissioning - Older people Pool,Older People - City & South
Cambridgeshire County Council,08-Dec-16,22187224-14489149,-700,Cottenham Court Nursing Home,Care Establishment,2 - Commissioning - Older people Pool,2 - Commissioning - Older people Pool,Older People - City & South
Cambridgeshire County Council,08-Dec-16,22187225-14489150,-700,Cottenham Court Nursing Home,Care Establishment,2 - Commissioning - Older people Pool,2 - Commissioning - Older people Pool,Older People - City & South
Cambridgeshire County Council,08-Dec-16,22187235-14489159,-700,Cottenham Court Nursing Home,Care Establishment,2 - Commissioning - Older people Pool,2 - Commissioning - Older people Pool,Older People - City & South
Cambridgeshire County Council,08-Dec-16,22187236-14489160,-700,Cottenham Court Nursing Home,Care Establishment,2 - Commissioning - Older people Pool,2 - Commissioning - Older people Pool,Older People - City & South
Cambridgeshire County Council,08-Dec-16,22187239-14489162,-700,Cottenham Court Nursing Home,Care Establishment,2 - Commissioning - Older people Pool,2 - Commissioning - Older people Pool,Older People - City & South
Cambridgeshire County Council,08-Dec-16,22187240-14489163,-700,Cottenham Court Nursing Home,Care Establishment,2 - Commissioning - Older people Pool,2 - Commissioning - Older people Pool,Older People - City & South
Cambridgeshire County Council,08-Dec-16,22187246-14489168,-700,Cottenham Court Nursing Home,Care Establishment,2 - Commissioning - Older people Pool,2 - Commissioning - Older people Pool,Older People - City & South
Cambridgeshire County Council,22-Dec-16,22253966-14575584,-700,Abbey Healthcare (Huntingdon) Ltd,Care Establishment,2 - Commissioning - Older people Pool,2 - Commissioning - Older people Pool,Older People Mental Health Hunts
Cambridgeshire County Council,22-Dec-16,22253969-14575585,-700,Abbey Healthcare (Huntingdon) Ltd,Care Establishment,2 - Commissioning - Older people Pool,2 - Commissioning - Older people Pool,Older People Mental Health Hunts
Cambridgeshire County Council,22-Dec-16,22253970-14575586,-700,Abbey Healthcare (Huntingdon) Ltd,Care Establishment,2 - Commissioning - Older people Pool,2 - Commissioning - Older people Pool,Older People Mental Health Hunts
Cambridgeshire County Council,22-Dec-16,22253974-14575587,-700,Abbey Healthcare (Huntingdon) Ltd,Care Establishment,2 - Commissioning - Older people Pool,2 - Commissioning - Older people Pool,Older People Mental Health Hunts
Cambridgeshire County Council,22-Dec-16,22253977-14575589,-700,Abbey Healthcare (Huntingdon) Ltd,Care Establishment,2 - Commissioning - Older people Pool,2 - Commissioning - Older people Pool,Older People Mental Health Hunts
Cambridgeshire County Council,22-Dec-16,22253978-14575590,-700,Abbey Healthcare (Huntingdon) Ltd,Care Establishment,2 - Commissioning - Older people Pool,2 - Commissioning - Older people Pool,Older People Mental Health Hunts
Cambridgeshire County Council,05-Dec-16,22045885-14471426,-693.9,Bill Ibbotts Catering Equipment Services Ltd,Trade Supplier,S&C,S&C,"Catering - Property, Equipment & Maintenance"
Cambridgeshire County Council,08-Dec-16,22186540-14501830,-685.71,The Cambridge Nursing Centre,Care Establishment,2 - Commissioning - Older people Pool,2 - Commissioning - Older people Pool,Older People Mental Health E Cambs
Cambridgeshire County Council,21-Dec-16,22264540-14563670,-668.4,Flex Able Travel Limited,Trade Supplier,S&C,S&C,Home to School Transport - Special
Cambridgeshire County Council,08-Dec-16,22123935-14503593,-667.8,Dimensions (Uk) Ltd,Care Establishment,2 - Operations - Learning Disability,2 - Operations - Learning Disability,LDP Cambs City - Special Needs
Cambridgeshire County Council,08-Dec-16,22089673-14503653,-667.8,Dimensions (Uk) Ltd,Care Establishment,2 - Operations - Learning Disability,2 - Operations - Learning Disability,LDP South Cambs - Special Needs
Cambridgeshire County Council,08-Dec-16,22068021-14503685,-667.8,Dimensions (Uk) Ltd,Care Establishment,2 - Operations - Learning Disability,2 - Operations - Learning Disability,LDP Cambs City - Special Needs
Cambridgeshire County Council,08-Dec-16,22182326-14503567,-667.8,Dimensions (Uk) Ltd,Care Establishment,2 - Operations - Learning Disability,2 - Operations - Learning Disability,LDP South Cambs - Special Needs
Cambridgeshire County Council,08-Dec-16,22072312-14502242,-666.21,Etheldred House,Care Establishment,2 - Commissioning - Older people Pool,2 - Commissioning - Older people Pool,East Cambs - O P Team
Cambridgeshire County Council,01-Dec-16,22122501-14453173,-655.19,The Cambridge Nursing Centre,Care Establishment,2 - Commissioning - Older people Pool,2 - Commissioning - Older people Pool,Older People Mental Health Hunts
Cambridgeshire County Council,01-Dec-16,22122502-14453174,-655.19,The Cambridge Nursing Centre,Care Establishment,2 - Commissioning - Older people Pool,2 - Commissioning - Older people Pool,Older People Mental Health Hunts
Cambridgeshire County Council,01-Dec-16,22122503-14453175,-655.19,The Cambridge Nursing Centre,Care Establishment,2 - Commissioning - Older people Pool,2 - Commissioning - Older people Pool,Older People Mental Health Hunts
Cambridgeshire County Council,01-Dec-16,22122504-14453176,-655.19,The Cambridge Nursing Centre,Care Establishment,2 - Commissioning - Older people Pool,2 - Commissioning - Older people Pool,Older People Mental Health Hunts
Cambridgeshire County Council,01-Dec-16,22122505-14453177,-655.19,The Cambridge Nursing Centre,Care Establishment,2 - Commissioning - Older people Pool,2 - Commissioning - Older people Pool,Older People Mental Health Hunts
Cambridgeshire County Council,08-Dec-16,22191112-14510878,-651,Qualitycare,Care Establishment,2 - Commissioning - Older people Pool,2 - Commissioning - Older people Pool,East Cambs - O P Team
Cambridgeshire County Council,08-Dec-16,22191113-14510879,-651,Qualitycare,Care Establishment,2 - Commissioning - Older people Pool,2 - Commissioning - Older people Pool,East Cambs - O P Team
Cambridgeshire County Council,08-Dec-16,22191119-14510884,-651,Qualitycare,Care Establishment,2 - Commissioning - Older people Pool,2 - Commissioning - Older people Pool,East Cambs - O P Team
Cambridgeshire County Council,08-Dec-16,22191123-14510888,-651,Qualitycare,Care Establishment,2 - Commissioning - Older people Pool,2 - Commissioning - Older people Pool,East Cambs - O P Team
Cambridgeshire County Council,08-Dec-16,22191124-14510889,-651,Qualitycare,Care Establishment,2 - Commissioning - Older people Pool,2 - Commissioning - Older people Pool,East Cambs - O P Team
Cambridgeshire County Council,08-Dec-16,22191125-14510890,-651,Qualitycare,Care Establishment,2 - Commissioning - Older people Pool,2 - Commissioning - Older people Pool,East Cambs - O P Team
Cambridgeshire County Council,08-Dec-16,22191126-14510891,-651,Qualitycare,Care Establishment,2 - Commissioning - Older people Pool,2 - Commissioning - Older people Pool,East Cambs - O P Team
Cambridgeshire County Council,08-Dec-16,22191132-14510894,-651,Qualitycare,Care Establishment,2 - Commissioning - Older people Pool,2 - Commissioning - Older people Pool,East Cambs - O P Team
Cambridgeshire County Council,08-Dec-16,22191133-14510895,-651,Qualitycare,Care Establishment,2 - Commissioning - Older people Pool,2 - Commissioning - Older people Pool,East Cambs - O P Team
Cambridgeshire County Council,08-Dec-16,22191135-14510897,-651,Qualitycare,Care Establishment,2 - Commissioning - Older people Pool,2 - Commissioning - Older people Pool,East Cambs - O P Team
Cambridgeshire County Council,08-Dec-16,22191137-14510899,-651,Qualitycare,Care Establishment,2 - Commissioning - Older people Pool,2 - Commissioning - Older people Pool,East Cambs - O P Team
Cambridgeshire County Council,08-Dec-16,22191151-14510907,-651,Qualitycare,Care Establishment,2 - Commissioning - Older people Pool,2 - Commissioning - Older people Pool,East Cambs - O P Team
Cambridgeshire County Council,08-Dec-16,22191158-14510911,-651,Qualitycare,Care Establishment,2 - Commissioning - Older people Pool,2 - Commissioning - Older people Pool,East Cambs - O P Team
Cambridgeshire County Council,08-Dec-16,22191159-14510912,-651,Qualitycare,Care Establishment,2 - Commissioning - Older people Pool,2 - Commissioning - Older people Pool,East Cambs - O P Team
Cambridgeshire County Council,08-Dec-16,22191160-14510913,-651,Qualitycare,Care Establishment,2 - Commissioning - Older people Pool,2 - Commissioning - Older people Pool,East Cambs - O P Team
Cambridgeshire County Council,08-Dec-16,22191161-14510914,-651,Qualitycare,Care Establishment,2 - Commissioning - Older people Pool,2 - Commissioning - Older people Pool,East Cambs - O P Team
Cambridgeshire County Council,08-Dec-16,22191167-14510918,-651,Qualitycare,Care Establishment,2 - Commissioning - Older people Pool,2 - Commissioning - Older people Pool,East Cambs - O P Team
Cambridgeshire County Council,08-Dec-16,22191168-14510919,-651,Qualitycare,Care Establishment,2 - Commissioning - Older people Pool,2 - Commissioning - Older people Pool,East Cambs - O P Team
Cambridgeshire County Council,08-Dec-16,22191169-14510920,-651,Qualitycare,Care Establishment,2 - Commissioning - Older people Pool,2 - Commissioning - Older people Pool,East Cambs - O P Team
Cambridgeshire County Council,08-Dec-16,22191170-14510921,-651,Qualitycare,Care Establishment,2 - Commissioning - Older people Pool,2 - Commissioning - Older people Pool,East Cambs - O P Team
Cambridgeshire County Council,08-Dec-16,22191172-14510923,-651,Qualitycare,Care Establishment,2 - Commissioning - Older people Pool,2 - Commissioning - Older people Pool,East Cambs - O P Team
Cambridgeshire County Council,08-Dec-16,22191173-14510924,-651,Qualitycare,Care Establishment,2 - Commissioning - Older people Pool,2 - Commissioning - Older people Pool,East Cambs - O P Team
Cambridgeshire County Council,08-Dec-16,22191182-14510931,-651,Qualitycare,Care Establishment,2 - Commissioning - Older people Pool,2 - Commissioning - Older people Pool,East Cambs - O P Team
Cambridgeshire County Council,08-Dec-16,22191190-14510935,-651,Qualitycare,Care Establishment,2 - Commissioning - Older people Pool,2 - Commissioning - Older people Pool,East Cambs - O P Team
Cambridgeshire County Council,08-Dec-16,22191192-14510937,-651,Qualitycare,Care Establishment,2 - Commissioning - Older people Pool,2 - Commissioning - Older people Pool,East Cambs - O P Team
Cambridgeshire County Council,08-Dec-16,22191193-14510938,-651,Qualitycare,Care Establishment,2 - Commissioning - Older people Pool,2 - Commissioning - Older people Pool,East Cambs - O P Team
Cambridgeshire County Council,08-Dec-16,22191195-14510940,-651,Qualitycare,Care Establishment,2 - Commissioning - Older people Pool,2 - Commissioning - Older people Pool,East Cambs - O P Team
Cambridgeshire County Council,08-Dec-16,22191197-14510942,-651,Qualitycare,Care Establishment,2 - Commissioning - Older people Pool,2 - Commissioning - Older people Pool,East Cambs - O P Team
Cambridgeshire County Council,08-Dec-16,22191048-14510839,-651,Qualitycare,Care Establishment,2 - Commissioning - Older people Pool,2 - Commissioning - Older people Pool,East Cambs - O P Team
Cambridgeshire County Council,08-Dec-16,22191049-14510840,-651,Qualitycare,Care Establishment,2 - Commissioning - Older people Pool,2 - Commissioning - Older people Pool,East Cambs - O P Team
Cambridgeshire County Council,08-Dec-16,22191050-14510841,-651,Qualitycare,Care Establishment,2 - Commissioning - Older people Pool,2 - Commissioning - Older people Pool,East Cambs - O P Team
Cambridgeshire County Council,08-Dec-16,22191051-14510842,-651,Qualitycare,Care Establishment,2 - Commissioning - Older people Pool,2 - Commissioning - Older people Pool,East Cambs - O P Team
Cambridgeshire County Council,08-Dec-16,22191052-14510843,-651,Qualitycare,Care Establishment,2 - Commissioning - Older people Pool,2 - Commissioning - Older people Pool,East Cambs - O P Team
Cambridgeshire County Council,08-Dec-16,22191054-14510845,-651,Qualitycare,Care Establishment,2 - Commissioning - Older people Pool,2 - Commissioning - Older people Pool,East Cambs - O P Team
Cambridgeshire County Council,08-Dec-16,22191057-14510848,-651,Qualitycare,Care Establishment,2 - Commissioning - Older people Pool,2 - Commissioning - Older people Pool,East Cambs - O P Team
Cambridgeshire County Council,08-Dec-16,22191058-14510849,-651,Qualitycare,Care Establishment,2 - Commissioning - Older people Pool,2 - Commissioning - Older people Pool,East Cambs - O P Team
Cambridgeshire County Council,08-Dec-16,22191064-14510850,-651,Qualitycare,Care Establishment,2 - Commissioning - Older people Pool,2 - Commissioning - Older people Pool,East Cambs - O P Team
Cambridgeshire County Council,08-Dec-16,22191068-14510854,-651,Qualitycare,Care Establishment,2 - Commissioning - Older people Pool,2 - Commissioning - Older people Pool,East Cambs - O P Team
Cambridgeshire County Council,08-Dec-16,22191070-14510856,-651,Qualitycare,Care Establishment,2 - Commissioning - Older people Pool,2 - Commissioning - Older people Pool,East Cambs - O P Team
Cambridgeshire County Council,08-Dec-16,22191078-14510859,-651,Qualitycare,Care Establishment,2 - Commissioning - Older people Pool,2 - Commissioning - Older people Pool,East Cambs - O P Team
Cambridgeshire County Council,08-Dec-16,22191080-14510861,-651,Qualitycare,Care Establishment,2 - Commissioning - Older people Pool,2 - Commissioning - Older people Pool,East Cambs - O P Team
Cambridgeshire County Council,08-Dec-16,22191081-14510862,-651,Qualitycare,Care Establishment,2 - Commissioning - Older people Pool,2 - Commissioning - Older people Pool,East Cambs - O P Team
Cambridgeshire County Council,08-Dec-16,22191087-14510865,-651,Qualitycare,Care Establishment,2 - Commissioning - Older people Pool,2 - Commissioning - Older people Pool,East Cambs - O P Team
Cambridgeshire County Council,08-Dec-16,22191088-14510866,-651,Qualitycare,Care Establishment,2 - Commissioning - Older people Pool,2 - Commissioning - Older people Pool,East Cambs - O P Team
Cambridgeshire County Council,08-Dec-16,22191090-14510868,-651,Qualitycare,Care Establishment,2 - Commissioning - Older people Pool,2 - Commissioning - Older people Pool,East Cambs - O P Team
Cambridgeshire County Council,08-Dec-16,22191092-14510870,-651,Qualitycare,Care Establishment,2 - Commissioning - Older people Pool,2 - Commissioning - Older people Pool,East Cambs - O P Team
Cambridgeshire County Council,08-Dec-16,22191094-14510872,-651,Qualitycare,Care Establishment,2 - Commissioning - Older people Pool,2 - Commissioning - Older people Pool,East Cambs - O P Team
Cambridgeshire County Council,08-Dec-16,22194491-14510340,-651,Qualitycare,Care Establishment,2 - Commissioning - Older people Pool,2 - Commissioning - Older people Pool,East Cambs - O P Team
Cambridgeshire County Council,08-Dec-16,22194496-14510345,-651,Qualitycare,Care Establishment,2 - Commissioning - Older people Pool,2 - Commissioning - Older people Pool,East Cambs - O P Team
Cambridgeshire County Council,08-Dec-16,22194499-14510348,-651,Qualitycare,Care Establishment,2 - Commissioning - Older people Pool,2 - Commissioning - Older people Pool,East Cambs - O P Team
Cambridgeshire County Council,08-Dec-16,22191038-14509884,-651,Qualitycare,Care Establishment,2 - Commissioning - Older people Pool,2 - Commissioning - Older people Pool,East Cambs - O P Team
Cambridgeshire County Council,08-Dec-16,22191039-14509885,-651,Qualitycare,Care Establishment,2 - Commissioning - Older people Pool,2 - Commissioning - Older people Pool,East Cambs - O P Team
Cambridgeshire County Council,08-Dec-16,22191040-14509886,-651,Qualitycare,Care Establishment,2 - Commissioning - Older people Pool,2 - Commissioning - Older people Pool,East Cambs - O P Team
Cambridgeshire County Council,08-Dec-16,22190974-14509888,-651,Qualitycare,Care Establishment,2 - Commissioning - Older people Pool,2 - Commissioning - Older people Pool,East Cambs - O P Team
Cambridgeshire County Council,08-Dec-16,22190975-14509889,-651,Qualitycare,Care Establishment,2 - Commissioning - Older people Pool,2 - Commissioning - Older people Pool,East Cambs - O P Team
Cambridgeshire County Council,08-Dec-16,22190978-14509892,-651,Qualitycare,Care Establishment,2 - Commissioning - Older people Pool,2 - Commissioning - Older people Pool,East Cambs - O P Team
Cambridgeshire County Council,08-Dec-16,22190981-14509895,-651,Qualitycare,Care Establishment,2 - Commissioning - Older people Pool,2 - Commissioning - Older people Pool,East Cambs - O P Team
Cambridgeshire County Council,08-Dec-16,22190983-14509897,-651,Qualitycare,Care Establishment,2 - Commissioning - Older people Pool,2 - Commissioning - Older people Pool,East Cambs - O P Team
Cambridgeshire County Council,08-Dec-16,22190984-14509898,-651,Qualitycare,Care Establishment,2 - Commissioning - Older people Pool,2 - Commissioning - Older people Pool,East Cambs - O P Team
Cambridgeshire County Council,08-Dec-16,22190986-14509900,-651,Qualitycare,Care Establishment,2 - Commissioning - Older people Pool,2 - Commissioning - Older people Pool,East Cambs - O P Team
Cambridgeshire County Council,08-Dec-16,22190944-14509903,-651,Qualitycare,Care Establishment,2 - Commissioning - Older people Pool,2 - Commissioning - Older people Pool,East Cambs - O P Team
Cambridgeshire County Council,08-Dec-16,22190946-14509905,-651,Qualitycare,Care Establishment,2 - Commissioning - Older people Pool,2 - Commissioning - Older people Pool,East Cambs - O P Team
Cambridgeshire County Council,08-Dec-16,22190949-14509908,-651,Qualitycare,Care Establishment,2 - Commissioning - Older people Pool,2 - Commissioning - Older people Pool,East Cambs - O P Team
Cambridgeshire County Council,08-Dec-16,22190951-14509910,-651,Qualitycare,Care Establishment,2 - Commissioning - Older people Pool,2 - Commissioning - Older people Pool,East Cambs - O P Team
Cambridgeshire County Council,08-Dec-16,22190958-14509843,-651,Qualitycare,Care Establishment,2 - Commissioning - Older people Pool,2 - Commissioning - Older people Pool,East Cambs - O P Team
Cambridgeshire County Council,08-Dec-16,22190959-14509844,-651,Qualitycare,Care Establishment,2 - Commissioning - Older people Pool,2 - Commissioning - Older people Pool,East Cambs - O P Team
Cambridgeshire County Council,08-Dec-16,22190961-14509846,-651,Qualitycare,Care Establishment,2 - Commissioning - Older people Pool,2 - Commissioning - Older people Pool,East Cambs - O P Team
Cambridgeshire County Council,08-Dec-16,22190962-14509847,-651,Qualitycare,Care Establishment,2 - Commissioning - Older people Pool,2 - Commissioning - Older people Pool,East Cambs - O P Team
Cambridgeshire County Council,08-Dec-16,22190963-14509848,-651,Qualitycare,Care Establishment,2 - Commissioning - Older people Pool,2 - Commissioning - Older people Pool,East Cambs - O P Team
Cambridgeshire County Council,08-Dec-16,22190966-14509851,-651,Qualitycare,Care Establishment,2 - Commissioning - Older people Pool,2 - Commissioning - Older people Pool,East Cambs - O P Team
Cambridgeshire County Council,08-Dec-16,22190968-14509853,-651,Qualitycare,Care Establishment,2 - Commissioning - Older people Pool,2 - Commissioning - Older people Pool,East Cambs - O P Team
Cambridgeshire County Council,08-Dec-16,22190993-14509856,-651,Qualitycare,Care Establishment,2 - Commissioning - Older people Pool,2 - Commissioning - Older people Pool,East Cambs - O P Team
Cambridgeshire County Council,08-Dec-16,22190994-14509857,-651,Qualitycare,Care Establishment,2 - Commissioning - Older people Pool,2 - Commissioning - Older people Pool,East Cambs - O P Team
Cambridgeshire County Council,08-Dec-16,22190997-14509860,-651,Qualitycare,Care Establishment,2 - Commissioning - Older people Pool,2 - Commissioning - Older people Pool,East Cambs - O P Team
Cambridgeshire County Council,08-Dec-16,22191006-14509862,-651,Qualitycare,Care Establishment,2 - Commissioning - Older people Pool,2 - Commissioning - Older people Pool,East Cambs - O P Team
Cambridgeshire County Council,08-Dec-16,22191007-14509863,-651,Qualitycare,Care Establishment,2 - Commissioning - Older people Pool,2 - Commissioning - Older people Pool,East Cambs - O P Team
Cambridgeshire County Council,08-Dec-16,22191010-14509866,-651,Qualitycare,Care Establishment,2 - Commissioning - Older people Pool,2 - Commissioning - Older people Pool,East Cambs - O P Team
Cambridgeshire County Council,08-Dec-16,22191011-14509867,-651,Qualitycare,Care Establishment,2 - Commissioning - Older people Pool,2 - Commissioning - Older people Pool,East Cambs - O P Team
Cambridgeshire County Council,08-Dec-16,22191020-14509869,-651,Qualitycare,Care Establishment,2 - Commissioning - Older people Pool,2 - Commissioning - Older people Pool,East Cambs - O P Team
Cambridgeshire County Council,08-Dec-16,22191024-14509873,-651,Qualitycare,Care Establishment,2 - Commissioning - Older people Pool,2 - Commissioning - Older people Pool,East Cambs - O P Team
Cambridgeshire County Council,08-Dec-16,22191027-14509876,-651,Qualitycare,Care Establishment,2 - Commissioning - Older people Pool,2 - Commissioning - Older people Pool,East Cambs - O P Team
Cambridgeshire County Council,08-Dec-16,22191032-14509880,-651,Qualitycare,Care Establishment,2 - Commissioning - Older people Pool,2 - Commissioning - Older people Pool,East Cambs - O P Team
Cambridgeshire County Council,08-Dec-16,22191034-14509882,-651,Qualitycare,Care Establishment,2 - Commissioning - Older people Pool,2 - Commissioning - Older people Pool,East Cambs - O P Team
Cambridgeshire County Council,08-Dec-16,22176532-14493494,-650,Abbey Healthcare (Huntingdon) Ltd,Care Establishment,2 - Commissioning - Older people Pool,2 - Commissioning - Older people Pool,Older People Mental Health Hunts
Cambridgeshire County Council,08-Dec-16,22176537-14493495,-650,Abbey Healthcare (Huntingdon) Ltd,Care Establishment,2 - Commissioning - Older people Pool,2 - Commissioning - Older people Pool,Older People Mental Health Hunts
Cambridgeshire County Council,08-Dec-16,22180537-14493509,-650,Abbey Healthcare (Huntingdon) Ltd,Care Establishment,2 - Commissioning - Older people Pool,2 - Commissioning - Older people Pool,Older People Mental Health Hunts
Cambridgeshire County Council,08-Dec-16,22180538-14493510,-650,Abbey Healthcare (Huntingdon) Ltd,Care Establishment,2 - Commissioning - Older people Pool,2 - Commissioning - Older people Pool,Older People Mental Health Hunts
Cambridgeshire County Council,08-Dec-16,22180539-14493511,-650,Abbey Healthcare (Huntingdon) Ltd,Care Establishment,2 - Commissioning - Older people Pool,2 - Commissioning - Older people Pool,Older People Mental Health Hunts
Cambridgeshire County Council,08-Dec-16,22180557-14493516,-650,Abbey Healthcare (Huntingdon) Ltd,Care Establishment,2 - Commissioning - Older people Pool,2 - Commissioning - Older people Pool,Older People Mental Health Hunts
Cambridgeshire County Council,08-Dec-16,22180560-14493517,-650,Abbey Healthcare (Huntingdon) Ltd,Care Establishment,2 - Commissioning - Older people Pool,2 - Commissioning - Older people Pool,Older People Mental Health Hunts
Cambridgeshire County Council,08-Dec-16,22180568-14493519,-650,Abbey Healthcare (Huntingdon) Ltd,Care Establishment,2 - Commissioning - Older people Pool,2 - Commissioning - Older people Pool,Older People Mental Health Hunts
Cambridgeshire County Council,08-Dec-16,22184754-14493484,-650,Abbey Healthcare (Huntingdon) Ltd,Care Establishment,2 - Commissioning - Older people Pool,2 - Commissioning - Older people Pool,Older People Mental Health Hunts
Cambridgeshire County Council,08-Dec-16,22184756-14493486,-650,Abbey Healthcare (Huntingdon) Ltd,Care Establishment,2 - Commissioning - Older people Pool,2 - Commissioning - Older people Pool,Older People Mental Health Hunts
Cambridgeshire County Council,08-Dec-16,22122838-14489513,-650,The Red House Residential & Nursing Home,Care Establishment,2 - Commissioning - Older people Pool,2 - Commissioning - Older people Pool,Older People Mental Health Hunts
Cambridgeshire County Council,08-Dec-16,22122839-14489514,-650,The Red House Residential & Nursing Home,Care Establishment,2 - Commissioning - Older people Pool,2 - Commissioning - Older people Pool,Older People Mental Health Hunts
Cambridgeshire County Council,08-Dec-16,22123760-14499497,-644.54,Midfield Lodge Care Centre,Care Establishment,3 - Operations - Countywide Services,3 - Operations - Countywide Services,Countywide PD Service - Care
Cambridgeshire County Council,08-Dec-16,22123761-14499498,-644.54,Midfield Lodge Care Centre,Care Establishment,3 - Operations - Countywide Services,3 - Operations - Countywide Services,Countywide PD Service - Care
Cambridgeshire County Council,08-Dec-16,22123763-14499500,-644.54,Midfield Lodge Care Centre,Care Establishment,3 - Operations - Countywide Services,3 - Operations - Countywide Services,Countywide PD Service - Care
Cambridgeshire County Council,08-Dec-16,22123764-14499501,-644.54,Midfield Lodge Care Centre,Care Establishment,3 - Operations - Countywide Services,3 - Operations - Countywide Services,Countywide PD Service - Care
Cambridgeshire County Council,08-Dec-16,22123765-14499502,-644.54,Midfield Lodge Care Centre,Care Establishment,3 - Operations - Countywide Services,3 - Operations - Countywide Services,Countywide PD Service - Care
Cambridgeshire County Council,08-Dec-16,22191349-14489220,-642.86,Cottenham Court Nursing Home,Care Establishment,2 - Commissioning - Older people Pool,2 - Commissioning - Older people Pool,East Cambs - O P Team
Cambridgeshire County Council,08-Dec-16,22122447-14500274,-642.86,Rheola Healthcare,Care Establishment,2 - Commissioning - Older people Pool,2 - Commissioning - Older people Pool,Hunts O P  Team
Cambridgeshire County Council,22-Dec-16,22278751-14575021,-637.5,Cambridge Manor Care Home (Tlc),Care Establishment,2 - Commissioning - Older people Pool,2 - Commissioning - Older people Pool,Older People - City & South
Cambridgeshire County Council,08-Dec-16,22092434-14501624,-629.58,Ringshill Care Home,Care Establishment,2 - Commissioning - Older people Pool,2 - Commissioning - Older people Pool,Older People Mental Health Hunts
Cambridgeshire County Council,08-Dec-16,22092431-14501621,-629.58,Ringshill Care Home,Care Establishment,2 - Commissioning - Older people Pool,2 - Commissioning - Older people Pool,Older People Mental Health Hunts
Cambridgeshire County Council,08-Dec-16,22092433-14501623,-629.58,Ringshill Care Home,Care Establishment,2 - Commissioning - Older people Pool,2 - Commissioning - Older people Pool,Older People Mental Health Hunts
Cambridgeshire County Council,08-Dec-16,22092435-14501625,-629.58,Ringshill Care Home,Care Establishment,2 - Commissioning - Older people Pool,2 - Commissioning - Older people Pool,Older People Mental Health Hunts
Cambridgeshire County Council,01-Dec-16,22123617-14450752,-627.01,The Edmund Trust,Care Establishment,2 - Operations - Learning Disability,2 - Operations - Learning Disability,LDP Cambs City - Special Needs
Cambridgeshire County Council,01-Dec-16,22123624-14450758,-627.01,The Edmund Trust,Care Establishment,2 - Operations - Learning Disability,2 - Operations - Learning Disability,LDP Cambs City - Special Needs
Cambridgeshire County Council,01-Dec-16,22123606-14450760,-627.01,The Edmund Trust,Care Establishment,2 - Operations - Learning Disability,2 - Operations - Learning Disability,LDP South Cambs - Special Needs
Cambridgeshire County Council,01-Dec-16,22123609-14450762,-627.01,The Edmund Trust,Care Establishment,2 - Operations - Learning Disability,2 - Operations - Learning Disability,LDP South Cambs - Special Needs
Cambridgeshire County Council,01-Dec-16,22123610-14450763,-627.01,The Edmund Trust,Care Establishment,2 - Operations - Learning Disability,2 - Operations - Learning Disability,LDP South Cambs - Special Needs
Cambridgeshire County Council,01-Dec-16,22123611-14450764,-627.01,The Edmund Trust,Care Establishment,2 - Operations - Learning Disability,2 - Operations - Learning Disability,LDP South Cambs - Special Needs
Cambridgeshire County Council,01-Dec-16,22123612-14450765,-627.01,The Edmund Trust,Care Establishment,2 - Operations - Learning Disability,2 - Operations - Learning Disability,LDP South Cambs - Special Needs
Cambridgeshire County Council,01-Dec-16,22123615-14450768,-627.01,The Edmund Trust,Care Establishment,2 - Operations - Learning Disability,2 - Operations - Learning Disability,LDP Cambs City - Special Needs
Cambridgeshire County Council,08-Dec-16,22193872-14507139,-627.01,The Edmund Trust,Care Establishment,2 - Operations - Learning Disability,2 - Operations - Learning Disability,LDP Cambs City - Special Needs
Cambridgeshire County Council,08-Dec-16,22193874-14507140,-627.01,The Edmund Trust,Care Establishment,2 - Operations - Learning Disability,2 - Operations - Learning Disability,LDP Cambs City - Special Needs
Cambridgeshire County Council,08-Dec-16,22193880-14507144,-627.01,The Edmund Trust,Care Establishment,2 - Operations - Learning Disability,2 - Operations - Learning Disability,LDP Cambs City - Special Needs
Cambridgeshire County Council,08-Dec-16,22193513-14507164,-627.01,The Edmund Trust,Care Establishment,2 - Operations - Learning Disability,2 - Operations - Learning Disability,LDP Cambs City - Special Needs
Cambridgeshire County Council,08-Dec-16,22177216-14507020,-627.01,The Edmund Trust,Care Establishment,2 - Operations - Learning Disability,2 - Operations - Learning Disability,LDP Cambs City - Special Needs
Cambridgeshire County Council,08-Dec-16,22177220-14507021,-627.01,The Edmund Trust,Care Establishment,2 - Operations - Learning Disability,2 - Operations - Learning Disability,LDP South Cambs - Special Needs
Cambridgeshire County Council,08-Dec-16,22177222-14507023,-627.01,The Edmund Trust,Care Establishment,2 - Operations - Learning Disability,2 - Operations - Learning Disability,LDP South Cambs - Special Needs
Cambridgeshire County Council,08-Dec-16,22177232-14507027,-627.01,The Edmund Trust,Care Establishment,2 - Operations - Learning Disability,2 - Operations - Learning Disability,LDP Cambs City - Special Needs
Cambridgeshire County Council,16-Dec-16,22256789-14551983,-627.01,The Edmund Trust,Care Establishment,2 - Operations - Learning Disability,2 - Operations - Learning Disability,LDP South Cambs - Special Needs
Cambridgeshire County Council,16-Dec-16,22256790-14551984,-627.01,The Edmund Trust,Care Establishment,2 - Operations - Learning Disability,2 - Operations - Learning Disability,LDP South Cambs - Special Needs
Cambridgeshire County Council,16-Dec-16,22256792-14551986,-627.01,The Edmund Trust,Care Establishment,2 - Operations - Learning Disability,2 - Operations - Learning Disability,LDP South Cambs - Special Needs
Cambridgeshire County Council,16-Dec-16,22256794-14551988,-627.01,The Edmund Trust,Care Establishment,2 - Operations - Learning Disability,2 - Operations - Learning Disability,LDP Cambs City - Special Needs
Cambridgeshire County Council,16-Dec-16,22256796-14551990,-627.01,The Edmund Trust,Care Establishment,2 - Operations - Learning Disability,2 - Operations - Learning Disability,LDP Cambs City - Special Needs
Cambridgeshire County Council,16-Dec-16,22256799-14551993,-627.01,The Edmund Trust,Care Establishment,2 - Operations - Learning Disability,2 - Operations - Learning Disability,LDP South Cambs - Special Needs
Cambridgeshire County Council,16-Dec-16,22256800-14551994,-627.01,The Edmund Trust,Care Establishment,2 - Operations - Learning Disability,2 - Operations - Learning Disability,LDP Cambs City - Special Needs
Cambridgeshire County Council,16-Dec-16,22256801-14551995,-627.01,The Edmund Trust,Care Establishment,2 - Operations - Learning Disability,2 - Operations - Learning Disability,LDP Cambs City - Special Needs
Cambridgeshire County Council,22-Dec-16,22277671-14573369,-627.01,The Edmund Trust,Care Establishment,2 - Operations - Learning Disability,2 - Operations - Learning Disability,LDP Cambs City - Special Needs
Cambridgeshire County Council,22-Dec-16,22276205-14573372,-627.01,The Edmund Trust,Care Establishment,2 - Operations - Learning Disability,2 - Operations - Learning Disability,LDP South Cambs - Special Needs
Cambridgeshire County Council,22-Dec-16,22276206-14573373,-627.01,The Edmund Trust,Care Establishment,2 - Operations - Learning Disability,2 - Operations - Learning Disability,LDP South Cambs - Special Needs
Cambridgeshire County Council,22-Dec-16,22276208-14573375,-627.01,The Edmund Trust,Care Establishment,2 - Operations - Learning Disability,2 - Operations - Learning Disability,LDP Cambs City - Special Needs
Cambridgeshire County Council,22-Dec-16,22276211-14573377,-627.01,The Edmund Trust,Care Establishment,2 - Operations - Learning Disability,2 - Operations - Learning Disability,LDP South Cambs - Special Needs
Cambridgeshire County Council,22-Dec-16,22276213-14573378,-627.01,The Edmund Trust,Care Establishment,2 - Operations - Learning Disability,2 - Operations - Learning Disability,LDP South Cambs - Special Needs
Cambridgeshire County Council,22-Dec-16,22276214-14573379,-627.01,The Edmund Trust,Care Establishment,2 - Operations - Learning Disability,2 - Operations - Learning Disability,LDP South Cambs - Special Needs
Cambridgeshire County Council,22-Dec-16,22276216-14573381,-627.01,The Edmund Trust,Care Establishment,2 - Operations - Learning Disability,2 - Operations - Learning Disability,LDP Cambs City - Special Needs
Cambridgeshire County Council,22-Dec-16,22277575-14576271,-621.99,Crescent Trust Care Services Ltd,Care Establishment,3 - Operations - Countywide Services,3 - Operations - Countywide Services,LDP Young Adults - Care
Cambridgeshire County Council,22-Dec-16,22277578-14576274,-621.99,Crescent Trust Care Services Ltd,Care Establishment,3 - Operations - Countywide Services,3 - Operations - Countywide Services,LDP Young Adults - Care
Cambridgeshire County Council,22-Dec-16,22277579-14576275,-621.99,Crescent Trust Care Services Ltd,Care Establishment,3 - Operations - Countywide Services,3 - Operations - Countywide Services,LDP Young Adults - Care
Cambridgeshire County Council,22-Dec-16,22277585-14576281,-621.99,Crescent Trust Care Services Ltd,Care Establishment,3 - Operations - Countywide Services,3 - Operations - Countywide Services,LDP Young Adults - Care
Cambridgeshire County Council,22-Dec-16,22277587-14576283,-621.99,Crescent Trust Care Services Ltd,Care Establishment,3 - Operations - Countywide Services,3 - Operations - Countywide Services,LDP Young Adults - Care
Cambridgeshire County Council,22-Dec-16,22274878-14576298,-621.99,Crescent Trust Care Services Ltd,Care Establishment,3 - Operations - Countywide Services,3 - Operations - Countywide Services,LDP Young Adults - Care
Cambridgeshire County Council,22-Dec-16,22274881-14576301,-621.99,Crescent Trust Care Services Ltd,Care Establishment,3 - Operations - Countywide Services,3 - Operations - Countywide Services,LDP Young Adults - Care
Cambridgeshire County Council,22-Dec-16,22274882-14576302,-621.99,Crescent Trust Care Services Ltd,Care Establishment,3 - Operations - Countywide Services,3 - Operations - Countywide Services,LDP Young Adults - Care
Cambridgeshire County Council,22-Dec-16,22274883-14576303,-621.99,Crescent Trust Care Services Ltd,Care Establishment,3 - Operations - Countywide Services,3 - Operations - Countywide Services,LDP Young Adults - Care
Cambridgeshire County Council,01-Dec-16,22122941-14450717,-614.55,The Edmund Trust,Care Establishment,2 - Operations - Learning Disability,2 - Operations - Learning Disability,LDP South Cambs Locality - Care
Cambridgeshire County Council,01-Dec-16,22122953-14450729,-614.55,The Edmund Trust,Care Establishment,2 - Operations - Learning Disability,2 - Operations - Learning Disability,LDP South Cambs Locality - Care
Cambridgeshire County Council,01-Dec-16,22122954-14450730,-614.55,The Edmund Trust,Care Establishment,2 - Operations - Learning Disability,2 - Operations - Learning Disability,LDP South Cambs Locality - Care
Cambridgeshire County Council,01-Dec-16,22122956-14450732,-614.55,The Edmund Trust,Care Establishment,2 - Operations - Learning Disability,2 - Operations - Learning Disability,LDP South Cambs Locality - Care
Cambridgeshire County Council,01-Dec-16,22122960-14450736,-614.55,The Edmund Trust,Care Establishment,2 - Operations - Learning Disability,2 - Operations - Learning Disability,LDP South Cambs Locality - Care
Cambridgeshire County Council,01-Dec-16,22122964-14450740,-614.55,The Edmund Trust,Care Establishment,2 - Operations - Learning Disability,2 - Operations - Learning Disability,LDP South Cambs Locality - Care
Cambridgeshire County Council,01-Dec-16,22122506-14450742,-614.55,The Edmund Trust,Care Establishment,2 - Operations - Learning Disability,2 - Operations - Learning Disability,LDP South Cambs Locality - Care
Cambridgeshire County Council,16-Dec-16,22178909-14553049,-600,Redacted Personal Data,Redacted Personal Data,3 - Operations - Countywide Services,3 - Operations - Countywide Services,Countywide PD Service - Care
Cambridgeshire County Council,16-Dec-16,22252410-14547285,-600,Manor House Residential And Nursing,Care Establishment,2 - Commissioning - Older people Pool,2 - Commissioning - Older people Pool,Hunts O P  Team
Cambridgeshire County Council,16-Dec-16,22252411-14547286,-600,Manor House Residential And Nursing,Care Establishment,2 - Commissioning - Older people Pool,2 - Commissioning - Older people Pool,Hunts O P  Team
Cambridgeshire County Council,16-Dec-16,22252412-14547287,-600,Manor House Residential And Nursing,Care Establishment,2 - Commissioning - Older people Pool,2 - Commissioning - Older people Pool,Hunts O P  Team
Cambridgeshire County Council,16-Dec-16,22252416-14547290,-600,Manor House Residential And Nursing,Care Establishment,2 - Commissioning - Older people Pool,2 - Commissioning - Older people Pool,Hunts O P  Team
Cambridgeshire County Council,16-Dec-16,22252417-14547291,-600,Manor House Residential And Nursing,Care Establishment,2 - Commissioning - Older people Pool,2 - Commissioning - Older people Pool,Hunts O P  Team
Cambridgeshire County Council,16-Dec-16,22252418-14547292,-600,Manor House Residential And Nursing,Care Establishment,2 - Commissioning - Older people Pool,2 - Commissioning - Older people Pool,Hunts O P  Team
Cambridgeshire County Council,16-Dec-16,22252422-14547295,-600,Manor House Residential And Nursing,Care Establishment,2 - Commissioning - Older people Pool,2 - Commissioning - Older people Pool,Hunts O P  Team
Cambridgeshire County Council,16-Dec-16,22252424-14547297,-600,Manor House Residential And Nursing,Care Establishment,2 - Commissioning - Older people Pool,2 - Commissioning - Older people Pool,Hunts O P  Team
Cambridgeshire County Council,16-Dec-16,22252425-14547298,-600,Manor House Residential And Nursing,Care Establishment,2 - Commissioning - Older people Pool,2 - Commissioning - Older people Pool,Hunts O P  Team
Cambridgeshire County Council,16-Dec-16,22252374-14547301,-600,Manor House Residential And Nursing,Care Establishment,2 - Commissioning - Older people Pool,2 - Commissioning - Older people Pool,Hunts O P  Team
Cambridgeshire County Council,16-Dec-16,22252375-14547302,-600,Manor House Residential And Nursing,Care Establishment,2 - Commissioning - Older people Pool,2 - Commissioning - Older people Pool,Hunts O P  Team
Cambridgeshire County Council,16-Dec-16,22252376-14547303,-600,Manor House Residential And Nursing,Care Establishment,2 - Commissioning - Older people Pool,2 - Commissioning - Older people Pool,Hunts O P  Team
Cambridgeshire County Council,16-Dec-16,22252382-14547309,-600,Manor House Residential And Nursing,Care Establishment,2 - Commissioning - Older people Pool,2 - Commissioning - Older people Pool,Hunts O P  Team
Cambridgeshire County Council,16-Dec-16,22252383-14547310,-600,Manor House Residential And Nursing,Care Establishment,2 - Commissioning - Older people Pool,2 - Commissioning - Older people Pool,Hunts O P  Team
Cambridgeshire County Council,16-Dec-16,22252385-14547312,-600,Manor House Residential And Nursing,Care Establishment,2 - Commissioning - Older people Pool,2 - Commissioning - Older people Pool,Hunts O P  Team
Cambridgeshire County Council,16-Dec-16,22252387-14547314,-600,Manor House Residential And Nursing,Care Establishment,2 - Commissioning - Older people Pool,2 - Commissioning - Older people Pool,Hunts O P  Team
Cambridgeshire County Council,16-Dec-16,22252389-14547316,-600,Manor House Residential And Nursing,Care Establishment,2 - Commissioning - Older people Pool,2 - Commissioning - Older people Pool,Hunts O P  Team
Cambridgeshire County Council,16-Dec-16,22252391-14547318,-600,Manor House Residential And Nursing,Care Establishment,2 - Commissioning - Older people Pool,2 - Commissioning - Older people Pool,Hunts O P  Team
Cambridgeshire County Council,16-Dec-16,22252392-14547319,-600,Manor House Residential And Nursing,Care Establishment,2 - Commissioning - Older people Pool,2 - Commissioning - Older people Pool,Hunts O P  Team
Cambridgeshire County Council,16-Dec-16,22252394-14547321,-600,Manor House Residential And Nursing,Care Establishment,2 - Commissioning - Older people Pool,2 - Commissioning - Older people Pool,Hunts O P  Team
Cambridgeshire County Council,16-Dec-16,22252398-14547324,-600,Manor House Residential And Nursing,Care Establishment,2 - Commissioning - Older people Pool,2 - Commissioning - Older people Pool,Hunts O P  Team
Cambridgeshire County Council,16-Dec-16,22252399-14547325,-600,Manor House Residential And Nursing,Care Establishment,2 - Commissioning - Older people Pool,2 - Commissioning - Older people Pool,Hunts O P  Team
Cambridgeshire County Council,16-Dec-16,22252400-14547326,-600,Manor House Residential And Nursing,Care Establishment,2 - Commissioning - Older people Pool,2 - Commissioning - Older people Pool,Hunts O P  Team
Cambridgeshire County Council,16-Dec-16,22252402-14547328,-600,Manor House Residential And Nursing,Care Establishment,2 - Commissioning - Older people Pool,2 - Commissioning - Older people Pool,Hunts O P  Team
Cambridgeshire County Council,16-Dec-16,22252404-14547330,-600,Manor House Residential And Nursing,Care Establishment,2 - Commissioning - Older people Pool,2 - Commissioning - Older people Pool,Hunts O P  Team
Cambridgeshire County Council,16-Dec-16,22252406-14547332,-600,Manor House Residential And Nursing,Care Establishment,2 - Commissioning - Older people Pool,2 - Commissioning - Older people Pool,Hunts O P  Team
Cambridgeshire County Council,16-Dec-16,22252407-14547333,-600,Manor House Residential And Nursing,Care Establishment,2 - Commissioning - Older people Pool,2 - Commissioning - Older people Pool,Hunts O P  Team
Cambridgeshire County Council,16-Dec-16,22252408-14547334,-600,Manor House Residential And Nursing,Care Establishment,2 - Commissioning - Older people Pool,2 - Commissioning - Older people Pool,Hunts O P  Team
Cambridgeshire County Council,16-Dec-16,22256575-14547339,-600,Manor House Residential And Nursing,Care Establishment,2 - Commissioning - Older people Pool,2 - Commissioning - Older people Pool,Hunts O P  Team
Cambridgeshire County Council,16-Dec-16,22256578-14547342,-600,Manor House Residential And Nursing,Care Establishment,2 - Commissioning - Older people Pool,2 - Commissioning - Older people Pool,Hunts O P  Team
Cambridgeshire County Council,16-Dec-16,22256579-14547343,-600,Manor House Residential And Nursing,Care Establishment,2 - Commissioning - Older people Pool,2 - Commissioning - Older people Pool,Hunts O P  Team
Cambridgeshire County Council,16-Dec-16,22256582-14547346,-600,Manor House Residential And Nursing,Care Establishment,2 - Commissioning - Older people Pool,2 - Commissioning - Older people Pool,Hunts O P  Team
Cambridgeshire County Council,16-Dec-16,22256586-14547350,-600,Manor House Residential And Nursing,Care Establishment,2 - Commissioning - Older people Pool,2 - Commissioning - Older people Pool,Hunts O P  Team
Cambridgeshire County Council,16-Dec-16,22256589-14547353,-600,Manor House Residential And Nursing,Care Establishment,2 - Commissioning - Older people Pool,2 - Commissioning - Older people Pool,Hunts O P  Team
Cambridgeshire County Council,08-Dec-16,22123929-14500413,-597.29,Swan House Nursing & Residential Home,Care Establishment,2 - Commissioning - Older people Pool,2 - Commissioning - Older people Pool,Hunts O P  Team
Cambridgeshire County Council,08-Dec-16,21968415-14499188,-596,Aliwal Healthcare Ltd,Care Establishment,2 - Commissioning - Older people Pool,2 - Commissioning - Older people Pool,Older People - Fenland
Cambridgeshire County Council,08-Dec-16,21968416-14499189,-596,Aliwal Healthcare Ltd,Care Establishment,2 - Commissioning - Older people Pool,2 - Commissioning - Older people Pool,Older People - Fenland
Cambridgeshire County Council,08-Dec-16,21968417-14499190,-596,Aliwal Healthcare Ltd,Care Establishment,2 - Commissioning - Older people Pool,2 - Commissioning - Older people Pool,Older People - Fenland
Cambridgeshire County Council,08-Dec-16,21968418-14499191,-596,Aliwal Healthcare Ltd,Care Establishment,2 - Commissioning - Older people Pool,2 - Commissioning - Older people Pool,Older People - Fenland
Cambridgeshire County Council,08-Dec-16,21968419-14499192,-596,Aliwal Healthcare Ltd,Care Establishment,2 - Commissioning - Older people Pool,2 - Commissioning - Older people Pool,Older People - Fenland
Cambridgeshire County Council,08-Dec-16,21968421-14499193,-596,Aliwal Healthcare Ltd,Care Establishment,2 - Commissioning - Older people Pool,2 - Commissioning - Older people Pool,Older People - Fenland
Cambridgeshire County Council,08-Dec-16,21968422-14499194,-596,Aliwal Healthcare Ltd,Care Establishment,2 - Commissioning - Older people Pool,2 - Commissioning - Older people Pool,Older People - Fenland
Cambridgeshire County Council,08-Dec-16,21968423-14499195,-596,Aliwal Healthcare Ltd,Care Establishment,2 - Commissioning - Older people Pool,2 - Commissioning - Older people Pool,Older People - Fenland
Cambridgeshire County Council,08-Dec-16,21968424-14499196,-596,Aliwal Healthcare Ltd,Care Establishment,2 - Commissioning - Older people Pool,2 - Commissioning - Older people Pool,Older People - Fenland
Cambridgeshire County Council,08-Dec-16,21968425-14499197,-596,Aliwal Healthcare Ltd,Care Establishment,2 - Commissioning - Older people Pool,2 - Commissioning - Older people Pool,Older People - Fenland
Cambridgeshire County Council,08-Dec-16,21968767-14499198,-596,Aliwal Healthcare Ltd,Care Establishment,2 - Commissioning - Older people Pool,2 - Commissioning - Older people Pool,Older People Mental Health Fenland
Cambridgeshire County Council,08-Dec-16,21968771-14499199,-596,Aliwal Healthcare Ltd,Care Establishment,2 - Commissioning - Older people Pool,2 - Commissioning - Older people Pool,Older People Mental Health Fenland
